Workbook

Sheet Kur.Bil.
AE2: KURUM BİLGİLERİNİ GİRİNİZ
B3: M | C3: İş Kolu Kodu | G3: Ünite Kodu | R3: İl | U3: İlçe | W3: Kontrol | Y3: Aracı Kodu
G4: Yeni | I4: Eski | K4: İş Yeri Sıra Numarası | R4: Kodu | U4: Kodu | W4: No
B5: 1 | C5: 8 | D5: 5 | E5: 3 | F5: 2 | G5: 0 | H5: 1 | I5: 0 | J5: 1 | K5: 1 | L5: 1 | M5: 1 | N5: 6 | O5: 5 | P5: 5 | Q5: 0 | R5: 0 | S5: 3 | T5: 8 | U5: 1 | V5: 0 | W5: 4 | X5: 9 | Y5: 0 | Z5: 0 | AA5: 0 | AS5: SGK İşyeri Sicil No: | AT5: 185320101111655003810 -58000
H7: ÖDEME DÖNEMİNİ SEÇİNİZ
B8: Dönemi | R8: EKİM | Z8: Fiili Dönem Memur Maaş Katsayısı | AL8: 0.11794
B9: Bütçe Yılı | R9: 2018 | Z9: AGİ'ye Esas Asgari Ücret Tutarı | AL9: 2029.5
B12: KURUMU | K12: YAHYALI ÇOK PROGRAMLI ANADOLU LİSESİ | Y12: Düzenleyen | AE12: YASİN CEPECİ | AO12: SGK VE İŞSİZLİK KESENEK ORANLARI
B13: Kurum Vergi No | K13: 9280437145 | Y13: Ünvanı | AE13: MÜDÜR YARD. | AO13: SGK İşveren Payı % | BB13: 20.5
B14: Kurum Vergi Dairesi | K14: YAHYALI VERGİ DAİRESİ | AO14: SGK İşçi Payı % | BB14: 14
B15: Banka Adı ve Şubesi | K15: T.VAKIFLAR BANKASI -YAHYALI ŞUBESİ | Y15: Kontrol Eden
B16: Banka Hesap No | Y16: Ünvanı | AO16: SGK Kesenek %'si Toplamı | BB16: =SUM(BB13:BC15) -> 34.5
B17: Banka Hesap İban No: | K17: TR870001500158007302407181
B18: Kurum Adresi | K18: SEYDİLİ MAH KARACATEPE MEVKİİ NO:15 YAHYALI | Y18: Gerçekleştirme Görevlisi | AF18: MUSTAFA YILMAZ | AO18: SAKATLIK İNDİRİM ORANLARI (GVK Tebliği 284)
Y19: Ünvanı | AF19: OKUL MÜDÜRÜ | AO19: I. Der. Sakatlar (Çalışma Gücünün Asgari % 80'ini Kay.) | BB19: 800
B20: Kurum Adres İlçesi | K20: YAHYALI | AO20: II. Der. Sakatlar (Çalışma Gücünün Asgari % 60'ını Kay.) | BB20: 400
B21: Kurumun Adres İli | K21: KAYSERİ | Y21: Gerçekleştirme Görevlisi | AF21: MUSTAFA YILMAZ | AO21: III. Der. Sakatlar (Çalışma Gücünün Asgari % 40'ını Kay.) | BB21: 190
B22: Kurum Posta Kodu | K22: 38500 | Y22: Ünvanı | AF22: OKUL MÜDÜRÜ
B24: Kurumun e-Mail Adresi | K24: 758366@meb.k12.tr | Y24: Harcama Yetkilisi | AE24: AHMET KAFALI
B25: Kurum Telefon No | K25: 0 352 6113959 | Y25: Ünvanı | AE25: MİLLİ EĞİTİM MÜDÜRÜ
B26: Kurum Fax No | K26: 0 352 6113959
B28: E BİLDİRGEYE DAİR DİKKAT ÖNEMLİ UYARI
B29: 1. Ayda yapılan ekders ücret ödemesine ait SGK e-Bildirge bildirimi takip eden ayın 23'ne kadar verilmesi gerekir.
B30: 2. Ayda yapılan ekders ücret ödemesine ait SGK e-Bildirge bildirimi takip eden ayın 23'ne kadar verilmesi gerekir.
B31: 3. Ayda yapılan ekders ücret ödemesine ait SGK e-Bildirge bildirimi takip eden ayın 23'ne kadar verilmesi gerekir.
B32: 4. Ayda yapılan ekders ücret ödemesine ait SGK e-Bildirge bildirimi takip eden ayın 23'ne kadar verilmesi gerekir.
B33: 5. Ayda yapılan ekders ücret ödemesine ait SGK e-Bildirge bildirimi takip eden ayın 23'ne kadar verilmesi gerekir.
B34: 6. Ayda yapılan ekders ücret ödemesine ait SGK e-Bildirge bildirimi takip eden ayın 23'ne kadar verilmesi gerekir.
B35: 7. Ayda yapılan ekders ücret ödemesine ait SGK e-Bildirge bildirimi takip eden ayın 23'ne kadar verilmesi gerekir.
B36: 8. Ayda yapılan ekders ücret ödemesine ait SGK e-Bildirge bildirimi takip eden ayın 23'ne kadar verilmesi gerekir.
B37: 9. Ayda yapılan ekders ücret ödemesine ait SGK e-Bildirge bildirimi takip eden ayın 23'ne kadar verilmesi gerekir.
B38: 10. Ayda yapılan ekders ücret ödemesine ait SGK e-Bildirge bildirimi takip eden ayın 23'ne kadar verilmesi gerekir.
B39: 11. Ayda yapılan ekders ücret ödemesine ait SGK e-Bildirge bildirimi takip eden ayın 23'ne kadar verilmesi gerekir.
B40: 12. Ayda yapılan ekders ücret ödemesine ait SGK e-Bildirge bildirimi takip eden ayın 23'ne kadar verilmesi gerekir.

Sheet Ekders Puantaj
A1: 1 | B1: AYLIK EKDERS ÜCRET PUANTAJ ÇİZELGESİ
A2: 1
B3: ="Kurumu Adı : "&Kur.Bil.!K12 -> Kurumu Adı : YAHYALI ÇOK PROGRAMLI ANADOLU LİSESİ
B4: ="Bütçe Dönemi : "&Kur.Bil.!R8 -> Bütçe Dönemi : EKİM | E4: EKİM | AL4: Maaş Dönemi İlk Gününü Giriniz. | AN4: 2018-10-01
A5: 1 | B5: Sıra No | C5: TC Kimlik No | D5: Adı Soyadı | E5: Unvan | F5: İşe Giriş Tarihi | G5: Ekders %'si (Seç) | H5: =IF(H6=1,"PAZARTESİ",IF(H6=2,"SALI",IF(H6=3,"ÇARŞAMBA",IF(H6=4,"PERŞEMBE",IF(H6=5,"CUMA",IF(H6=6,"CUMARTESİ",IF(H6=7,"PAZAR",""))))))) -> PAZARTESİ | I5: SALI | J5: ÇARŞAMBA | K5: PERŞEMBE | L5: CUMA | M5: CUMARTESİ | N5: PAZAR | O5: PAZARTESİ | P5: SALI | Q5: ÇARŞAMBA | R5: PERŞEMBE | S5: CUMA | T5: CUMARTESİ | U5: PAZAR | V5: PAZARTESİ | W5: SALI | X5: ÇARŞAMBA | Y5: PERŞEMBE | Z5: CUMA | AA5: CUMARTESİ | AB5: PAZAR | AC5: PAZARTESİ | AD5: SALI | AE5: ÇARŞAMBA | AF5: PERŞEMBE | AG5: CUMA | AH5: CUMARTESİ | AI5: PAZAR | AJ5: PAZARTESİ | AK5: SALI | AL5: ÇARŞAMBA | AM5: EKDERS ÜCRET SAAT TOPLAMI
A6: 1 | H6: =WEEKDAY(H7,2) -> 1 | I6: =WEEKDAY(I7,2) -> 2 | J6: 3 | K6: 4 | L6: 5 | M6: 6 | N6: 7 | O6: 1 | P6: 2 | Q6: 3 | R6: 4 | S6: 5 | T6: 6 | U6: 7 | V6: 1 | W6: 2 | X6: 3 | Y6: 4 | Z6: 5 | AA6: 6 | AB6: 7 | AC6: 1 | AD6: 2 | AE6: 3 | AF6: 4 | AG6: 5 | AH6: 6 | AI6: 7 | AJ6: 1 | AK6: 2 | AL6: 3
A7: 1 | H7: =AN4 -> 2018-10-01 | I7: =H7+1 -> 2018-10-02 | J7: =I7+1 -> 2018-10-03 | K7: =J7+1 -> 2018-10-04 | L7: 2018-10-05 | M7: 2018-10-06 | N7: 2018-10-07 | O7: 2018-10-08 | P7: 2018-10-09 | Q7: 2018-10-10 | R7: 2018-10-11 | S7: 2018-10-12 | T7: 2018-10-13 | U7: 2018-10-14 | V7: 2018-10-15 | W7: 2018-10-16 | X7: =W7+1 -> 2018-10-17 | Y7: 2018-10-18 | Z7: =Y7+1 -> 2018-10-19 | AA7: 2018-10-20 | AB7: 2018-10-21 | AC7: 2018-10-22 | AD7: 2018-10-23 | AE7: 2018-10-24 | AF7: 2018-10-25 | AG7: 2018-10-26 | AH7: 2018-10-27 | AI7: =AH7+1 -> 2018-10-28 | AJ7: 2018-10-29 | AK7: 2018-10-30 | AL7: 2018-10-31 | AM7: (%140 Göst.) | AN7: (%140 Göst. x %25 Fazlası) | AO7: (%150 Göst.)
A8: =IF(D8="","","e") -> e | B8: 1 | C8: =VLOOKUP(B8,'Pers. Bil.'!$A$5:$U$64,2,0) -> 29867025728 | D8: =VLOOKUP(B8,'Pers. Bil.'!$A$5:$U$64,3,0) -> AHMET TOLGA ÇOBAN | E8: =VLOOKUP(B8,'Pers. Bil.'!$A$5:$U$64,4,0) -> Ücretli Öğret. | F8: 2018-09-17 | G8: %140 Göst. | AM8: =SUM(H8:AL8) -> 0 | AN8: =IF(G8="%140 Göst. X %+25 Fazlası",SUM(H8:AL8),0) -> 0 | AO8: =IF(G8="%150 Göst.",SUM(H8:AL8),0) -> 0
A9: e | B9: 2 | C9: =VLOOKUP(B9,'Pers. Bil.'!$A$5:$U$64,2,0) -> 28778061818 | D9: =VLOOKUP(B9,'Pers. Bil.'!$A$5:$U$64,3,0) -> FATMA NUR CİĞER | E9: =VLOOKUP(B9,'Pers. Bil.'!$A$5:$U$64,4,0) -> Ücretli Öğret. | F9: 2018-09-17 | G9: %140 Göst. | AM9: =SUM(H9:AL9) -> 0 | AN9: 0 | AO9: 0
A10: e | B10: 3 | C10: =VLOOKUP(B10,'Pers. Bil.'!$A$5:$U$64,2,0) -> 28481071876 | D10: =VLOOKUP(B10,'Pers. Bil.'!$A$5:$U$64,3,0) -> ZELİHA OKUMUŞ | E10: =VLOOKUP(B10,'Pers. Bil.'!$A$5:$U$64,4,0) -> Ücretli Öğret. | F10: 2018-09-18 | G10: %140 Göst. | AM10: 0 | AN10: 0 | AO10: 0
A11: e | B11: 5 | C11: =VLOOKUP(B11,'Pers. Bil.'!$A$5:$U$64,2,0) -> 49891358388 | D11: =VLOOKUP(B11,'Pers. Bil.'!$A$5:$U$64,3,0) -> MUKADDES TABAK | E11: =VLOOKUP(B11,'Pers. Bil.'!$A$5:$U$64,4,0) -> Ücretli Öğret. | F11: 2018-09-20 | G11: %140 Göst. | AM11: 0 | AN11: 0 | AO11: 0
A12: e | B12: 6 | C12: =VLOOKUP(B12,'Pers. Bil.'!$A$5:$U$64,2,0) -> 49462372478 | D12: =VLOOKUP(B12,'Pers. Bil.'!$A$5:$U$64,3,0) -> VİLDAN GEYİK | E12: =VLOOKUP(B12,'Pers. Bil.'!$A$5:$U$64,4,0) -> Ücretli Öğret. | F12: 2018-09-24 | G12: %140 Göst. | H12: 4 | I12: 6 | O12: 4 | P12: 6 | AM12: 20 | AN12: 0 | AO12: 0
A13: e | B13: 7 | C13: =VLOOKUP(B13,'Pers. Bil.'!$A$5:$U$64,2,0) -> 0 | D13: =VLOOKUP(B13,'Pers. Bil.'!$A$5:$U$64,3,0) -> 0 | E13: =VLOOKUP(B13,'Pers. Bil.'!$A$5:$U$64,4,0) -> 0 | F13: =VLOOKUP(B13,'Pers. Bil.'!$A$5:$U$64,6,0) -> 00:00:00 | AM13: 0 | AN13: 0 | AO13: 0
A14: e | B14: 8 | C14: =VLOOKUP(B14,'Pers. Bil.'!$A$5:$U$64,2,0) -> 0 | D14: =VLOOKUP(B14,'Pers. Bil.'!$A$5:$U$64,3,0) -> 0 | E14: =VLOOKUP(B14,'Pers. Bil.'!$A$5:$U$64,4,0) -> 0 | F14: =VLOOKUP(B14,'Pers. Bil.'!$A$5:$U$64,6,0) -> 00:00:00 | AM14: 0 | AN14: 0 | AO14: 0
A15: e | B15: 9 | C15: =VLOOKUP(B15,'Pers. Bil.'!$A$5:$U$64,2,0) -> 0 | D15: =VLOOKUP(B15,'Pers. Bil.'!$A$5:$U$64,3,0) -> 0 | E15: =VLOOKUP(B15,'Pers. Bil.'!$A$5:$U$64,4,0) -> 0 | F15: =VLOOKUP(B15,'Pers. Bil.'!$A$5:$U$64,6,0) -> 00:00:00 | AM15: 0 | AN15: 0 | AO15: 0
A16: e | B16: 10 | C16: =VLOOKUP(B16,'Pers. Bil.'!$A$5:$U$64,2,0) -> 0 | D16: =VLOOKUP(B16,'Pers. Bil.'!$A$5:$U$64,3,0) -> 0 | E16: =VLOOKUP(B16,'Pers. Bil.'!$A$5:$U$64,4,0) -> 0 | F16: =VLOOKUP(B16,'Pers. Bil.'!$A$5:$U$64,6,0) -> 00:00:00 | AM16: 0 | AN16: 0 | AO16: 0
A17: e | B17: 11 | C17: =VLOOKUP(B17,'Pers. Bil.'!$A$5:$U$64,2,0) -> 0 | D17: =VLOOKUP(B17,'Pers. Bil.'!$A$5:$U$64,3,0) -> 0 | E17: =VLOOKUP(B17,'Pers. Bil.'!$A$5:$U$64,4,0) -> 0 | F17: =VLOOKUP(B17,'Pers. Bil.'!$A$5:$U$64,6,0) -> 00:00:00 | AM17: 0 | AN17: 0 | AO17: 0
A18: e | B18: 12 | C18: =VLOOKUP(B18,'Pers. Bil.'!$A$5:$U$64,2,0) -> 0 | D18: =VLOOKUP(B18,'Pers. Bil.'!$A$5:$U$64,3,0) -> 0 | E18: =VLOOKUP(B18,'Pers. Bil.'!$A$5:$U$64,4,0) -> 0 | F18: =VLOOKUP(B18,'Pers. Bil.'!$A$5:$U$64,6,0) -> 00:00:00 | AM18: 0 | AN18: 0 | AO18: 0
A19: e | B19: 13 | C19: =VLOOKUP(B19,'Pers. Bil.'!$A$5:$U$64,2,0) -> 0 | D19: =VLOOKUP(B19,'Pers. Bil.'!$A$5:$U$64,3,0) -> 0 | E19: =VLOOKUP(B19,'Pers. Bil.'!$A$5:$U$64,4,0) -> 0 | F19: =VLOOKUP(B19,'Pers. Bil.'!$A$5:$U$64,6,0) -> 00:00:00 | AM19: 0 | AN19: 0 | AO19: 0
A20: e | B20: 14 | C20: =VLOOKUP(B20,'Pers. Bil.'!$A$5:$U$64,2,0) -> 0 | D20: =VLOOKUP(B20,'Pers. Bil.'!$A$5:$U$64,3,0) -> 0 | E20: =VLOOKUP(B20,'Pers. Bil.'!$A$5:$U$64,4,0) -> 0 | F20: =VLOOKUP(B20,'Pers. Bil.'!$A$5:$U$64,6,0) -> 00:00:00 | AM20: 0 | AN20: 0 | AO20: 0
A21: e | B21: 15 | C21: =VLOOKUP(B21,'Pers. Bil.'!$A$5:$U$64,2,0) -> 0 | D21: =VLOOKUP(B21,'Pers. Bil.'!$A$5:$U$64,3,0) -> 0 | E21: =VLOOKUP(B21,'Pers. Bil.'!$A$5:$U$64,4,0) -> 0 | F21: =VLOOKUP(B21,'Pers. Bil.'!$A$5:$U$64,6,0) -> 00:00:00 | AM21: 0 | AN21: 0 | AO21: 0
B22: 16 | C22: =VLOOKUP(B22,'Pers. Bil.'!$A$5:$U$64,2,0) -> 0 | D22: =VLOOKUP(B22,'Pers. Bil.'!$A$5:$U$64,3,0) -> 0 | E22: =VLOOKUP(B22,'Pers. Bil.'!$A$5:$U$64,4,0) -> 0 | F22: =VLOOKUP(B22,'Pers. Bil.'!$A$5:$U$64,6,0) -> 00:00:00 | AM22: 0 | AN22: 0 | AO22: 0
B23: 17 | C23: =VLOOKUP(B23,'Pers. Bil.'!$A$5:$U$64,2,0) -> 0 | D23: =VLOOKUP(B23,'Pers. Bil.'!$A$5:$U$64,3,0) -> 0 | E23: =VLOOKUP(B23,'Pers. Bil.'!$A$5:$U$64,4,0) -> 0 | F23: =VLOOKUP(B23,'Pers. Bil.'!$A$5:$U$64,6,0) -> 00:00:00 | AM23: 0 | AN23: 0 | AO23: 0
B24: 18 | C24: =VLOOKUP(B24,'Pers. Bil.'!$A$5:$U$64,2,0) -> 0 | D24: =VLOOKUP(B24,'Pers. Bil.'!$A$5:$U$64,3,0) -> 0 | E24: =VLOOKUP(B24,'Pers. Bil.'!$A$5:$U$64,4,0) -> 0 | F24: =VLOOKUP(B24,'Pers. Bil.'!$A$5:$U$64,6,0) -> 00:00:00 | AM24: 0 | AN24: 0 | AO24: 0
B25: 19 | C25: =VLOOKUP(B25,'Pers. Bil.'!$A$5:$U$64,2,0) -> 0 | D25: =VLOOKUP(B25,'Pers. Bil.'!$A$5:$U$64,3,0) -> 0 | E25: =VLOOKUP(B25,'Pers. Bil.'!$A$5:$U$64,4,0) -> 0 | F25: =VLOOKUP(B25,'Pers. Bil.'!$A$5:$U$64,6,0) -> 00:00:00 | AM25: 0 | AN25: 0 | AO25: 0
B26: 20 | C26: =VLOOKUP(B26,'Pers. Bil.'!$A$5:$U$64,2,0) -> 0 | D26: =VLOOKUP(B26,'Pers. Bil.'!$A$5:$U$64,3,0) -> 0 | E26: =VLOOKUP(B26,'Pers. Bil.'!$A$5:$U$64,4,0) -> 0 | F26: =VLOOKUP(B26,'Pers. Bil.'!$A$5:$U$64,6,0) -> 00:00:00 | AM26: 0 | AN26: 0 | AO26: 0
AG27: T O P L A M | AM27: =SUM(AM8:AM26) -> 20 | AN27: =SUM(AN8:AN26) -> 0 | AO27: 0
C28: ="Müdürlüğümüzde görev yapan ücretli öğretmenlerin "&E4&" ayı ekders ücret çizelgesidir." -> Müdürlüğümüzde görev yapan ücretli öğretmenlerin EKİM ayı ekders ücret çizelgesidir.
D30: Düzenleyen | AD30: Gerçekleştirme Görevlisi
D31: =TODAY() -> 2018-10-09 | AD31: 2018-10-10
C32: Adı Soyadı : | D32: Yasin CEPECİ | AC32: Adı Soyadı : | AD32: Kamil CENGİZ
C33: Ünvanı : | D33: Müdür Yard. | AC33: Ünvanı : | AD33: Müdür Yrd.
C34: İmza : | AC34: İmza : | AD34: ……………………………………

Sheet Pers. Bil.
A1: 1 | B1: 2 | C1: 3 | D1: 4 | E1: 5 | F1: 6 | G1: 7 | H1: 8 | I1: 9 | J1: 10 | K1: 11 | L1: 12 | M1: 13 | N1: 14 | O1: 15 | P1: 16 | Q1: 17 | R1: 18 | S1: 19 | T1: 20 | U1: 21 | V1: 22 | W1: 23 | X1: 24 | Y1: 25 | Z1: 26 | AA1: 27 | AB1: 28 | AC1: 29 | AD1: 30 | AE1: 31 | AF1: 32 | AG1: 33 | AH1: 34 | AI1: 35 | AJ1: 36 | AK1: 37 | AL1: 38 | AM1: 39 | AN1: 40 | AO1: 41 | AP1: 42 | AQ1: 43 | AR1: 44 | AS1: 45 | AT1: 46 | AU1: 47 | AV1: 48 | AW1: 49 | AX1: 50 | AY1: 51 | AZ1: 52 | BA1: 53 | BB1: 54 | BC1: 55 | BD1: 56 | BE1: 57 | BF1: 58 | BG1: 59 | BH1: 60 | BI1: 61 | BJ1: 62 | BK1: 63 | BL1: 64 | BM1: 65 | BN1: 66 | BO1: 67 | BP1: 68 | BQ1: 69 | BR1: 70 | BS1: 71 | BT1: 72 | BU1: 73 | BV1: 74 | BW1: 75 | BX1: 76 | BY1: 77 | BZ1: 78 | CA1: 79 | CB1: 80 | CC1: 81 | CD1: 82 | CE1: 83
D2: ÜCRETLİ ÖĞRETMEN BİLGİ GİRİŞİ | AA2: =Kur.Bil.!AL8 -> 0.11794 | AB2: Fiili Dönem Memur Maaş Katsayısı | AO2: AGİ'ye Esas Asgari Ücret Tutarı | AP2: =Kur.Bil.!AL9 -> 2029.5 | BQ2: =Kur.Bil.!R9 -> 2018 | BS2: 1 | BT2: 2 | BU2: 3 | BV2: 4 | BW2: 5 | BX2: 6 | BY2: 7 | BZ2: 8 | CA2: 9 | CB2: 10 | CC2: 11 | CD2: 12 | CE2: Yıllık Gelir Vergisi Matrah Toplamı
A3: Sıra No | B3: T.C. Kimlik No | C3: Adı ve Soyadı | D3: Unvanı | E3: İşe Başlama Tarihi | G3: İşe Ayrılma Tarihi | I3: Görev Yeri | J3: Banka Şube Kodu | K3: Banka Hesap No | L3: İban No | M3: İcra/Nafaka Dosya Açıklaması. | N3: Varsa Sakatlık İndirim Tutarı | O3: As. Geç. İnd. Bilgileri | R3: Ekders Saat Toplamı (%140 Göst.) | S3: Ekders Saat Toplamı (%150 Göst.) | T3: Ekders Saat Toplamı (%140 Göst.x%25 Fazlası) | V3: Sıra No | W3: T.C. Kimlik No | X3: Adı Soyadı | Y3: Unvanı | Z3: Ekders Saat Toplamı (%140 Göst.) | AA3: Ekders Saat Toplamı (%150 Göst.) | AB3: Ekders Saat Toplamı (%140 Göst.x%25 Fazlası) | AC3: TAHAKKUK TOPLAMI | AD3: SGK MATRAH TOPLAMI | AE3: SGK İşveren Payı (%20,5) | AF3: BRÜT TOPLAM | AG3: Süregelen Yıllık Gelir Vergisi Toplamı | AH3: Aylık Gelir Vergisi Matrah Toplamı | AI3: Gelir Vergisi Tutarı | AJ3: Damga Vergisi Tutarı | AK3: SGK İşveren Payı (%20,5-%22,5) | AL3: SGK İşveren Payı (%14-%7,5) | AM3: İcra Kesinti Tutarı | AN3: Kesinti Toplamı | AO3: Ödeme Tutarı | AP3: As. Gec. İnd. Tutarı | AQ3: Ele Geçen Tutarı | AS3: Personelin | AX3: Asgarî Ücret Brüt Tutar : | AY3: =Kur.Bil.!AL9 -> 2029.5 | BH3: Yararlanılan Asgari Geçimi İndirimi Tutarı (*****) | BQ3: Daimi İşçinin | BS3: Ocak | BT3: Şubat | BU3: Mart | BV3: Nisan | BW3: Mayıs | BX3: Haziran | BY3: Temmuz | BZ3: Ağustos | CA3: Eylül | CB3: Ekim | CC3: Kasım | CD3: Aralık
O4: Aile Durumu | P4: Çıcuk Durumu | AS4: Sıra No | AT4: Adı Soyadı | AU4: Ünvanı | AV4: Medeni Hali | AW4: Çocuk Sayısı | AX4: AGİ Çal. ve Eş %'siİ | AY4: AGİ Çocuk %'si | AZ4: Asgari Geçim İndirimi Oranı (%) | BA4: As. Geç. İnd. Esas Tutar | BB4: Aylık As. Geç. İnd. Tutarı [(3.sütun) X % 15] 12 | BC4: 1 | BD4: 2 | BE4: 3 | BF4: 4 | BG4: 5 | BH4: 6 | BI4: 7 | BJ4: 8 | BK4: 9 | BL4: 10 | BM4: 11 | BN4: 12 | BP4: Sıra No | BQ4: İşcinin Adı Soyadı | BR4: Aylık Matrah | BS4: Ay. Gelir Ver. Tutarı | BT4: Ay. Gelir Ver. Tutarı | BU4: Ay. Gelir Ver. Tutarı | BV4: Ay. Gelir Ver. Tutarı | BW4: Ay. Gelir Ver. Tutarı | BX4: Ay. Gelir Ver. Tutarı | BY4: Ay. Gelir Ver. Tutarı | BZ4: Ay. Gelir Ver. Tutarı | CA4: Ay. Gelir Ver. Tutarı | CB4: Ay. Gelir Ver. Tutarı | CC4: Ay. Gelir Ver. Tutarı | CD4: Ay. Gelir Ver. Tutarı
A5: 1 | B5: 29867025728 | C5: AHMET TOLGA ÇOBAN | D5: Ücretli Öğret. | E5: 2018-09-17 | I5: ÇPL | J5: 158 | M5: 0 | O5: Bekar | P5: 0 | R5: ='Ekders Puantaj'!AM8 -> 0 | S5: ='Ekders Puantaj'!AN9 -> 0 | T5: ='Ekders Puantaj'!AO10 -> 0 | V5: =A5 -> 1 | W5: =B5 -> 29867025728 | X5: =C5 -> AHMET TOLGA ÇOBAN | Y5: =D5 -> Ücretli Öğret. | Z5: =R5 -> 0 | AA5: =S5 -> 0 | AB5: =T5 -> 0 | AC5: =ROUND(Z5*($AA$2*140),2)+ROUND(AA5*($AA$2*150),2)+ROUND((AB5*($AA$2*140)*25/100)+(AB5*($AA$2*140)),2) -> 0 | AD5: =AC5 -> 0 | AE5: =IF(Y5="Ücretli Öğret.",ROUND(AD5*20.5/100,2),ROUND(AD5*22.5/100,2)) -> 0 | AF5: =AC5+AE5 -> 0 | AH5: =ROUND((AG5+AC5)-(N5+AL5),2) -> 0 | AI5: =ROUND(AH5*15/100,2) -> 0 | AJ5: =ROUND(AC5*7.59/1000,2) -> 0 | AK5: =IF(Y5="Ücretli Öğret.",ROUND(AD5*20.5/100,2),ROUND(AD5*22.5/100,2)) -> 0 | AL5: =IF(Y5="Ücretli Öğret.",ROUND(AD5*14/100,2),ROUND(AD5*7.5/100,2)) -> 0 | AM5: =M5 -> 0 | AN5: =AI5+AJ5+AK5+AL5+AM5 -> 0 | AO5: =AF5-AN5 -> 0 | AP5: =IF(AI5<BB5,AI5,BB5) -> 0 | AQ5: =AO5+AP5 -> 0 | AS5: =A5 -> 1 | AT5: =C5 -> AHMET TOLGA ÇOBAN | AU5: =D5 -> Ücretli Öğret. | AV5: =O5 -> Bekar | AW5: =P5 -> 0 | AX5: =IF(AV5="Bekar",50,IF(AV5="Çalışıyor",50,IF(AV5="Eşi Çalışmıyor",60,0))) -> 50 | AY5: =IF(AW5=0,0,IF(AW5=1,7.5,IF(AW5=2,15,IF(AW5=3,20,IF(AW5=4,25))))) -> 0 | AZ5: =AX5+AY5 -> 50 | BA5: =ROUND(($AP$2*12)*AZ5/100,2) -> 12177 | BB5: =IF(AI5=0,0,ROUND((BA5*15/100)/12,2)) -> 0 | BP5: =A5 -> 1 | BQ5: =C5 -> AHMET TOLGA ÇOBAN | BS5: =AH5 -> 0 | CE5: =SUM(BS5:CD5) -> 0
A6: 2 | B6: 28778061818 | C6: FATMA NUR CİĞER | D6: Ücretli Öğret. | E6: 2018-09-17 | I6: ÇPL | J6: 158 | O6: Bekar | P6: 0 | R6: ='Ekders Puantaj'!AM9 -> 0 | V6: =A6 -> 2 | W6: =B6 -> 28778061818 | X6: =C6 -> FATMA NUR CİĞER | Y6: =D6 -> Ücretli Öğret. | Z6: =R6 -> 0 | AA6: =S6 -> 0 | AB6: =T6 -> 0 | AC6: =ROUND(Z6*($AA$2*140),2)+ROUND(AA6*($AA$2*150),2)+ROUND((AB6*($AA$2*140)*25/100)+(AB6*($AA$2*140)),2) -> 0 | AD6: =AC6 -> 0 | AE6: =IF(Y6="Ücretli Öğret.",ROUND(AD6*20.5/100,2),ROUND(AD6*22.5/100,2)) -> 0 | AF6: =AC6+AE6 -> 0 | AH6: =ROUND((AG6+AC6)-(N6+AL6),2) -> 0 | AI6: =ROUND(AH6*15/100,2) -> 0 | AJ6: =ROUND(AC6*7.59/1000,2) -> 0 | AK6: =IF(Y6="Ücretli Öğret.",ROUND(AD6*20.5/100,2),ROUND(AD6*22.5/100,2)) -> 0 | AL6: =IF(Y6="Ücretli Öğret.",ROUND(AD6*14/100,2),ROUND(AD6*7.5/100,2)) -> 0 | AM6: =M6 -> 0 | AN6: =AI6+AJ6+AK6+AL6+AM6 -> 0 | AO6: =AF6-AN6 -> 0 | AP6: =IF(AI6<BB6,AI6,BB6) -> 0 | AQ6: =AO6+AP6 -> 0 | AS6: =A6 -> 2 | AT6: =C6 -> FATMA NUR CİĞER | AU6: =D6 -> Ücretli Öğret. | AV6: =O6 -> Bekar | AW6: =P6 -> 0 | AX6: =IF(AV6="Bekar",50,IF(AV6="Çalışıyor",50,IF(AV6="Eşi Çalışmıyor",60,0))) -> 50 | AY6: =IF(AW6=0,0,IF(AW6=1,7.5,IF(AW6=2,15,IF(AW6=3,20,IF(AW6=4,25))))) -> 0 | AZ6: =AX6+AY6 -> 50 | BA6: =ROUND(($AP$2*12)*AZ6/100,2) -> 12177 | BB6: =IF(AI6=0,0,ROUND((BA6*15/100)/12,2)) -> 0 | BP6: =A6 -> 2 | BQ6: =C6 -> FATMA NUR CİĞER | BS6: =AH6 -> 0 | CE6: 0
A7: 3 | B7: 28481071876 | C7: ZELİHA OKUMUŞ | D7: Ücretli Öğret. | E7: 2018-09-18 | I7: ÇPL | J7: 158 | O7: Bekar | R7: ='Ekders Puantaj'!AM10 -> 0 | V7: 3 | W7: 28481071876 | X7: ZELİHA OKUMUŞ | Y7: Ücretli Öğret. | Z7: 0 | AA7: 0 | AB7: 0 | AC7: 0 | AD7: 0 | AE7: 0 | AF7: 0 | AH7: 0 | AI7: 0 | AJ7: 0 | AK7: 0 | AL7: 0 | AM7: 0 | AN7: 0 | AO7: 0 | AP7: 0 | AQ7: 0 | AS7: 3 | AT7: ZELİHA OKUMUŞ | AU7: Ücretli Öğret. | AV7: Bekar | AW7: 0 | AX7: 50 | AY7: 0 | AZ7: 50 | BA7: 12177 | BB7: 0 | BP7: 3 | BQ7: ZELİHA OKUMUŞ | BS7: 0 | CE7: 0
A8: 5 | B8: 49891358388 | C8: MUKADDES TABAK | D8: Ücretli Öğret. | E8: 2018-09-20 | I8: ÇPL | J8: 158 | O8: Bekar | R8: ='Ekders Puantaj'!AM11 -> 0 | V8: 5 | W8: =B8 -> 49891358388 | X8: MUKADDES TABAK | Y8: Ücretli Öğret. | Z8: =R8 -> 0 | AA8: 0 | AB8: 0 | AC8: 0 | AD8: 0 | AE8: 0 | AF8: 0 | AH8: 0 | AI8: 0 | AJ8: 0 | AK8: 0 | AL8: 0 | AM8: 0 | AN8: 0 | AO8: 0 | AP8: 0 | AQ8: 0 | AS8: 5 | AT8: MUKADDES TABAK | AU8: Ücretli Öğret. | AV8: Bekar | AW8: 0 | AX8: 50 | AY8: 0 | AZ8: 50 | BA8: 12177 | BB8: 0 | BP8: 5 | BQ8: MUKADDES TABAK | CE8: 0
A9: 6 | B9: 49462372478 | C9: VİLDAN GEYİK | D9: Ücretli Öğret. | E9: 2018-09-24 | O9: Bekar | R9: ='Ekders Puantaj'!AM12 -> 20 | V9: 6 | W9: 49462372478 | X9: VİLDAN GEYİK | Y9: Ücretli Öğret. | Z9: 20 | AA9: 0 | AB9: 0 | AC9: 330.23 | AD9: 330.23 | AE9: 67.7 | AF9: 397.93 | AH9: 284 | AI9: 42.6 | AJ9: 2.51 | AK9: 67.7 | AL9: 46.23 | AM9: 0 | AN9: 159.04 | AO9: 238.89 | AP9: 42.6 | AQ9: 281.49 | AS9: 6 | AT9: VİLDAN GEYİK | AU9: Ücretli Öğret. | AV9: Bekar | AW9: 0 | AX9: 50 | AY9: 0 | AZ9: 50 | BA9: 12177 | BB9: 152.21 | BP9: 6 | BQ9: VİLDAN GEYİK | CE9: 0
A10: 7 | R10: ='Ekders Puantaj'!AM13 -> 0 | V10: 7 | W10: 0 | X10: 0 | Y10: 0 | Z10: 0 | AA10: 0 | AB10: 0 | AC10: 0 | AD10: 0 | AE10: 0 | AF10: 0 | AH10: 0 | AI10: 0 | AJ10: 0 | AK10: 0 | AL10: 0 | AM10: 0 | AN10: 0 | AO10: 0 | AP10: 0 | AQ10: 0 | AS10: 7 | AT10: 0 | AU10: 0 | AV10: 0 | AW10: 0 | AX10: 0 | AY10: 0 | AZ10: 0 | BA10: 0 | BB10: 0 | BP10: 7 | BQ10: 0 | CE10: 0
A11: 8 | R11: ='Ekders Puantaj'!AM14 -> 0 | V11: 8 | W11: 0 | X11: 0 | Y11: 0 | Z11: 0 | AA11: 0 | AB11: 0 | AC11: 0 | AD11: 0 | AE11: 0 | AF11: 0 | AH11: 0 | AI11: 0 | AJ11: 0 | AK11: 0 | AL11: 0 | AM11: 0 | AN11: 0 | AO11: 0 | AP11: 0 | AQ11: 0 | AS11: 8 | AT11: 0 | AU11: 0 | AV11: 0 | AW11: 0 | AX11: =IF(AV11="Bekar",50,IF(AV11="Eşi Çalışıyor",50,IF(AV11="Eşi Çalışmıyor",60,0))) -> 0 | AY11: 0 | AZ11: 0 | BA11: 0 | BB11: 0 | BP11: 8 | BQ11: 0 | CE11: 0
A12: 9 | R12: ='Ekders Puantaj'!AM15 -> 0 | V12: 9 | X12: 0 | Y12: 0 | Z12: 0 | AA12: 0 | AB12: 0 | AC12: 0 | AD12: 0 | AE12: 0 | AF12: 0 | AH12: 0 | AI12: 0 | AJ12: 0 | AK12: 0 | AL12: 0 | AM12: 0 | AN12: 0 | AO12: 0 | AP12: 0 | AQ12: 0 | AS12: 9 | AT12: 0 | AU12: 0 | AV12: 0 | AW12: 0 | AX12: 0 | AY12: 0 | AZ12: 0 | BA12: 0 | BB12: 0 | BP12: 9 | BQ12: 0 | CE12: 0
A13: 10 | R13: ='Ekders Puantaj'!AM16 -> 0 | V13: 10 | X13: 0 | Y13: 0 | Z13: 0 | AA13: 0 | AB13: 0 | AC13: 0 | AD13: 0 | AE13: 0 | AF13: 0 | AH13: 0 | AI13: 0 | AJ13: 0 | AK13: 0 | AL13: 0 | AM13: 0 | AN13: 0 | AO13: 0 | AP13: 0 | AQ13: 0 | AS13: 10 | AT13: 0 | AU13: 0 | AV13: 0 | AW13: 0 | AX13: 0 | AY13: 0 | AZ13: 0 | BA13: 0 | BB13: 0 | BP13: 10 | BQ13: 0 | CE13: 0
A14: 11 | R14: ='Ekders Puantaj'!AM17 -> 0 | V14: 11 | X14: 0 | Y14: 0 | Z14: 0 | AA14: 0 | AB14: 0 | AC14: 0 | AD14: 0 | AE14: 0 | AF14: 0 | AH14: 0 | AI14: 0 | AJ14: 0 | AK14: 0 | AL14: 0 | AM14: 0 | AN14: 0 | AO14: 0 | AP14: 0 | AQ14: 0 | AS14: 11 | AT14: 0 | AU14: 0 | AV14: 0 | AW14: 0 | AX14: 0 | AY14: 0 | AZ14: 0 | BA14: 0 | BB14: 0 | BP14: 11 | BQ14: 0 | CE14: 0
A15: 12 | R15: ='Ekders Puantaj'!AM18 -> 0 | V15: 12 | X15: 0 | Y15: 0 | Z15: 0 | AA15: 0 | AB15: 0 | AC15: 0 | AD15: 0 | AE15: 0 | AF15: 0 | AH15: 0 | AI15: 0 | AJ15: 0 | AK15: 0 | AL15: 0 | AM15: 0 | AN15: 0 | AO15: 0 | AP15: 0 | AQ15: 0 | AS15: 12 | AT15: 0 | AU15: 0 | AV15: 0 | AW15: 0 | AX15: 0 | AY15: 0 | AZ15: 0 | BA15: 0 | BB15: 0 | BP15: 12 | BQ15: 0 | CE15: 0
A16: 13 | V16: 13 | X16: 0 | Y16: 0 | Z16: 0 | AA16: 0 | AB16: 0 | AC16: 0 | AD16: 0 | AE16: 0 | AF16: 0 | AH16: 0 | AI16: 0 | AJ16: 0 | AK16: 0 | AL16: 0 | AM16: 0 | AN16: 0 | AO16: 0 | AP16: 0 | AQ16: 0 | AS16: 13 | AT16: 0 | AU16: 0 | AV16: 0 | AW16: 0 | AX16: 0 | AY16: 0 | AZ16: 0 | BA16: 0 | BB16: 0 | BP16: 13 | BQ16: 0 | CE16: 0
A17: 14 | V17: 14 | X17: 0 | Y17: 0 | Z17: 0 | AA17: 0 | AB17: 0 | AC17: 0 | AD17: 0 | AE17: 0 | AF17: 0 | AH17: 0 | AI17: 0 | AJ17: 0 | AK17: 0 | AL17: 0 | AM17: 0 | AN17: 0 | AO17: 0 | AP17: 0 | AQ17: 0 | AS17: 14 | AT17: 0 | AU17: 0 | AV17: 0 | AW17: 0 | AX17: 0 | AY17: 0 | AZ17: 0 | BA17: 0 | BB17: 0 | BP17: 14 | BQ17: 0 | CE17: 0
A18: 15 | V18: 15 | X18: 0 | Y18: 0 | Z18: 0 | AA18: 0 | AB18: 0 | AC18: 0 | AD18: 0 | AE18: 0 | AF18: 0 | AH18: 0 | AI18: 0 | AJ18: 0 | AK18: 0 | AL18: 0 | AM18: 0 | AN18: 0 | AO18: 0 | AP18: 0 | AQ18: 0 | AS18: 15 | AT18: 0 | AU18: 0 | AV18: 0 | AW18: 0 | AX18: 0 | AY18: 0 | AZ18: 0 | BA18: 0 | BB18: 0 | BP18: 15 | BQ18: 0 | CE18: 0
A19: 16 | V19: 16 | X19: 0 | Y19: 0 | Z19: 0 | AA19: 0 | AB19: 0 | AC19: 0 | AD19: 0 | AE19: 0 | AF19: 0 | AH19: 0 | AI19: 0 | AJ19: 0 | AK19: 0 | AL19: 0 | AM19: 0 | AN19: 0 | AO19: 0 | AP19: 0 | AQ19: 0 | AS19: 16 | AT19: 0 | AU19: 0 | AV19: 0 | AW19: 0 | AX19: 0 | AY19: 0 | AZ19: 0 | BA19: 0 | BB19: 0 | BP19: 16 | BQ19: 0 | CE19: 0
A20: 17 | V20: 17 | X20: 0 | Y20: 0 | Z20: 0 | AA20: 0 | AB20: 0 | AC20: 0 | AD20: 0 | AE20: 0 | AF20: 0 | AH20: 0 | AI20: 0 | AJ20: 0 | AK20: 0 | AL20: 0 | AM20: 0 | AN20: 0 | AO20: 0 | AP20: 0 | AQ20: 0 | AS20: 17 | AT20: 0 | AU20: 0 | AV20: 0 | AW20: 0 | AX20: 0 | AY20: 0 | AZ20: 0 | BA20: 0 | BB20: 0 | BP20: 17 | BQ20: 0 | CE20: 0
A21: 18 | V21: 18 | X21: 0 | Y21: 0 | Z21: =R21 -> 0 | AA21: 0 | AB21: 0 | AC21: 0 | AD21: 0 | AE21: 0 | AF21: 0 | AH21: 0 | AI21: 0 | AJ21: 0 | AK21: 0 | AL21: 0 | AM21: 0 | AN21: 0 | AO21: 0 | AP21: 0 | AQ21: 0 | AS21: 18 | AT21: 0 | AU21: 0 | AV21: 0 | AW21: 0 | AX21: 0 | AY21: 0 | AZ21: 0 | BA21: 0 | BB21: 0 | BP21: 18 | BQ21: 0 | CE21: 0
A22: 19 | V22: 19 | X22: 0 | Y22: 0 | Z22: 0 | AA22: 0 | AB22: 0 | AC22: 0 | AD22: 0 | AE22: 0 | AF22: 0 | AH22: 0 | AI22: 0 | AJ22: 0 | AK22: 0 | AL22: 0 | AM22: 0 | AN22: 0 | AO22: 0 | AP22: 0 | AQ22: 0 | AS22: 19 | AT22: 0 | AU22: 0 | AV22: 0 | AW22: 0 | AX22: 0 | AY22: 0 | AZ22: 0 | BA22: 0 | BB22: 0 | BP22: 19 | BQ22: 0 | CE22: 0
A23: 20 | V23: 20 | X23: 0 | Y23: 0 | Z23: 0 | AA23: 0 | AB23: 0 | AC23: 0 | AD23: 0 | AE23: 0 | AF23: 0 | AH23: 0 | AI23: 0 | AJ23: 0 | AK23: 0 | AL23: 0 | AM23: 0 | AN23: 0 | AO23: 0 | AP23: 0 | AQ23: 0 | AS23: 20 | AT23: 0 | AU23: 0 | AV23: 0 | AW23: 0 | AX23: 0 | AY23: 0 | AZ23: 0 | BA23: 0 | BB23: 0 | BP23: 20 | BQ23: 0 | CE23: 0
X24: GENEL TOPLAM | Z24: =SUM(Z5:Z23) -> 20 | AA24: =SUM(AA5:AA23) -> 0 | AB24: =SUM(AB5:AB23) -> 0 | AC24: =SUM(AC5:AC23) -> 330.23 | AD24: =SUM(AD5:AD23) -> 330.23 | AE24: 67.7 | AF24: 397.93 | AG24: 0 | AH24: 284 | AI24: 42.6 | AJ24: 2.51 | AK24: 67.7 | AL24: 46.23 | AM24: 0 | AN24: 159.04 | AO24: 238.89 | AP24: 42.6 | AQ24: 281.49 | AV24: GENEL TOPLAM | AW24: 0 | AX24: 250 | AY24: 0 | AZ24: 250 | BA24: 60885 | BB24: 152.21

Sheet Bodro
A1: 1 | B1: 2 | C1: 3 | D1: 4 | H1: 29 | I1: 34 | J1: 35 | K1: 37 | L1: 38 | M1: 41 | N1: 42 | O1: 43 | P1: 44 | Q1: 45 | R1: 46 | S1: 49 | T1: 52 | U1: 53 | V1: 54 | W1: 56 | X1: 57 | Y1: 58 | Z1: 59 | AA1: 60 | AB1: 61 | AC1: 62 | AD1: 63
A2: ÜCRETLİ ÖĞRETMEN EKDERS ÜCRET BORDROSU
A4: Dairesi | C4: =Kur.Bil.!K12 -> YAHYALI ÇOK PROGRAMLI ANADOLU LİSESİ | AB4: ASGARİ GEÇİM İNDİRİM BODROSU
A5: İşyeri SGK Sicil No | C5: =Kur.Bil.!AT5 -> 185320101111655003810 -58000 | X5: ÖNEMLİ NOT:Asgari Geçim İndirim oranı en fazla %85 olup fazlası işleme alınmayacaktır.
A6: Maaş Katsayısı: | C6: =Kur.Bil.!AL8 -> 0.11794 | U6: ="Dönemi (Ay): "&Kur.Bil.!R8 -> Dönemi (Ay): EKİM | V6: EKİM
A7: As. Geç. İnd. Tutarı: | C7: =Kur.Bil.!AL9 -> 2029.5 | U7: ="Dönemi (Yıl): "&Kur.Bil.!R9 -> Dönemi (Yıl): 2018
A8: Sıra No | B8: T.C. Kimlik No | C8: Adı Soyadı | D8: Unvanı | E8: Ekders Saat Toplamı (%140 Göst.) | F8: Ekders Saat Toplamı (%150 Göst.) | G8: Ekders Saat Toplamı (%140 Göst. x %25 Fazlası) | H8: TAHAKKUK TOPLAMI | I8: SGK MATRAH TOPLAMI | J8: SGK İşveren Payı (%20,5) | K8: BRÜT TOPLAM | L8: Süregelen Yıllık Gelir Vergisi Toplamı | M8: Aylık Gelir Vergisi Matrah Toplamı | N8: Gelir Vergisi Tutarı | O8: Damga Vergisi Tutarı | P8: SGK İşveren Payı (%20,5-%22,5) | Q8: SGK İşveren Payı (%14-%7,5) | R8: İcra Kesinti Tutarı | S8: Kesinti Toplamı | T8: Ödeme Tutarı | U8: As. Gec. İnd. Tutarı | V8: Ele Geçen Tutarı | W8: Sıra No | X8: Personelin | AB8: Asgarî Ücret Brüt Tutar : | AC8: =Kur.Bil.!AG10 -> 0
X9: Adı Soyadı | Y9: Ünvanı | Z9: Medeni Hali | AA9: Çocuk Sayısı | AB9: AGİ Çal. ve Eş %'siİ | AC9: AGİ Çocuk %'si | AD9: Asgari Geçim İndirimi Oranı (%) | AE9: As. Geç. İnd. Esas Tutar | AF9: Aylık As. Geç. İnd. Tutarı [(3.sütun) X % 15] 12
A10: 1 | B10: ='Pers. Bil.'!W5 -> 29867025728 | C10: ='Pers. Bil.'!X5 -> AHMET TOLGA ÇOBAN | D10: ='Pers. Bil.'!Y5 -> Ücretli Öğret. | E10: ='Pers. Bil.'!Z5 -> 0 | F10: ='Pers. Bil.'!AA5 -> 0 | G10: ='Pers. Bil.'!AB5 -> 0 | H10: ='Pers. Bil.'!AC5 -> 0 | I10: ='Pers. Bil.'!AD5 -> 0 | J10: ='Pers. Bil.'!AE5 -> 0 | K10: ='Pers. Bil.'!AF5 -> 0 | L10: ='Pers. Bil.'!AG5 -> 0 | M10: ='Pers. Bil.'!AH5 -> 0 | N10: ='Pers. Bil.'!AI5 -> 0 | O10: ='Pers. Bil.'!AJ5 -> 0 | P10: ='Pers. Bil.'!AK5 -> 0 | Q10: ='Pers. Bil.'!AL5 -> 0 | R10: ='Pers. Bil.'!AM5 -> 0 | S10: ='Pers. Bil.'!AN5 -> 0 | T10: ='Pers. Bil.'!AO5 -> 0 | U10: ='Pers. Bil.'!AP5 -> 0 | V10: ='Pers. Bil.'!AQ5 -> 0 | W10: =A10 -> 1 | X10: ='Pers. Bil.'!AT5 -> AHMET TOLGA ÇOBAN | Y10: ='Pers. Bil.'!AU5 -> Ücretli Öğret. | Z10: ='Pers. Bil.'!AV5 -> Bekar | AA10: ='Pers. Bil.'!AW5 -> 0 | AB10: ='Pers. Bil.'!AX5 -> 50 | AC10: ='Pers. Bil.'!AY5 -> 0 | AD10: ='Pers. Bil.'!AZ5 -> 50 | AE10: ='Pers. Bil.'!BA5 -> 12177 | AF10: ='Pers. Bil.'!BB5 -> 0
A11: 2 | B11: ='Pers. Bil.'!W6 -> 28778061818 | C11: ='Pers. Bil.'!X6 -> FATMA NUR CİĞER | D11: ='Pers. Bil.'!Y6 -> Ücretli Öğret. | E11: ='Pers. Bil.'!Z6 -> 0 | F11: ='Pers. Bil.'!AA6 -> 0 | G11: ='Pers. Bil.'!AB6 -> 0 | H11: ='Pers. Bil.'!AC6 -> 0 | I11: ='Pers. Bil.'!AD6 -> 0 | J11: ='Pers. Bil.'!AE6 -> 0 | K11: ='Pers. Bil.'!AF6 -> 0 | L11: ='Pers. Bil.'!AG6 -> 0 | M11: ='Pers. Bil.'!AH6 -> 0 | N11: ='Pers. Bil.'!AI6 -> 0 | O11: ='Pers. Bil.'!AJ6 -> 0 | P11: ='Pers. Bil.'!AK6 -> 0 | Q11: ='Pers. Bil.'!AL6 -> 0 | R11: ='Pers. Bil.'!AM6 -> 0 | S11: ='Pers. Bil.'!AN6 -> 0 | T11: ='Pers. Bil.'!AO6 -> 0 | U11: ='Pers. Bil.'!AP6 -> 0 | V11: ='Pers. Bil.'!AQ6 -> 0 | W11: =A11 -> 2 | X11: ='Pers. Bil.'!AT6 -> FATMA NUR CİĞER | Y11: ='Pers. Bil.'!AU6 -> Ücretli Öğret. | Z11: ='Pers. Bil.'!AV6 -> Bekar | AA11: ='Pers. Bil.'!AW6 -> 0 | AB11: ='Pers. Bil.'!AX6 -> 50 | AC11: ='Pers. Bil.'!AY6 -> 0 | AD11: ='Pers. Bil.'!AZ6 -> 50 | AE11: ='Pers. Bil.'!BA6 -> 12177 | AF11: ='Pers. Bil.'!BB6 -> 0
A12: 3 | B12: ='Pers. Bil.'!W7 -> 28481071876 | C12: ='Pers. Bil.'!X7 -> ZELİHA OKUMUŞ | D12: ='Pers. Bil.'!Y7 -> Ücretli Öğret. | E12: ='Pers. Bil.'!Z7 -> 0 | F12: ='Pers. Bil.'!AA7 -> 0 | G12: ='Pers. Bil.'!AB7 -> 0 | H12: ='Pers. Bil.'!AC7 -> 0 | I12: ='Pers. Bil.'!AD7 -> 0 | J12: ='Pers. Bil.'!AE7 -> 0 | K12: ='Pers. Bil.'!AF7 -> 0 | L12: ='Pers. Bil.'!AG7 -> 0 | M12: ='Pers. Bil.'!AH7 -> 0 | N12: ='Pers. Bil.'!AI7 -> 0 | O12: ='Pers. Bil.'!AJ7 -> 0 | P12: ='Pers. Bil.'!AK7 -> 0 | Q12: ='Pers. Bil.'!AL7 -> 0 | R12: ='Pers. Bil.'!AM7 -> 0 | S12: ='Pers. Bil.'!AN7 -> 0 | T12: ='Pers. Bil.'!AO7 -> 0 | U12: ='Pers. Bil.'!AP7 -> 0 | V12: ='Pers. Bil.'!AQ7 -> 0 | W12: 3 | X12: ='Pers. Bil.'!AT7 -> ZELİHA OKUMUŞ | Y12: ='Pers. Bil.'!AU7 -> Ücretli Öğret. | Z12: ='Pers. Bil.'!AV7 -> Bekar | AA12: ='Pers. Bil.'!AW7 -> 0 | AB12: ='Pers. Bil.'!AX7 -> 50 | AC12: ='Pers. Bil.'!AY7 -> 0 | AD12: ='Pers. Bil.'!AZ7 -> 50 | AE12: ='Pers. Bil.'!BA7 -> 12177 | AF12: ='Pers. Bil.'!BB7 -> 0
A13: 5 | B13: ='Pers. Bil.'!W8 -> 49891358388 | C13: ='Pers. Bil.'!X8 -> MUKADDES TABAK | D13: ='Pers. Bil.'!Y8 -> Ücretli Öğret. | E13: ='Pers. Bil.'!Z8 -> 0 | F13: ='Pers. Bil.'!AA8 -> 0 | G13: ='Pers. Bil.'!AB8 -> 0 | H13: ='Pers. Bil.'!AC8 -> 0 | I13: ='Pers. Bil.'!AD8 -> 0 | J13: ='Pers. Bil.'!AE8 -> 0 | K13: ='Pers. Bil.'!AF8 -> 0 | L13: ='Pers. Bil.'!AG8 -> 0 | M13: ='Pers. Bil.'!AH8 -> 0 | N13: ='Pers. Bil.'!AI8 -> 0 | O13: ='Pers. Bil.'!AJ8 -> 0 | P13: ='Pers. Bil.'!AK8 -> 0 | Q13: ='Pers. Bil.'!AL8 -> 0 | R13: ='Pers. Bil.'!AM8 -> 0 | S13: ='Pers. Bil.'!AN8 -> 0 | T13: ='Pers. Bil.'!AO8 -> 0 | U13: ='Pers. Bil.'!AP8 -> 0 | V13: ='Pers. Bil.'!AQ8 -> 0 | W13: 5 | X13: ='Pers. Bil.'!AT8 -> MUKADDES TABAK | Y13: ='Pers. Bil.'!AU8 -> Ücretli Öğret. | Z13: ='Pers. Bil.'!AV8 -> Bekar | AA13: ='Pers. Bil.'!AW8 -> 0 | AB13: ='Pers. Bil.'!AX8 -> 50 | AC13: ='Pers. Bil.'!AY8 -> 0 | AD13: ='Pers. Bil.'!AZ8 -> 50 | AE13: ='Pers. Bil.'!BA8 -> 12177 | AF13: ='Pers. Bil.'!BB8 -> 0
A14: 6 | B14: ='Pers. Bil.'!W9 -> 49462372478 | C14: ='Pers. Bil.'!X9 -> VİLDAN GEYİK | D14: ='Pers. Bil.'!Y9 -> Ücretli Öğret. | E14: ='Pers. Bil.'!Z9 -> 20 | F14: ='Pers. Bil.'!AA9 -> 0 | G14: ='Pers. Bil.'!AB9 -> 0 | H14: ='Pers. Bil.'!AC9 -> 330.23 | I14: ='Pers. Bil.'!AD9 -> 330.23 | J14: ='Pers. Bil.'!AE9 -> 67.7 | K14: ='Pers. Bil.'!AF9 -> 397.93 | L14: ='Pers. Bil.'!AG9 -> 0 | M14: ='Pers. Bil.'!AH9 -> 284 | N14: ='Pers. Bil.'!AI9 -> 42.6 | O14: ='Pers. Bil.'!AJ9 -> 2.51 | P14: ='Pers. Bil.'!AK9 -> 67.7 | Q14: ='Pers. Bil.'!AL9 -> 46.23 | R14: ='Pers. Bil.'!AM9 -> 0 | S14: ='Pers. Bil.'!AN9 -> 159.04 | T14: ='Pers. Bil.'!AO9 -> 238.89 | U14: ='Pers. Bil.'!AP9 -> 42.6 | V14: ='Pers. Bil.'!AQ9 -> 281.49 | W14: 6 | X14: ='Pers. Bil.'!AT9 -> VİLDAN GEYİK | Y14: ='Pers. Bil.'!AU9 -> Ücretli Öğret. | Z14: ='Pers. Bil.'!AV9 -> Bekar | AA14: ='Pers. Bil.'!AW9 -> 0 | AB14: ='Pers. Bil.'!AX9 -> 50 | AC14: ='Pers. Bil.'!AY9 -> 0 | AD14: ='Pers. Bil.'!AZ9 -> 50 | AE14: ='Pers. Bil.'!BA9 -> 12177 | AF14: ='Pers. Bil.'!BB9 -> 152.21
A15: 7 | B15: ='Pers. Bil.'!W10 -> 0 | C15: ='Pers. Bil.'!X10 -> 0 | D15: ='Pers. Bil.'!Y10 -> 0 | E15: ='Pers. Bil.'!Z10 -> 0 | F15: ='Pers. Bil.'!AA10 -> 0 | G15: ='Pers. Bil.'!AB10 -> 0 | H15: ='Pers. Bil.'!AC10 -> 0 | I15: ='Pers. Bil.'!AD10 -> 0 | J15: ='Pers. Bil.'!AE10 -> 0 | K15: ='Pers. Bil.'!AF10 -> 0 | L15: ='Pers. Bil.'!AG10 -> 0 | M15: ='Pers. Bil.'!AH10 -> 0 | N15: ='Pers. Bil.'!AI10 -> 0 | O15: ='Pers. Bil.'!AJ10 -> 0 | P15: ='Pers. Bil.'!AK10 -> 0 | Q15: ='Pers. Bil.'!AL10 -> 0 | R15: ='Pers. Bil.'!AM10 -> 0 | S15: ='Pers. Bil.'!AN10 -> 0 | T15: ='Pers. Bil.'!AO10 -> 0 | U15: ='Pers. Bil.'!AP10 -> 0 | V15: ='Pers. Bil.'!AQ10 -> 0 | W15: 7 | X15: ='Pers. Bil.'!AT10 -> 0 | Y15: ='Pers. Bil.'!AU10 -> 0 | Z15: ='Pers. Bil.'!AV10 -> 0 | AA15: ='Pers. Bil.'!AW10 -> 0 | AB15: ='Pers. Bil.'!AX10 -> 0 | AC15: ='Pers. Bil.'!AY10 -> 0 | AD15: ='Pers. Bil.'!AZ10 -> 0 | AE15: ='Pers. Bil.'!BA10 -> 0 | AF15: ='Pers. Bil.'!BB10 -> 0
A16: 8 | B16: ='Pers. Bil.'!W11 -> 0 | C16: ='Pers. Bil.'!X11 -> 0 | D16: ='Pers. Bil.'!Y11 -> 0 | E16: ='Pers. Bil.'!Z11 -> 0 | F16: ='Pers. Bil.'!AA11 -> 0 | G16: ='Pers. Bil.'!AB11 -> 0 | H16: ='Pers. Bil.'!AC11 -> 0 | I16: ='Pers. Bil.'!AD11 -> 0 | J16: ='Pers. Bil.'!AE11 -> 0 | K16: ='Pers. Bil.'!AF11 -> 0 | L16: ='Pers. Bil.'!AG11 -> 0 | M16: ='Pers. Bil.'!AH11 -> 0 | N16: ='Pers. Bil.'!AI11 -> 0 | O16: ='Pers. Bil.'!AJ11 -> 0 | P16: ='Pers. Bil.'!AK11 -> 0 | Q16: ='Pers. Bil.'!AL11 -> 0 | R16: ='Pers. Bil.'!AM11 -> 0 | S16: ='Pers. Bil.'!AN11 -> 0 | T16: ='Pers. Bil.'!AO11 -> 0 | U16: ='Pers. Bil.'!AP11 -> 0 | V16: ='Pers. Bil.'!AQ11 -> 0 | W16: 8 | X16: ='Pers. Bil.'!AT11 -> 0 | Y16: ='Pers. Bil.'!AU11 -> 0 | Z16: ='Pers. Bil.'!AV11 -> 0 | AA16: ='Pers. Bil.'!AW11 -> 0 | AB16: ='Pers. Bil.'!AX11 -> 0 | AC16: ='Pers. Bil.'!AY11 -> 0 | AD16: ='Pers. Bil.'!AZ11 -> 0 | AE16: ='Pers. Bil.'!BA11 -> 0 | AF16: ='Pers. Bil.'!BB11 -> 0
A17: 9 | B17: ='Pers. Bil.'!W12 -> 0 | C17: ='Pers. Bil.'!X12 -> 0 | D17: ='Pers. Bil.'!Y12 -> 0 | E17: ='Pers. Bil.'!Z12 -> 0 | F17: ='Pers. Bil.'!AA12 -> 0 | G17: ='Pers. Bil.'!AB12 -> 0 | H17: ='Pers. Bil.'!AC12 -> 0 | I17: ='Pers. Bil.'!AD12 -> 0 | J17: ='Pers. Bil.'!AE12 -> 0 | K17: ='Pers. Bil.'!AF12 -> 0 | L17: ='Pers. Bil.'!AG12 -> 0 | M17: ='Pers. Bil.'!AH12 -> 0 | N17: ='Pers. Bil.'!AI12 -> 0 | O17: ='Pers. Bil.'!AJ12 -> 0 | P17: ='Pers. Bil.'!AK12 -> 0 | Q17: ='Pers. Bil.'!AL12 -> 0 | R17: ='Pers. Bil.'!AM12 -> 0 | S17: ='Pers. Bil.'!AN12 -> 0 | T17: ='Pers. Bil.'!AO12 -> 0 | U17: ='Pers. Bil.'!AP12 -> 0 | V17: ='Pers. Bil.'!AQ12 -> 0 | W17: 9 | X17: ='Pers. Bil.'!AT12 -> 0 | Y17: ='Pers. Bil.'!AU12 -> 0 | Z17: ='Pers. Bil.'!AV12 -> 0 | AA17: ='Pers. Bil.'!AW12 -> 0 | AB17: ='Pers. Bil.'!AX12 -> 0 | AC17: ='Pers. Bil.'!AY12 -> 0 | AD17: ='Pers. Bil.'!AZ12 -> 0 | AE17: ='Pers. Bil.'!BA12 -> 0 | AF17: ='Pers. Bil.'!BB12 -> 0
A18: 10 | B18: ='Pers. Bil.'!W13 -> 0 | C18: ='Pers. Bil.'!X13 -> 0 | D18: ='Pers. Bil.'!Y13 -> 0 | E18: ='Pers. Bil.'!Z13 -> 0 | F18: ='Pers. Bil.'!AA13 -> 0 | G18: ='Pers. Bil.'!AB13 -> 0 | H18: ='Pers. Bil.'!AC13 -> 0 | I18: ='Pers. Bil.'!AD13 -> 0 | J18: ='Pers. Bil.'!AE13 -> 0 | K18: ='Pers. Bil.'!AF13 -> 0 | L18: ='Pers. Bil.'!AG13 -> 0 | M18: ='Pers. Bil.'!AH13 -> 0 | N18: ='Pers. Bil.'!AI13 -> 0 | O18: ='Pers. Bil.'!AJ13 -> 0 | P18: ='Pers. Bil.'!AK13 -> 0 | Q18: ='Pers. Bil.'!AL13 -> 0 | R18: ='Pers. Bil.'!AM13 -> 0 | S18: ='Pers. Bil.'!AN13 -> 0 | T18: ='Pers. Bil.'!AO13 -> 0 | U18: ='Pers. Bil.'!AP13 -> 0 | V18: ='Pers. Bil.'!AQ13 -> 0 | W18: 10 | X18: ='Pers. Bil.'!AT13 -> 0 | Y18: ='Pers. Bil.'!AU13 -> 0 | Z18: ='Pers. Bil.'!AV13 -> 0 | AA18: ='Pers. Bil.'!AW13 -> 0 | AB18: ='Pers. Bil.'!AX13 -> 0 | AC18: ='Pers. Bil.'!AY13 -> 0 | AD18: ='Pers. Bil.'!AZ13 -> 0 | AE18: ='Pers. Bil.'!BA13 -> 0 | AF18: ='Pers. Bil.'!BB13 -> 0
A19: 11 | B19: ='Pers. Bil.'!W14 -> 0 | C19: ='Pers. Bil.'!X14 -> 0 | D19: ='Pers. Bil.'!Y14 -> 0 | E19: ='Pers. Bil.'!Z14 -> 0 | F19: ='Pers. Bil.'!AA14 -> 0 | G19: ='Pers. Bil.'!AB14 -> 0 | H19: ='Pers. Bil.'!AC14 -> 0 | I19: ='Pers. Bil.'!AD14 -> 0 | J19: ='Pers. Bil.'!AE14 -> 0 | K19: ='Pers. Bil.'!AF14 -> 0 | L19: ='Pers. Bil.'!AG14 -> 0 | M19: ='Pers. Bil.'!AH14 -> 0 | N19: ='Pers. Bil.'!AI14 -> 0 | O19: ='Pers. Bil.'!AJ14 -> 0 | P19: ='Pers. Bil.'!AK14 -> 0 | Q19: ='Pers. Bil.'!AL14 -> 0 | R19: ='Pers. Bil.'!AM14 -> 0 | S19: ='Pers. Bil.'!AN14 -> 0 | T19: ='Pers. Bil.'!AO14 -> 0 | U19: ='Pers. Bil.'!AP14 -> 0 | V19: ='Pers. Bil.'!AQ14 -> 0 | W19: 11 | X19: ='Pers. Bil.'!AT14 -> 0 | Y19: ='Pers. Bil.'!AU14 -> 0 | Z19: ='Pers. Bil.'!AV14 -> 0 | AA19: ='Pers. Bil.'!AW14 -> 0 | AB19: ='Pers. Bil.'!AX14 -> 0 | AC19: ='Pers. Bil.'!AY14 -> 0 | AD19: ='Pers. Bil.'!AZ14 -> 0 | AE19: ='Pers. Bil.'!BA14 -> 0 | AF19: ='Pers. Bil.'!BB14 -> 0
A20: 12 | B20: ='Pers. Bil.'!W15 -> 0 | C20: ='Pers. Bil.'!X15 -> 0 | D20: ='Pers. Bil.'!Y15 -> 0 | E20: ='Pers. Bil.'!Z15 -> 0 | F20: ='Pers. Bil.'!AA15 -> 0 | G20: ='Pers. Bil.'!AB15 -> 0 | H20: ='Pers. Bil.'!AC15 -> 0 | I20: ='Pers. Bil.'!AD15 -> 0 | J20: ='Pers. Bil.'!AE15 -> 0 | K20: ='Pers. Bil.'!AF15 -> 0 | L20: ='Pers. Bil.'!AG15 -> 0 | M20: ='Pers. Bil.'!AH15 -> 0 | N20: ='Pers. Bil.'!AI15 -> 0 | O20: ='Pers. Bil.'!AJ15 -> 0 | P20: ='Pers. Bil.'!AK15 -> 0 | Q20: ='Pers. Bil.'!AL15 -> 0 | R20: ='Pers. Bil.'!AM15 -> 0 | S20: ='Pers. Bil.'!AN15 -> 0 | T20: ='Pers. Bil.'!AO15 -> 0 | U20: ='Pers. Bil.'!AP15 -> 0 | V20: ='Pers. Bil.'!AQ15 -> 0 | W20: 12 | X20: ='Pers. Bil.'!AT15 -> 0 | Y20: ='Pers. Bil.'!AU15 -> 0 | Z20: ='Pers. Bil.'!AV15 -> 0 | AA20: ='Pers. Bil.'!AW15 -> 0 | AB20: ='Pers. Bil.'!AX15 -> 0 | AC20: ='Pers. Bil.'!AY15 -> 0 | AD20: ='Pers. Bil.'!AZ15 -> 0 | AE20: ='Pers. Bil.'!BA15 -> 0 | AF20: ='Pers. Bil.'!BB15 -> 0
A21: 13 | B21: ='Pers. Bil.'!W16 -> 0 | C21: ='Pers. Bil.'!X16 -> 0 | D21: ='Pers. Bil.'!Y16 -> 0 | E21: ='Pers. Bil.'!Z16 -> 0 | F21: ='Pers. Bil.'!AA16 -> 0 | G21: ='Pers. Bil.'!AB16 -> 0 | H21: ='Pers. Bil.'!AC16 -> 0 | I21: ='Pers. Bil.'!AD16 -> 0 | J21: ='Pers. Bil.'!AE16 -> 0 | K21: ='Pers. Bil.'!AF16 -> 0 | L21: ='Pers. Bil.'!AG16 -> 0 | M21: ='Pers. Bil.'!AH16 -> 0 | N21: ='Pers. Bil.'!AI16 -> 0 | O21: ='Pers. Bil.'!AJ16 -> 0 | P21: ='Pers. Bil.'!AK16 -> 0 | Q21: ='Pers. Bil.'!AL16 -> 0 | R21: ='Pers. Bil.'!AM16 -> 0 | S21: ='Pers. Bil.'!AN16 -> 0 | T21: ='Pers. Bil.'!AO16 -> 0 | U21: ='Pers. Bil.'!AP16 -> 0 | V21: ='Pers. Bil.'!AQ16 -> 0 | W21: 13 | X21: ='Pers. Bil.'!AT16 -> 0 | Y21: ='Pers. Bil.'!AU16 -> 0 | Z21: ='Pers. Bil.'!AV16 -> 0 | AA21: ='Pers. Bil.'!AW16 -> 0 | AB21: ='Pers. Bil.'!AX16 -> 0 | AC21: ='Pers. Bil.'!AY16 -> 0 | AD21: ='Pers. Bil.'!AZ16 -> 0 | AE21: ='Pers. Bil.'!BA16 -> 0 | AF21: ='Pers. Bil.'!BB16 -> 0
A22: 14 | B22: ='Pers. Bil.'!W17 -> 0 | C22: ='Pers. Bil.'!X17 -> 0 | D22: ='Pers. Bil.'!Y17 -> 0 | E22: ='Pers. Bil.'!Z17 -> 0 | F22: ='Pers. Bil.'!AA17 -> 0 | G22: ='Pers. Bil.'!AB17 -> 0 | H22: ='Pers. Bil.'!AC17 -> 0 | I22: ='Pers. Bil.'!AD17 -> 0 | J22: ='Pers. Bil.'!AE17 -> 0 | K22: ='Pers. Bil.'!AF17 -> 0 | L22: ='Pers. Bil.'!AG17 -> 0 | M22: ='Pers. Bil.'!AH17 -> 0 | N22: ='Pers. Bil.'!AI17 -> 0 | O22: ='Pers. Bil.'!AJ17 -> 0 | P22: ='Pers. Bil.'!AK17 -> 0 | Q22: ='Pers. Bil.'!AL17 -> 0 | R22: ='Pers. Bil.'!AM17 -> 0 | S22: ='Pers. Bil.'!AN17 -> 0 | T22: ='Pers. Bil.'!AO17 -> 0 | U22: ='Pers. Bil.'!AP17 -> 0 | V22: ='Pers. Bil.'!AQ17 -> 0 | W22: 14 | X22: ='Pers. Bil.'!AT17 -> 0 | Y22: ='Pers. Bil.'!AU17 -> 0 | Z22: ='Pers. Bil.'!AV17 -> 0 | AA22: ='Pers. Bil.'!AW17 -> 0 | AB22: ='Pers. Bil.'!AX17 -> 0 | AC22: ='Pers. Bil.'!AY17 -> 0 | AD22: ='Pers. Bil.'!AZ17 -> 0 | AE22: ='Pers. Bil.'!BA17 -> 0 | AF22: ='Pers. Bil.'!BB17 -> 0
A23: 15 | B23: ='Pers. Bil.'!W18 -> 0 | C23: ='Pers. Bil.'!X18 -> 0 | D23: ='Pers. Bil.'!Y18 -> 0 | E23: ='Pers. Bil.'!Z18 -> 0 | F23: ='Pers. Bil.'!AA18 -> 0 | G23: ='Pers. Bil.'!AB18 -> 0 | H23: ='Pers. Bil.'!AC18 -> 0 | I23: ='Pers. Bil.'!AD18 -> 0 | J23: ='Pers. Bil.'!AE18 -> 0 | K23: ='Pers. Bil.'!AF18 -> 0 | L23: ='Pers. Bil.'!AG18 -> 0 | M23: ='Pers. Bil.'!AH18 -> 0 | N23: ='Pers. Bil.'!AI18 -> 0 | O23: ='Pers. Bil.'!AJ18 -> 0 | P23: ='Pers. Bil.'!AK18 -> 0 | Q23: ='Pers. Bil.'!AL18 -> 0 | R23: ='Pers. Bil.'!AM18 -> 0 | S23: ='Pers. Bil.'!AN18 -> 0 | T23: ='Pers. Bil.'!AO18 -> 0 | U23: ='Pers. Bil.'!AP18 -> 0 | V23: ='Pers. Bil.'!AQ18 -> 0 | W23: 15 | X23: ='Pers. Bil.'!AT18 -> 0 | Y23: ='Pers. Bil.'!AU18 -> 0 | Z23: ='Pers. Bil.'!AV18 -> 0 | AA23: ='Pers. Bil.'!AW18 -> 0 | AB23: ='Pers. Bil.'!AX18 -> 0 | AC23: ='Pers. Bil.'!AY18 -> 0 | AD23: ='Pers. Bil.'!AZ18 -> 0 | AE23: ='Pers. Bil.'!BA18 -> 0 | AF23: ='Pers. Bil.'!BB18 -> 0
A24: 16 | B24: ='Pers. Bil.'!W19 -> 0 | C24: ='Pers. Bil.'!X19 -> 0 | D24: ='Pers. Bil.'!Y19 -> 0 | E24: ='Pers. Bil.'!Z19 -> 0 | F24: ='Pers. Bil.'!AA19 -> 0 | G24: ='Pers. Bil.'!AB19 -> 0 | H24: ='Pers. Bil.'!AC19 -> 0 | I24: ='Pers. Bil.'!AD19 -> 0 | J24: ='Pers. Bil.'!AE19 -> 0 | K24: ='Pers. Bil.'!AF19 -> 0 | L24: ='Pers. Bil.'!AG19 -> 0 | M24: ='Pers. Bil.'!AH19 -> 0 | N24: ='Pers. Bil.'!AI19 -> 0 | O24: ='Pers. Bil.'!AJ19 -> 0 | P24: ='Pers. Bil.'!AK19 -> 0 | Q24: ='Pers. Bil.'!AL19 -> 0 | R24: ='Pers. Bil.'!AM19 -> 0 | S24: ='Pers. Bil.'!AN19 -> 0 | T24: ='Pers. Bil.'!AO19 -> 0 | U24: ='Pers. Bil.'!AP19 -> 0 | V24: ='Pers. Bil.'!AQ19 -> 0 | W24: 16 | X24: ='Pers. Bil.'!AT19 -> 0 | Y24: ='Pers. Bil.'!AU19 -> 0 | Z24: ='Pers. Bil.'!AV19 -> 0 | AA24: ='Pers. Bil.'!AW19 -> 0 | AB24: ='Pers. Bil.'!AX19 -> 0 | AC24: ='Pers. Bil.'!AY19 -> 0 | AD24: ='Pers. Bil.'!AZ19 -> 0 | AE24: ='Pers. Bil.'!BA19 -> 0 | AF24: ='Pers. Bil.'!BB19 -> 0
A25: 17 | B25: ='Pers. Bil.'!W20 -> 0 | C25: ='Pers. Bil.'!X20 -> 0 | D25: ='Pers. Bil.'!Y20 -> 0 | E25: ='Pers. Bil.'!Z20 -> 0 | F25: ='Pers. Bil.'!AA20 -> 0 | G25: ='Pers. Bil.'!AB20 -> 0 | H25: ='Pers. Bil.'!AC20 -> 0 | I25: ='Pers. Bil.'!AD20 -> 0 | J25: ='Pers. Bil.'!AE20 -> 0 | K25: ='Pers. Bil.'!AF20 -> 0 | L25: ='Pers. Bil.'!AG20 -> 0 | M25: ='Pers. Bil.'!AH20 -> 0 | N25: ='Pers. Bil.'!AI20 -> 0 | O25: ='Pers. Bil.'!AJ20 -> 0 | P25: ='Pers. Bil.'!AK20 -> 0 | Q25: ='Pers. Bil.'!AL20 -> 0 | R25: ='Pers. Bil.'!AM20 -> 0 | S25: ='Pers. Bil.'!AN20 -> 0 | T25: ='Pers. Bil.'!AO20 -> 0 | U25: ='Pers. Bil.'!AP20 -> 0 | V25: ='Pers. Bil.'!AQ20 -> 0 | W25: 17 | X25: ='Pers. Bil.'!AT20 -> 0 | Y25: ='Pers. Bil.'!AU20 -> 0 | Z25: ='Pers. Bil.'!AV20 -> 0 | AA25: ='Pers. Bil.'!AW20 -> 0 | AB25: ='Pers. Bil.'!AX20 -> 0 | AC25: ='Pers. Bil.'!AY20 -> 0 | AD25: ='Pers. Bil.'!AZ20 -> 0 | AE25: ='Pers. Bil.'!BA20 -> 0 | AF25: ='Pers. Bil.'!BB20 -> 0
A26: 18 | B26: ='Pers. Bil.'!W21 -> 0 | C26: ='Pers. Bil.'!X21 -> 0 | D26: ='Pers. Bil.'!Y21 -> 0 | E26: ='Pers. Bil.'!Z21 -> 0 | F26: ='Pers. Bil.'!AA21 -> 0 | G26: ='Pers. Bil.'!AB21 -> 0 | H26: ='Pers. Bil.'!AC21 -> 0 | I26: ='Pers. Bil.'!AD21 -> 0 | J26: ='Pers. Bil.'!AE21 -> 0 | K26: ='Pers. Bil.'!AF21 -> 0 | L26: ='Pers. Bil.'!AG21 -> 0 | M26: ='Pers. Bil.'!AH21 -> 0 | N26: ='Pers. Bil.'!AI21 -> 0 | O26: ='Pers. Bil.'!AJ21 -> 0 | P26: ='Pers. Bil.'!AK21 -> 0 | Q26: ='Pers. Bil.'!AL21 -> 0 | R26: ='Pers. Bil.'!AM21 -> 0 | S26: ='Pers. Bil.'!AN21 -> 0 | T26: ='Pers. Bil.'!AO21 -> 0 | U26: ='Pers. Bil.'!AP21 -> 0 | V26: ='Pers. Bil.'!AQ21 -> 0 | W26: 18 | X26: ='Pers. Bil.'!AT21 -> 0 | Y26: ='Pers. Bil.'!AU21 -> 0 | Z26: ='Pers. Bil.'!AV21 -> 0 | AA26: ='Pers. Bil.'!AW21 -> 0 | AB26: ='Pers. Bil.'!AX21 -> 0 | AC26: ='Pers. Bil.'!AY21 -> 0 | AD26: ='Pers. Bil.'!AZ21 -> 0 | AE26: ='Pers. Bil.'!BA21 -> 0 | AF26: ='Pers. Bil.'!BB21 -> 0
A27: 19 | B27: ='Pers. Bil.'!W22 -> 0 | C27: ='Pers. Bil.'!X22 -> 0 | D27: ='Pers. Bil.'!Y22 -> 0 | E27: ='Pers. Bil.'!Z22 -> 0 | F27: ='Pers. Bil.'!AA22 -> 0 | G27: ='Pers. Bil.'!AB22 -> 0 | H27: ='Pers. Bil.'!AC22 -> 0 | I27: ='Pers. Bil.'!AD22 -> 0 | J27: ='Pers. Bil.'!AE22 -> 0 | K27: ='Pers. Bil.'!AF22 -> 0 | L27: ='Pers. Bil.'!AG22 -> 0 | M27: ='Pers. Bil.'!AH22 -> 0 | N27: ='Pers. Bil.'!AI22 -> 0 | O27: ='Pers. Bil.'!AJ22 -> 0 | P27: ='Pers. Bil.'!AK22 -> 0 | Q27: ='Pers. Bil.'!AL22 -> 0 | R27: ='Pers. Bil.'!AM22 -> 0 | S27: ='Pers. Bil.'!AN22 -> 0 | T27: ='Pers. Bil.'!AO22 -> 0 | U27: ='Pers. Bil.'!AP22 -> 0 | V27: ='Pers. Bil.'!AQ22 -> 0 | W27: 19 | X27: ='Pers. Bil.'!AT22 -> 0 | Y27: ='Pers. Bil.'!AU22 -> 0 | Z27: ='Pers. Bil.'!AV22 -> 0 | AA27: ='Pers. Bil.'!AW22 -> 0 | AB27: ='Pers. Bil.'!AX22 -> 0 | AC27: ='Pers. Bil.'!AY22 -> 0 | AD27: ='Pers. Bil.'!AZ22 -> 0 | AE27: ='Pers. Bil.'!BA22 -> 0 | AF27: ='Pers. Bil.'!BB22 -> 0
A28: 20 | B28: ='Pers. Bil.'!W23 -> 0 | C28: ='Pers. Bil.'!X23 -> 0 | D28: ='Pers. Bil.'!Y23 -> 0 | E28: ='Pers. Bil.'!Z23 -> 0 | F28: ='Pers. Bil.'!AA23 -> 0 | G28: ='Pers. Bil.'!AB23 -> 0 | H28: ='Pers. Bil.'!AC23 -> 0 | I28: ='Pers. Bil.'!AD23 -> 0 | J28: ='Pers. Bil.'!AE23 -> 0 | K28: ='Pers. Bil.'!AF23 -> 0 | L28: ='Pers. Bil.'!AG23 -> 0 | M28: ='Pers. Bil.'!AH23 -> 0 | N28: ='Pers. Bil.'!AI23 -> 0 | O28: ='Pers. Bil.'!AJ23 -> 0 | P28: ='Pers. Bil.'!AK23 -> 0 | Q28: ='Pers. Bil.'!AL23 -> 0 | R28: ='Pers. Bil.'!AM23 -> 0 | S28: ='Pers. Bil.'!AN23 -> 0 | T28: ='Pers. Bil.'!AO23 -> 0 | U28: ='Pers. Bil.'!AP23 -> 0 | V28: ='Pers. Bil.'!AQ23 -> 0 | W28: 20 | X28: ='Pers. Bil.'!AT23 -> 0 | Y28: ='Pers. Bil.'!AU23 -> 0 | Z28: ='Pers. Bil.'!AV23 -> 0 | AA28: ='Pers. Bil.'!AW23 -> 0 | AB28: ='Pers. Bil.'!AX23 -> 0 | AC28: ='Pers. Bil.'!AY23 -> 0 | AD28: ='Pers. Bil.'!AZ23 -> 0 | AE28: ='Pers. Bil.'!BA23 -> 0 | AF28: ='Pers. Bil.'!BB23 -> 0
C29: GENEL TOPLAM | H29: =SUM(H10:H28) -> 330.23 | I29: 330.23 | J29: 67.7 | K29: 397.93 | L29: 0 | M29: 284 | N29: 42.6 | O29: 2.51 | P29: 67.7 | Q29: 46.23 | R29: 0 | S29: 159.04 | T29: 238.89 | U29: 42.6 | V29: 281.49 | W29: =A29 -> 0 | X29: =SUM(X10:X28) -> 0 | AD29: =SUM(AD10:AD28) -> 250
B30: Müdürlüğümüzde görevli ücretli öğretmenlerin | D30: EKİM | E30: ayı ekders ücreti bordrosudur.
C33: Düzenleyen | S33: Gerçekleştirme Görevlisi
C34: =TODAY() -> 2018-10-09 | S34: =TODAY() -> 2018-10-09
B35: Adı Soyadı : | C35: Yasin CEPECİ | R35: Adı Soyadı : | S35: Yasin CEPECİ
B36: Ünvanı : | C36: Müdür Yrd. | R36: Ünvanı : | S36: Müdür Yrd.
B37: İmza : | C37: …………………………………… | R37: İmza : | S37: ……………………………….
A41: M.Y.H.B.Y.

Sheet Kişi Bodrosu
A2: ÜCRETLİ ÖĞRETMEN EKDERS ÜCRET BORDROSU
A5: ="Kurum Adı: "&Kur.Bil.!K12 -> Kurum Adı: YAHYALI ÇOK PROGRAMLI ANADOLU LİSESİ
A6: ="Dönemi (Ay): "&Kur.Bil.!R8 -> Dönemi (Ay): EKİM
A7: ="Dönemi (Yıl): "&Kur.Bil.!R9 -> Dönemi (Yıl): 2018
A9: Sıra No | B9: 1 | D9: Süregelen Yıllık Gelir Vergisi Toplamı | E9: =VLOOKUP($B$9,Bodro!$A$10:$AD$80,12,0) -> 0
A10: T.C. Kimlik No | B10: =VLOOKUP($B$9,Bodro!$A$10:$AD$80,2,0) -> 29867025728 | D10: Aylık Gelir Vergisi Matrah Toplamı | E10: =VLOOKUP($B$9,Bodro!$A$10:$AD$80,13,0) -> 0
A11: Adı Soyadı | B11: =VLOOKUP($B$9,Bodro!$A$10:$AD$80,3,0) -> AHMET TOLGA ÇOBAN | D11: Gelir Vergisi Tutarı | E11: =VLOOKUP($B$9,Bodro!$A$10:$AD$80,14,0) -> 0
A12: Unvanı | B12: =VLOOKUP($B$9,Bodro!$A$10:$AD$80,4,0) -> Ücretli Öğret. | D12: Damga Vergisi Tutarı | E12: =VLOOKUP($B$9,Bodro!$A$10:$AD$80,15,0) -> 0
A13: Ekders Saat Toplamı (%140 Göst.) | B13: =VLOOKUP($B$9,Bodro!$A$10:$AD$80,5,0) -> 0 | D13: SGK İşveren Payı (%20,5-%22,5) | E13: =VLOOKUP($B$9,Bodro!$A$10:$AD$80,16,0) -> 0
A14: Ekders Saat Toplamı (%150 Göst.) | B14: =VLOOKUP($B$9,Bodro!$A$10:$AD$80,6,0) -> 0 | D14: SGK İşveren Payı (%14-%7,5) | E14: =VLOOKUP($B$9,Bodro!$A$10:$AD$80,17,0) -> 0
A15: Ekders Saat Toplamı (%140 Göst. x %25 Fazlası) | B15: =VLOOKUP($B$9,Bodro!$A$10:$AD$80,7,0) -> 0 | D15: İcra Kesinti Tutarı | E15: =VLOOKUP($B$9,Bodro!$A$10:$AD$80,18,0) -> 0
A16: TAHAKKUK TOPLAMI | B16: =VLOOKUP($B$9,Bodro!$A$10:$AD$80,8,0) -> 0 | D16: Kesinti Toplamı | E16: =VLOOKUP($B$9,Bodro!$A$10:$AD$80,19,0) -> 0
A17: SGK MATRAH TOPLAMI | B17: =VLOOKUP($B$9,Bodro!$A$10:$AD$80,9,0) -> 0 | D17: Ödeme Tutarı | E17: =VLOOKUP($B$9,Bodro!$A$10:$AD$80,20,0) -> 0
A18: SGK İşveren Payı (%20,5) | B18: =VLOOKUP($B$9,Bodro!$A$10:$AD$80,10,0) -> 0 | D18: As. Gec. İnd. Tutarı | E18: =VLOOKUP($B$9,Bodro!$A$10:$AD$80,21,0) -> 0
A19: BRÜT TOPLAM | B19: =VLOOKUP($B$9,Bodro!$A$10:$AD$80,11,0) -> 0 | D19: Ele Geçen Tutarı | E19: =VLOOKUP($B$9,Bodro!$A$10:$AD$80,22,0) -> 0
A23: Yukarıda kimlik bilgileri bulunan kişi Müdürlüğümüzde 2016.-2017 Eğitim öğretim döneminde ücretli öğretmen olarak görev yapmak üzere sözleşme yapılan personele ait iş bu "Ücret Öğretmen Ekders Ücret Bodrosu" personelin talebi üzerine düzenlenmiştir. Bu belgede silinti veya kazıntı olması durumunda Müdürlüğümüz kayıtları esasdır.
A27: Düzenleyen | E27: Gerçekleştirme Görevlisi
A28: =TODAY() -> 2018-10-09 | E28: =TODAY() -> 2018-10-09
A29: Adı ve Soyadı :OSMAN BAYER | E29: Adı Soyadı :AHMET OSMANCA
A30: Ünvanı :MÜDÜR YRD. | E30: Ünvanı :OKUL MÜDÜRÜ
A31: İmza :……………………………… | E31: İmza :………………………………..

Sheet XML Hes.
H1: Bordro Tahakuk Bilgileri | N1: E-Bildirge Tahakuk Bilgileri
G2: Açıklamalar | H2: SGK Bordro PEK Tutarı | K2: PEK Toplamı | M2: Açıklamalar | N2: PEK Tutarı | P2: Kesinti Tutarı
G3: SGK Matrah Tutarı | H3: ='Pers. Bil.'!AD24 -> 330.23 | K3: =H3 -> 330.23 | M3: 13 Nolu e-Bil. Tah. Tutarı
G4: SGK İşveren Hissesi | H4: =Bodro!Q29 -> 46.23 | M4: 05 Nolu e-Bil. Tah. Tutarı
B5: =Bodro!I29 -> 330.23 | G5: SGK İşçi Pirim Hissesi | H5: =Bodro!R29 -> 0 | M5: GENEL TOPLAM | N5: =SUM(N3:N4) -> 0 | P5: =SUM(P3:Q4) -> 0
B6: =Bodro!Q29+Bodro!R29 -> 46.23 | D6: SGK Kesinti Toplamı | G6: GENEL TOPLAM
A7: UYARI; BU SAYFADAKİ BİLGİLER XML DOSYASININ HAZIRLANMASI İÇİN GEREKLİ BİLGİLERİ İÇERDİĞİNDEN İŞLEM YAPMAYINIZ.
K8: Prim | L8: işe | M8: işten | N8: eksik | O8: eksik | P8: işten | R8: İstirahat | U8: BORDRO ÜCRET TUTARI | V8: BODRO İKRAMİYE TUTARI | W8: Tediye İkramiye | X8: İkramiye Toplamı | Z8: Maaş | AA8: İkramiye
A9: Sıra | B9: Belge | C9: Kanun | D9: Sigortalı | E9: SGNO (TC Kimlik) | F9: Sigortalı Adı | G9: Sigortalı Soyadı | H9: Sigortalı | I9: ÜCRET | J9: İKRAMİYE | K9: Öd. | L9: giriş g. | M9: çıkış g. | N9: gün | O9: gün | P9: çıkış | Q9: Meslek | R9: Sürelerinde
A10: No | B10: Türü | C10: No(5hane) | D10: Sicil Numarası | E10: Numarası (11hane) | H10: İlkSoyadı | I10: TL | J10: TL | K10: Günü | L10: GGAA | M10: GGAA | N10: sayısı | O10: nedeni | P10: nedeni | Q10: Kod | R10: Çalışmamıştır
A11: 1 | B11: =IF('Pers. Bil.'!D5="Ücretli Öğret.","13","05") -> 13 | C11: =IF(E11>0,"00000","") -> 00000 | E11: =IF('Pers. Bil.'!W5="",0,'Pers. Bil.'!W5) -> 29867025728 | F11: =IF(E11<0,0,LEFT(SUBSTITUTE('Pers. Bil.'!C5," ","*",LEN('Pers. Bil.'!C5)-LEN(SUBSTITUTE('Pers. Bil.'!C5," ",""))),FIND("*",SUBSTITUTE('Pers. Bil.'!C5," ","*",LEN('Pers. Bil.'!C5)-LEN(SUBSTITUTE('Pers. Bil.'!C5," ",""))),1)-1)) -> AHMET TOLGA | G11: =IF(E11<0,0,MID('Pers. Bil.'!C5,LEN('XML Hes.'!F11)+2,LEN('Pers. Bil.'!C5)-LEN('XML Hes.'!F11))) -> ÇOBAN | I11: =IF('Pers. Bil.'!W5="",0,'Pers. Bil.'!AD5) -> 0 | K11: =IF('Pers. Bil.'!Z5+'Pers. Bil.'!AA5+'Pers. Bil.'!AB5>0,('Pers. Bil.'!Z5+'Pers. Bil.'!AA5+'Pers. Bil.'!AB5)/7.5,0) -> 0 | L11: ='Pers. Bil.'!F5 -> 0 | M11: ='Pers. Bil.'!H5 -> 0 | U11: =Bodro!#REF!-V11 ->  | V11: =Bodro!#REF!+Bodro!#REF! ->  | W11: 944.19 | X11: =V11+W11 ->  | Z11: =SUBSTITUTE(U11,",",".") ->  | AA11: =SUBSTITUTE(X11,",",".") -> 
A12: 2 | B12: =IF('Pers. Bil.'!D6="Ücretli Öğret.","13","05") -> 13 | C12: =IF(E12>0,"00000","") -> 00000 | E12: =IF('Pers. Bil.'!W6="",0,'Pers. Bil.'!W6) -> 28778061818 | F12: =IF(E12<0,0,LEFT(SUBSTITUTE('Pers. Bil.'!C6," ","*",LEN('Pers. Bil.'!C6)-LEN(SUBSTITUTE('Pers. Bil.'!C6," ",""))),FIND("*",SUBSTITUTE('Pers. Bil.'!C6," ","*",LEN('Pers. Bil.'!C6)-LEN(SUBSTITUTE('Pers. Bil.'!C6," ",""))),1)-1)) -> FATMA NUR | G12: =IF(E12<0,0,MID('Pers. Bil.'!C6,LEN('XML Hes.'!F12)+2,LEN('Pers. Bil.'!C6)-LEN('XML Hes.'!F12))) -> CİĞER | I12: ='Pers. Bil.'!AD6 -> 0 | K12: =IF('Pers. Bil.'!Z6+'Pers. Bil.'!AA6+'Pers. Bil.'!AB6>0,('Pers. Bil.'!Z6+'Pers. Bil.'!AA6+'Pers. Bil.'!AB6)/7.5,0) -> 0 | L12: ='Pers. Bil.'!F6 -> 0 | M12: ='Pers. Bil.'!H6 -> 0 | U12: =Bodro!#REF!-V12 ->  | V12: =Bodro!#REF!+Bodro!#REF! ->  | W12: 983.32 | X12: =V12+W12 ->  | Z12: =SUBSTITUTE(U12,",",".") ->  | AA12: =SUBSTITUTE(X12,",",".") -> 
A13: 3 | B13: =IF('Pers. Bil.'!D7="Ücretli Öğret.","13","05") -> 13 | C13: 00000 | E13: =IF('Pers. Bil.'!W7="",0,'Pers. Bil.'!W7) -> 28481071876 | F13: =IF(E13<0,0,LEFT(SUBSTITUTE('Pers. Bil.'!C7," ","*",LEN('Pers. Bil.'!C7)-LEN(SUBSTITUTE('Pers. Bil.'!C7," ",""))),FIND("*",SUBSTITUTE('Pers. Bil.'!C7," ","*",LEN('Pers. Bil.'!C7)-LEN(SUBSTITUTE('Pers. Bil.'!C7," ",""))),1)-1)) -> ZELİHA | G13: =IF(E13<0,0,MID('Pers. Bil.'!C7,LEN('XML Hes.'!F13)+2,LEN('Pers. Bil.'!C7)-LEN('XML Hes.'!F13))) -> OKUMUŞ | I13: ='Pers. Bil.'!AD7 -> 0 | K13: =IF('Pers. Bil.'!Z7+'Pers. Bil.'!AA7+'Pers. Bil.'!AB7>0,('Pers. Bil.'!Z7+'Pers. Bil.'!AA7+'Pers. Bil.'!AB7)/7.5,0) -> 0 | L13: ='Pers. Bil.'!F7 -> 0 | M13: ='Pers. Bil.'!H7 -> 0 | U13: =Bodro!#REF!-V13 ->  | V13: =Bodro!#REF!+Bodro!#REF! ->  | W13: 944.19
A14: 4 | B14: =IF('Pers. Bil.'!#REF!="Ücretli Öğret.","13","05") ->  | E14: =IF('Pers. Bil.'!#REF!="",0,'Pers. Bil.'!#REF!) ->  | F14: =IF(E14<0,0,LEFT(SUBSTITUTE('Pers. Bil.'!#REF!," ","*",LEN('Pers. Bil.'!#REF!)-LEN(SUBSTITUTE('Pers. Bil.'!#REF!," ",""))),FIND("*",SUBSTITUTE('Pers. Bil.'!#REF!," ","*",LEN('Pers. Bil.'!#REF!)-LEN(SUBSTITUTE('Pers. Bil.'!#REF!," ",""))),1)-1)) ->  | G14: =IF(E14<0,0,MID('Pers. Bil.'!#REF!,LEN('XML Hes.'!F14)+2,LEN('Pers. Bil.'!#REF!)-LEN('XML Hes.'!F14))) ->  | I14: ='Pers. Bil.'!#REF! ->  | K14: =IF('Pers. Bil.'!#REF!+'Pers. Bil.'!#REF!+'Pers. Bil.'!#REF!>0,('Pers. Bil.'!#REF!+'Pers. Bil.'!#REF!+'Pers. Bil.'!#REF!)/7.5,0) ->  | L14: ='Pers. Bil.'!#REF! ->  | M14: ='Pers. Bil.'!#REF! ->  | U14: =Bodro!#REF!-V14 ->  | V14: =Bodro!#REF!+Bodro!#REF! ->  | W14: 1036.62
A15: 5 | B15: =IF('Pers. Bil.'!D8="Ücretli Öğret.","13","05") -> 13 | C15: 00000 | E15: =IF('Pers. Bil.'!W8="",0,'Pers. Bil.'!W8) -> 49891358388 | F15: =IF(E15<0,0,LEFT(SUBSTITUTE('Pers. Bil.'!C8," ","*",LEN('Pers. Bil.'!C8)-LEN(SUBSTITUTE('Pers. Bil.'!C8," ",""))),FIND("*",SUBSTITUTE('Pers. Bil.'!C8," ","*",LEN('Pers. Bil.'!C8)-LEN(SUBSTITUTE('Pers. Bil.'!C8," ",""))),1)-1)) -> MUKADDES | G15: =IF(E15<0,0,MID('Pers. Bil.'!C8,LEN('XML Hes.'!F15)+2,LEN('Pers. Bil.'!C8)-LEN('XML Hes.'!F15))) -> TABAK | I15: =IF('Pers. Bil.'!W8="",0,'Pers. Bil.'!AD8) -> 0 | K15: =IF('Pers. Bil.'!Z8+'Pers. Bil.'!AA8+'Pers. Bil.'!AB8>0,'Pers. Bil.'!Z8+'Pers. Bil.'!AA8+'Pers. Bil.'!AB8/7.5) -> FALSE | L15: ='Pers. Bil.'!F8 -> 0 | M15: ='Pers. Bil.'!H8 -> 0 | U15: =Bodro!#REF!-V15 ->  | V15: =Bodro!#REF!+Bodro!#REF! ->  | W15: 780.52
A16: 6 | B16: =IF('Pers. Bil.'!D9="Ücretli Öğret.","13","05") -> 13 | C16: 00000 | E16: =IF('Pers. Bil.'!W9="",0,'Pers. Bil.'!W9) -> 49462372478 | F16: =IF(E16<0,0,LEFT(SUBSTITUTE('Pers. Bil.'!C9," ","*",LEN('Pers. Bil.'!C9)-LEN(SUBSTITUTE('Pers. Bil.'!C9," ",""))),FIND("*",SUBSTITUTE('Pers. Bil.'!C9," ","*",LEN('Pers. Bil.'!C9)-LEN(SUBSTITUTE('Pers. Bil.'!C9," ",""))),1)-1)) -> VİLDAN | G16: =IF(E16<0,0,MID('Pers. Bil.'!C9,LEN('XML Hes.'!F16)+2,LEN('Pers. Bil.'!C9)-LEN('XML Hes.'!F16))) -> GEYİK | I16: =IF('Pers. Bil.'!W9="",0,'Pers. Bil.'!AD9) -> 330.23 | K16: =IF('Pers. Bil.'!Z9+'Pers. Bil.'!AA9+'Pers. Bil.'!AB9>0,'Pers. Bil.'!Z9+'Pers. Bil.'!AA9+'Pers. Bil.'!AB9/7.5) -> 20 | L16: ='Pers. Bil.'!F9 -> 0 | M16: ='Pers. Bil.'!H9 -> 0 | U16: =Bodro!#REF!-V16 ->  | V16: =Bodro!#REF!+Bodro!#REF! ->  | W16: 780.52
A17: 7 | B17: =IF('Pers. Bil.'!D10="Ücretli Öğret.","13","05") -> 05 | E17: =IF('Pers. Bil.'!W10="",0,'Pers. Bil.'!W10) -> 0 | F17: =IF(E17<0,0,LEFT(SUBSTITUTE('Pers. Bil.'!C10," ","*",LEN('Pers. Bil.'!C10)-LEN(SUBSTITUTE('Pers. Bil.'!C10," ",""))),FIND("*",SUBSTITUTE('Pers. Bil.'!C10," ","*",LEN('Pers. Bil.'!C10)-LEN(SUBSTITUTE('Pers. Bil.'!C10," ",""))),1)-1)) ->  | G17: =IF(E17<0,0,MID('Pers. Bil.'!C10,LEN('XML Hes.'!F17)+2,LEN('Pers. Bil.'!C10)-LEN('XML Hes.'!F17))) ->  | I17: =IF('Pers. Bil.'!W10="",0,'Pers. Bil.'!AD10) -> 0 | K17: =IF('Pers. Bil.'!Z10+'Pers. Bil.'!AA10+'Pers. Bil.'!AB10>0,'Pers. Bil.'!Z10+'Pers. Bil.'!AA10+'Pers. Bil.'!AB10/7.5) -> FALSE | L17: ='Pers. Bil.'!F10 -> 0 | M17: ='Pers. Bil.'!H10 -> 0 | U17: =Bodro!I10-V17 ->  | V17: =Bodro!#REF!+Bodro!#REF! ->  | W17: 780.52
A18: 8 | B18: =IF('Pers. Bil.'!D11="Ücretli Öğret.","13","05") -> 05 | E18: =IF('Pers. Bil.'!W11="",0,'Pers. Bil.'!W11) -> 0 | F18: =IF(E18<0,0,LEFT(SUBSTITUTE('Pers. Bil.'!C11," ","*",LEN('Pers. Bil.'!C11)-LEN(SUBSTITUTE('Pers. Bil.'!C11," ",""))),FIND("*",SUBSTITUTE('Pers. Bil.'!C11," ","*",LEN('Pers. Bil.'!C11)-LEN(SUBSTITUTE('Pers. Bil.'!C11," ",""))),1)-1)) ->  | G18: =IF(E18<0,0,MID('Pers. Bil.'!C11,LEN('XML Hes.'!F18)+2,LEN('Pers. Bil.'!C11)-LEN('XML Hes.'!F18))) ->  | I18: =IF('Pers. Bil.'!W11="",0,'Pers. Bil.'!AD11) -> 0 | K18: =IF('Pers. Bil.'!Z11+'Pers. Bil.'!AA11+'Pers. Bil.'!AB11>0,'Pers. Bil.'!Z11+'Pers. Bil.'!AA11+'Pers. Bil.'!AB11/7.5) -> FALSE | L18: ='Pers. Bil.'!F11 -> 0 | M18: ='Pers. Bil.'!H11 -> 0 | U18: =Bodro!I11-V18 ->  | V18: =Bodro!#REF!+Bodro!#REF! ->  | W18: 1170
A19: 9 | B19: =IF('Pers. Bil.'!D12="Ücretli Öğret.","13","05") -> 05 | E19: =IF('Pers. Bil.'!W12="",0,'Pers. Bil.'!W12) -> 0 | F19: =IF(E19<0,0,LEFT(SUBSTITUTE('Pers. Bil.'!C12," ","*",LEN('Pers. Bil.'!C12)-LEN(SUBSTITUTE('Pers. Bil.'!C12," ",""))),FIND("*",SUBSTITUTE('Pers. Bil.'!C12," ","*",LEN('Pers. Bil.'!C12)-LEN(SUBSTITUTE('Pers. Bil.'!C12," ",""))),1)-1)) ->  | G19: =IF(E19<0,0,MID('Pers. Bil.'!C12,LEN('XML Hes.'!F19)+2,LEN('Pers. Bil.'!C12)-LEN('XML Hes.'!F19))) ->  | I19: =IF('Pers. Bil.'!W12="",0,'Pers. Bil.'!AD12) -> 0 | K19: =IF('Pers. Bil.'!Z12+'Pers. Bil.'!AA12+'Pers. Bil.'!AB12>0,'Pers. Bil.'!Z12+'Pers. Bil.'!AA12+'Pers. Bil.'!AB12/7.5) -> FALSE | L19: ='Pers. Bil.'!F12 -> 0 | M19: ='Pers. Bil.'!H12 -> 0 | U19: =Bodro!I20-V19 ->  | V19: =Bodro!#REF!+Bodro!#REF! ->  | W19: 1141.01
A20: 10 | B20: =IF('Pers. Bil.'!D13="Ücretli Öğret.","13","05") -> 05 | E20: =IF('Pers. Bil.'!W13="",0,'Pers. Bil.'!W13) -> 0 | F20: =IF(E20<0,0,LEFT(SUBSTITUTE('Pers. Bil.'!C13," ","*",LEN('Pers. Bil.'!C13)-LEN(SUBSTITUTE('Pers. Bil.'!C13," ",""))),FIND("*",SUBSTITUTE('Pers. Bil.'!C13," ","*",LEN('Pers. Bil.'!C13)-LEN(SUBSTITUTE('Pers. Bil.'!C13," ",""))),1)-1)) ->  | G20: =IF(E20<0,0,MID('Pers. Bil.'!C13,LEN('XML Hes.'!F20)+2,LEN('Pers. Bil.'!C13)-LEN('XML Hes.'!F20))) ->  | I20: =IF('Pers. Bil.'!W13="",0,'Pers. Bil.'!AD13) -> 0 | K20: =IF('Pers. Bil.'!Z13+'Pers. Bil.'!AA13+'Pers. Bil.'!AB13>0,'Pers. Bil.'!Z13+'Pers. Bil.'!AA13+'Pers. Bil.'!AB13/7.5) -> FALSE | L20: ='Pers. Bil.'!F13 -> 0 | M20: ='Pers. Bil.'!H13 -> 0 | U20: =Bodro!I21-V20 ->  | V20: =Bodro!#REF!+Bodro!#REF! ->  | W20: 1016.34
A21: 11 | B21: =IF('Pers. Bil.'!D14="Ücretli Öğret.","13","05") -> 05 | E21: =IF('Pers. Bil.'!W14="",0,'Pers. Bil.'!W14) -> 0 | F21: =IF(E21<0,0,LEFT(SUBSTITUTE('Pers. Bil.'!C14," ","*",LEN('Pers. Bil.'!C14)-LEN(SUBSTITUTE('Pers. Bil.'!C14," ",""))),FIND("*",SUBSTITUTE('Pers. Bil.'!C14," ","*",LEN('Pers. Bil.'!C14)-LEN(SUBSTITUTE('Pers. Bil.'!C14," ",""))),1)-1)) ->  | G21: =IF(E21<0,0,MID('Pers. Bil.'!C14,LEN('XML Hes.'!F21)+2,LEN('Pers. Bil.'!C14)-LEN('XML Hes.'!F21))) ->  | I21: =IF('Pers. Bil.'!W14="",0,'Pers. Bil.'!AD14) -> 0 | K21: =IF('Pers. Bil.'!Z14+'Pers. Bil.'!AA14+'Pers. Bil.'!AB14>0,'Pers. Bil.'!Z14+'Pers. Bil.'!AA14+'Pers. Bil.'!AB14/7.5) -> FALSE | L21: ='Pers. Bil.'!F14 -> 0 | M21: ='Pers. Bil.'!H14 -> 0 | U21: =Bodro!I22-V21 ->  | V21: =Bodro!#REF!+Bodro!#REF! ->  | W21: 959.4
A22: 12 | B22: =IF('Pers. Bil.'!D15="Ücretli Öğret.","13","05") -> 05 | E22: =IF('Pers. Bil.'!W15="",0,'Pers. Bil.'!W15) -> 0 | F22: =IF(E22<0,0,LEFT(SUBSTITUTE('Pers. Bil.'!C15," ","*",LEN('Pers. Bil.'!C15)-LEN(SUBSTITUTE('Pers. Bil.'!C15," ",""))),FIND("*",SUBSTITUTE('Pers. Bil.'!C15," ","*",LEN('Pers. Bil.'!C15)-LEN(SUBSTITUTE('Pers. Bil.'!C15," ",""))),1)-1)) ->  | G22: =IF(E22<0,0,MID('Pers. Bil.'!C15,LEN('XML Hes.'!F22)+2,LEN('Pers. Bil.'!C15)-LEN('XML Hes.'!F22))) ->  | I22: =IF('Pers. Bil.'!W15="",0,'Pers. Bil.'!AD15) -> 0 | K22: =IF('Pers. Bil.'!Z15+'Pers. Bil.'!AA15+'Pers. Bil.'!AB15>0,'Pers. Bil.'!Z15+'Pers. Bil.'!AA15+'Pers. Bil.'!AB15/7.5) -> FALSE | L22: ='Pers. Bil.'!F15 -> 0 | M22: ='Pers. Bil.'!H15 -> 0 | U22: =Bodro!I23-V22 ->  | V22: =Bodro!#REF!+Bodro!#REF! ->  | W22: 1149.85
A23: 13 | B23: =IF('Pers. Bil.'!D16="Ücretli Öğret.","13","05") -> 05 | E23: =IF('Pers. Bil.'!W16="",0,'Pers. Bil.'!W16) -> 0 | F23: =IF(E23<0,0,LEFT(SUBSTITUTE('Pers. Bil.'!C16," ","*",LEN('Pers. Bil.'!C16)-LEN(SUBSTITUTE('Pers. Bil.'!C16," ",""))),FIND("*",SUBSTITUTE('Pers. Bil.'!C16," ","*",LEN('Pers. Bil.'!C16)-LEN(SUBSTITUTE('Pers. Bil.'!C16," ",""))),1)-1)) ->  | G23: =IF(E23<0,0,MID('Pers. Bil.'!C16,LEN('XML Hes.'!F23)+2,LEN('Pers. Bil.'!C16)-LEN('XML Hes.'!F23))) ->  | I23: =IF('Pers. Bil.'!W16="",0,'Pers. Bil.'!AD16) -> 0 | K23: =IF('Pers. Bil.'!Z16+'Pers. Bil.'!AA16+'Pers. Bil.'!AB16>0,'Pers. Bil.'!Z16+'Pers. Bil.'!AA16+'Pers. Bil.'!AB16/7.5) -> FALSE | L23: ='Pers. Bil.'!F16 -> 0 | M23: ='Pers. Bil.'!H16 -> 0 | U23: =Bodro!I24-V23 ->  | V23: =Bodro!#REF!+Bodro!#REF! ->  | W23: 780.52
A24: 14 | B24: =IF('Pers. Bil.'!D17="Ücretli Öğret.","13","05") -> 05 | E24: =IF('Pers. Bil.'!W17="",0,'Pers. Bil.'!W17) -> 0 | F24: =IF(E24<0,0,LEFT(SUBSTITUTE('Pers. Bil.'!C17," ","*",LEN('Pers. Bil.'!C17)-LEN(SUBSTITUTE('Pers. Bil.'!C17," ",""))),FIND("*",SUBSTITUTE('Pers. Bil.'!C17," ","*",LEN('Pers. Bil.'!C17)-LEN(SUBSTITUTE('Pers. Bil.'!C17," ",""))),1)-1)) ->  | G24: =IF(E24<0,0,MID('Pers. Bil.'!C17,LEN('XML Hes.'!F24)+2,LEN('Pers. Bil.'!C17)-LEN('XML Hes.'!F24))) ->  | I24: =IF('Pers. Bil.'!W17="",0,'Pers. Bil.'!AD17) -> 0 | K24: =IF('Pers. Bil.'!Z17+'Pers. Bil.'!AA17+'Pers. Bil.'!AB17>0,'Pers. Bil.'!Z17+'Pers. Bil.'!AA17+'Pers. Bil.'!AB17/7.5) -> FALSE | L24: ='Pers. Bil.'!F17 -> 0 | M24: ='Pers. Bil.'!H17 -> 0 | U24: =Bodro!I25-V24 ->  | V24: =Bodro!#REF!+Bodro!#REF! ->  | W24: 780.52
A25: 15 | B25: =IF('Pers. Bil.'!D18="Ücretli Öğret.","13","05") -> 05 | E25: =IF('Pers. Bil.'!W18="",0,'Pers. Bil.'!W18) -> 0 | F25: =IF(E25<0,0,LEFT(SUBSTITUTE('Pers. Bil.'!C18," ","*",LEN('Pers. Bil.'!C18)-LEN(SUBSTITUTE('Pers. Bil.'!C18," ",""))),FIND("*",SUBSTITUTE('Pers. Bil.'!C18," ","*",LEN('Pers. Bil.'!C18)-LEN(SUBSTITUTE('Pers. Bil.'!C18," ",""))),1)-1)) ->  | G25: =IF(E25<0,0,MID('Pers. Bil.'!C18,LEN('XML Hes.'!F25)+2,LEN('Pers. Bil.'!C18)-LEN('XML Hes.'!F25))) ->  | I25: =IF('Pers. Bil.'!W18="",0,'Pers. Bil.'!AD18) -> 0 | K25: =IF('Pers. Bil.'!Z18+'Pers. Bil.'!AA18+'Pers. Bil.'!AB18>0,'Pers. Bil.'!Z18+'Pers. Bil.'!AA18+'Pers. Bil.'!AB18/7.5) -> FALSE | L25: ='Pers. Bil.'!F18 -> 0 | M25: ='Pers. Bil.'!H18 -> 0 | U25: =Bodro!I26-V25 ->  | V25: =Bodro!#REF!+Bodro!#REF! ->  | W25: 780.52
A26: 16 | B26: =IF('Pers. Bil.'!D19="Ücretli Öğret.","13","05") -> 05 | E26: =IF('Pers. Bil.'!W19="",0,'Pers. Bil.'!W19) -> 0 | F26: =IF(E26<0,0,LEFT(SUBSTITUTE('Pers. Bil.'!C19," ","*",LEN('Pers. Bil.'!C19)-LEN(SUBSTITUTE('Pers. Bil.'!C19," ",""))),FIND("*",SUBSTITUTE('Pers. Bil.'!C19," ","*",LEN('Pers. Bil.'!C19)-LEN(SUBSTITUTE('Pers. Bil.'!C19," ",""))),1)-1)) ->  | G26: =IF(E26<0,0,MID('Pers. Bil.'!C19,LEN('XML Hes.'!F26)+2,LEN('Pers. Bil.'!C19)-LEN('XML Hes.'!F26))) ->  | I26: =IF('Pers. Bil.'!W19="",0,'Pers. Bil.'!AD19) -> 0 | K26: =IF('Pers. Bil.'!Z19+'Pers. Bil.'!AA19+'Pers. Bil.'!AB19>0,'Pers. Bil.'!Z19+'Pers. Bil.'!AA19+'Pers. Bil.'!AB19/7.5) -> FALSE | L26: ='Pers. Bil.'!F19 -> 0 | M26: ='Pers. Bil.'!H19 -> 0 | U26: =Bodro!I27-V26 ->  | V26: =Bodro!#REF!+Bodro!#REF! ->  | W26: 780.52
A27: 17 | B27: =IF('Pers. Bil.'!D20="Ücretli Öğret.","13","05") -> 05 | E27: =IF('Pers. Bil.'!W20="",0,'Pers. Bil.'!W20) -> 0 | F27: =IF(E27<0,0,LEFT(SUBSTITUTE('Pers. Bil.'!C20," ","*",LEN('Pers. Bil.'!C20)-LEN(SUBSTITUTE('Pers. Bil.'!C20," ",""))),FIND("*",SUBSTITUTE('Pers. Bil.'!C20," ","*",LEN('Pers. Bil.'!C20)-LEN(SUBSTITUTE('Pers. Bil.'!C20," ",""))),1)-1)) ->  | G27: =IF(E27<0,0,MID('Pers. Bil.'!C20,LEN('XML Hes.'!F27)+2,LEN('Pers. Bil.'!C20)-LEN('XML Hes.'!F27))) ->  | I27: =IF('Pers. Bil.'!W20="",0,'Pers. Bil.'!AD20) -> 0 | K27: =IF('Pers. Bil.'!Z20+'Pers. Bil.'!AA20+'Pers. Bil.'!AB20>0,'Pers. Bil.'!Z20+'Pers. Bil.'!AA20+'Pers. Bil.'!AB20/7.5) -> FALSE | L27: ='Pers. Bil.'!F20 -> 0 | M27: ='Pers. Bil.'!H20 -> 0 | U27: =Bodro!I28-V27 ->  | V27: =Bodro!#REF!+Bodro!#REF! ->  | W27: 780.52
A28: 18 | B28: =IF('Pers. Bil.'!D21="Ücretli Öğret.","13","05") -> 05 | E28: =IF('Pers. Bil.'!W21="",0,'Pers. Bil.'!W21) -> 0 | F28: =IF(E28<0,0,LEFT(SUBSTITUTE('Pers. Bil.'!C21," ","*",LEN('Pers. Bil.'!C21)-LEN(SUBSTITUTE('Pers. Bil.'!C21," ",""))),FIND("*",SUBSTITUTE('Pers. Bil.'!C21," ","*",LEN('Pers. Bil.'!C21)-LEN(SUBSTITUTE('Pers. Bil.'!C21," ",""))),1)-1)) ->  | G28: =IF(E28<0,0,MID('Pers. Bil.'!C21,LEN('XML Hes.'!F28)+2,LEN('Pers. Bil.'!C21)-LEN('XML Hes.'!F28))) ->  | I28: =IF('Pers. Bil.'!W21="",0,'Pers. Bil.'!AD21) -> 0 | K28: =IF('Pers. Bil.'!Z21+'Pers. Bil.'!AA21+'Pers. Bil.'!AB21>0,'Pers. Bil.'!Z21+'Pers. Bil.'!AA21+'Pers. Bil.'!AB21/7.5) -> FALSE | L28: ='Pers. Bil.'!F21 -> 0 | M28: ='Pers. Bil.'!H21 -> 0 | U28: =Bodro!#REF!-V28 ->  | V28: =Bodro!#REF!+Bodro!#REF! ->  | W28: 1189.11
A29: 19 | B29: =IF('Pers. Bil.'!D22="Ücretli Öğret.","13","05") -> 05 | E29: =IF('Pers. Bil.'!W22="",0,'Pers. Bil.'!W22) -> 0 | F29: =IF(E29<0,0,LEFT(SUBSTITUTE('Pers. Bil.'!C22," ","*",LEN('Pers. Bil.'!C22)-LEN(SUBSTITUTE('Pers. Bil.'!C22," ",""))),FIND("*",SUBSTITUTE('Pers. Bil.'!C22," ","*",LEN('Pers. Bil.'!C22)-LEN(SUBSTITUTE('Pers. Bil.'!C22," ",""))),1)-1)) ->  | G29: =IF(E29<0,0,MID('Pers. Bil.'!C22,LEN('XML Hes.'!F29)+2,LEN('Pers. Bil.'!C22)-LEN('XML Hes.'!F29))) ->  | I29: =IF('Pers. Bil.'!W22="",0,'Pers. Bil.'!AD22) -> 0 | K29: =IF('Pers. Bil.'!Z22+'Pers. Bil.'!AA22+'Pers. Bil.'!AB22>0,'Pers. Bil.'!Z22+'Pers. Bil.'!AA22+'Pers. Bil.'!AB22/7.5) -> FALSE | L29: ='Pers. Bil.'!F22 -> 0 | M29: ='Pers. Bil.'!H22 -> 0 | U29: =Bodro!#REF!-V29 ->  | V29: =Bodro!#REF!+Bodro!#REF! ->  | W29: 944.19
A30: 20 | B30: =IF('Pers. Bil.'!D23="Ücretli Öğret.","13","05") -> 05 | E30: =IF('Pers. Bil.'!W23="",0,'Pers. Bil.'!W23) -> 0 | F30: =IF(E30<0,0,LEFT(SUBSTITUTE('Pers. Bil.'!C23," ","*",LEN('Pers. Bil.'!C23)-LEN(SUBSTITUTE('Pers. Bil.'!C23," ",""))),FIND("*",SUBSTITUTE('Pers. Bil.'!C23," ","*",LEN('Pers. Bil.'!C23)-LEN(SUBSTITUTE('Pers. Bil.'!C23," ",""))),1)-1)) ->  | G30: =IF(E30<0,0,MID('Pers. Bil.'!C23,LEN('XML Hes.'!F30)+2,LEN('Pers. Bil.'!C23)-LEN('XML Hes.'!F30))) ->  | I30: =IF('Pers. Bil.'!W23="",0,'Pers. Bil.'!AD23) -> 0 | K30: =IF('Pers. Bil.'!Z23+'Pers. Bil.'!AA23+'Pers. Bil.'!AB23>0,'Pers. Bil.'!Z23+'Pers. Bil.'!AA23+'Pers. Bil.'!AB23/7.5) -> FALSE | L30: ='Pers. Bil.'!F23 -> 0 | M30: ='Pers. Bil.'!H23 -> 0 | U30: =Bodro!#REF!-V30 ->  | V30: =Bodro!#REF!+Bodro!#REF! ->  | W30: 778.18
A31: 21 | B31: =IF('Pers. Bil.'!D24="Ücretli Öğret.","13","05") -> 05 | E31: =IF('Pers. Bil.'!W24="",0,'Pers. Bil.'!W24) -> 0 | F31: =IF(E31<0,0,LEFT(SUBSTITUTE('Pers. Bil.'!C24," ","*",LEN('Pers. Bil.'!C24)-LEN(SUBSTITUTE('Pers. Bil.'!C24," ",""))),FIND("*",SUBSTITUTE('Pers. Bil.'!C24," ","*",LEN('Pers. Bil.'!C24)-LEN(SUBSTITUTE('Pers. Bil.'!C24," ",""))),1)-1)) ->  | G31: =IF(E31<0,0,MID('Pers. Bil.'!C24,LEN('XML Hes.'!F31)+2,LEN('Pers. Bil.'!C24)-LEN('XML Hes.'!F31))) ->  | I31: =IF('Pers. Bil.'!W24="",0,'Pers. Bil.'!AD24) -> 0 | K31: =IF('Pers. Bil.'!Z24+'Pers. Bil.'!AA24+'Pers. Bil.'!AB24>0,'Pers. Bil.'!Z24+'Pers. Bil.'!AA24+'Pers. Bil.'!AB24/7.5) -> 20 | L31: ='Pers. Bil.'!F24 -> 0 | M31: ='Pers. Bil.'!H24 -> 0 | U31: =Bodro!#REF!-V31 ->  | V31: =Bodro!#REF!+Bodro!#REF! ->  | W31: 778.18
A32: 22 | B32: =IF('Pers. Bil.'!D25="Ücretli Öğret.","13","05") -> 05 | E32: =IF('Pers. Bil.'!W25="",0,'Pers. Bil.'!W25) -> 0 | F32: =IF(E32<0,0,LEFT(SUBSTITUTE('Pers. Bil.'!C25," ","*",LEN('Pers. Bil.'!C25)-LEN(SUBSTITUTE('Pers. Bil.'!C25," ",""))),FIND("*",SUBSTITUTE('Pers. Bil.'!C25," ","*",LEN('Pers. Bil.'!C25)-LEN(SUBSTITUTE('Pers. Bil.'!C25," ",""))),1)-1)) ->  | G32: =IF(E32<0,0,MID('Pers. Bil.'!C25,LEN('XML Hes.'!F32)+2,LEN('Pers. Bil.'!C25)-LEN('XML Hes.'!F32))) ->  | I32: =IF('Pers. Bil.'!W25="",0,'Pers. Bil.'!AD25) -> 0 | K32: =IF('Pers. Bil.'!Z25+'Pers. Bil.'!AA25+'Pers. Bil.'!AB25>0,'Pers. Bil.'!Z25+'Pers. Bil.'!AA25+'Pers. Bil.'!AB25/7.5) -> FALSE | L32: ='Pers. Bil.'!F25 -> 0 | M32: ='Pers. Bil.'!H25 -> 0 | U32: =Bodro!#REF!-V32 ->  | V32: =Bodro!#REF!+Bodro!#REF! ->  | W32: 720.98
A33: 23 | B33: =IF('Pers. Bil.'!D26="Ücretli Öğret.","13","05") -> 05 | E33: =IF('Pers. Bil.'!W26="",0,'Pers. Bil.'!W26) -> 0 | F33: =IF(E33<0,0,LEFT(SUBSTITUTE('Pers. Bil.'!C26," ","*",LEN('Pers. Bil.'!C26)-LEN(SUBSTITUTE('Pers. Bil.'!C26," ",""))),FIND("*",SUBSTITUTE('Pers. Bil.'!C26," ","*",LEN('Pers. Bil.'!C26)-LEN(SUBSTITUTE('Pers. Bil.'!C26," ",""))),1)-1)) ->  | G33: =IF(E33<0,0,MID('Pers. Bil.'!C26,LEN('XML Hes.'!F33)+2,LEN('Pers. Bil.'!C26)-LEN('XML Hes.'!F33))) ->  | I33: =IF('Pers. Bil.'!W26="",0,'Pers. Bil.'!AD26) -> 0 | K33: =IF('Pers. Bil.'!Z26+'Pers. Bil.'!AA26+'Pers. Bil.'!AB26>0,'Pers. Bil.'!Z26+'Pers. Bil.'!AA26+'Pers. Bil.'!AB26/7.5) -> FALSE | L33: ='Pers. Bil.'!F26 -> 0 | M33: ='Pers. Bil.'!H26 -> 0 | U33: =Bodro!#REF!-V33 ->  | V33: =Bodro!#REF!+Bodro!#REF! ->  | W33: 778.18
A34: 24 | B34: =IF('Pers. Bil.'!D27="Ücretli Öğret.","13","05") -> 05 | E34: =IF('Pers. Bil.'!W27="",0,'Pers. Bil.'!W27) -> 0 | F34: =IF(E34<0,0,LEFT(SUBSTITUTE('Pers. Bil.'!C27," ","*",LEN('Pers. Bil.'!C27)-LEN(SUBSTITUTE('Pers. Bil.'!C27," ",""))),FIND("*",SUBSTITUTE('Pers. Bil.'!C27," ","*",LEN('Pers. Bil.'!C27)-LEN(SUBSTITUTE('Pers. Bil.'!C27," ",""))),1)-1)) ->  | G34: =IF(E34<0,0,MID('Pers. Bil.'!C27,LEN('XML Hes.'!F34)+2,LEN('Pers. Bil.'!C27)-LEN('XML Hes.'!F34))) ->  | I34: =IF('Pers. Bil.'!W27="",0,'Pers. Bil.'!AD27) -> 0 | K34: =IF('Pers. Bil.'!Z27+'Pers. Bil.'!AA27+'Pers. Bil.'!AB27>0,'Pers. Bil.'!Z27+'Pers. Bil.'!AA27+'Pers. Bil.'!AB27/7.5) -> FALSE | L34: ='Pers. Bil.'!F27 -> 0 | M34: ='Pers. Bil.'!H27 -> 0 | U34: =Bodro!#REF!-V34 ->  | V34: =Bodro!#REF!+Bodro!#REF! ->  | W34: 723.84
A35: 25 | B35: =IF('Pers. Bil.'!D28="Ücretli Öğret.","13","05") -> 05 | E35: =IF('Pers. Bil.'!W28="",0,'Pers. Bil.'!W28) -> 0 | F35: =IF(E35<0,0,LEFT(SUBSTITUTE('Pers. Bil.'!C28," ","*",LEN('Pers. Bil.'!C28)-LEN(SUBSTITUTE('Pers. Bil.'!C28," ",""))),FIND("*",SUBSTITUTE('Pers. Bil.'!C28," ","*",LEN('Pers. Bil.'!C28)-LEN(SUBSTITUTE('Pers. Bil.'!C28," ",""))),1)-1)) ->  | G35: =IF(E35<0,0,MID('Pers. Bil.'!C28,LEN('XML Hes.'!F35)+2,LEN('Pers. Bil.'!C28)-LEN('XML Hes.'!F35))) ->  | I35: =IF('Pers. Bil.'!W28="",0,'Pers. Bil.'!AD28) -> 0 | K35: =IF('Pers. Bil.'!Z28+'Pers. Bil.'!AA28+'Pers. Bil.'!AB28>0,'Pers. Bil.'!Z28+'Pers. Bil.'!AA28+'Pers. Bil.'!AB28/7.5) -> FALSE | L35: ='Pers. Bil.'!F28 -> 0 | M35: ='Pers. Bil.'!H28 -> 0 | U35: =Bodro!#REF!-V35 ->  | V35: =Bodro!#REF!+Bodro!#REF! ->  | W35: 683.54
A36: 26 | B36: =IF('Pers. Bil.'!D29="Ücretli Öğret.","13","05") -> 05 | E36: =IF('Pers. Bil.'!W29="",0,'Pers. Bil.'!W29) -> 0 | F36: =IF(E36<0,0,LEFT(SUBSTITUTE('Pers. Bil.'!C29," ","*",LEN('Pers. Bil.'!C29)-LEN(SUBSTITUTE('Pers. Bil.'!C29," ",""))),FIND("*",SUBSTITUTE('Pers. Bil.'!C29," ","*",LEN('Pers. Bil.'!C29)-LEN(SUBSTITUTE('Pers. Bil.'!C29," ",""))),1)-1)) ->  | G36: =IF(E36<0,0,MID('Pers. Bil.'!C29,LEN('XML Hes.'!F36)+2,LEN('Pers. Bil.'!C29)-LEN('XML Hes.'!F36))) ->  | I36: =IF('Pers. Bil.'!W29="",0,'Pers. Bil.'!AD29) -> 0 | K36: =IF('Pers. Bil.'!Z29+'Pers. Bil.'!AA29+'Pers. Bil.'!AB29>0,'Pers. Bil.'!Z29+'Pers. Bil.'!AA29+'Pers. Bil.'!AB29/7.5) -> FALSE | L36: ='Pers. Bil.'!F29 -> 0 | M36: ='Pers. Bil.'!H29 -> 0 | U36: =Bodro!#REF!-V36 ->  | V36: =Bodro!#REF!+Bodro!#REF! ->  | W36: 649.74
A37: 27 | B37: =IF('Pers. Bil.'!D30="Ücretli Öğret.","13","05") -> 05 | E37: =IF('Pers. Bil.'!W30="",0,'Pers. Bil.'!W30) -> 0 | F37: =IF(E37<0,0,LEFT(SUBSTITUTE('Pers. Bil.'!C30," ","*",LEN('Pers. Bil.'!C30)-LEN(SUBSTITUTE('Pers. Bil.'!C30," ",""))),FIND("*",SUBSTITUTE('Pers. Bil.'!C30," ","*",LEN('Pers. Bil.'!C30)-LEN(SUBSTITUTE('Pers. Bil.'!C30," ",""))),1)-1)) ->  | G37: =IF(E37<0,0,MID('Pers. Bil.'!C30,LEN('XML Hes.'!F37)+2,LEN('Pers. Bil.'!C30)-LEN('XML Hes.'!F37))) ->  | I37: =IF('Pers. Bil.'!W30="",0,'Pers. Bil.'!AD30) -> 0 | K37: =IF('Pers. Bil.'!Z30+'Pers. Bil.'!AA30+'Pers. Bil.'!AB30>0,'Pers. Bil.'!Z30+'Pers. Bil.'!AA30+'Pers. Bil.'!AB30/7.5) -> FALSE | L37: ='Pers. Bil.'!F30 -> 0 | M37: ='Pers. Bil.'!H30 -> 0 | U37: =Bodro!#REF!-V37 ->  | V37: =Bodro!#REF!+Bodro!#REF! ->  | W37: 1310.4
A38: 28 | B38: =IF('Pers. Bil.'!D31="Ücretli Öğret.","13","05") -> 05 | E38: =IF('Pers. Bil.'!W31="",0,'Pers. Bil.'!W31) -> 0 | F38: =IF(E38<0,0,LEFT(SUBSTITUTE('Pers. Bil.'!C31," ","*",LEN('Pers. Bil.'!C31)-LEN(SUBSTITUTE('Pers. Bil.'!C31," ",""))),FIND("*",SUBSTITUTE('Pers. Bil.'!C31," ","*",LEN('Pers. Bil.'!C31)-LEN(SUBSTITUTE('Pers. Bil.'!C31," ",""))),1)-1)) ->  | G38: =IF(E38<0,0,MID('Pers. Bil.'!C31,LEN('XML Hes.'!F38)+2,LEN('Pers. Bil.'!C31)-LEN('XML Hes.'!F38))) ->  | I38: =IF('Pers. Bil.'!W31="",0,'Pers. Bil.'!AD31) -> 0 | K38: =IF('Pers. Bil.'!Z31+'Pers. Bil.'!AA31+'Pers. Bil.'!AB31>0,'Pers. Bil.'!Z31+'Pers. Bil.'!AA31+'Pers. Bil.'!AB31/7.5) -> FALSE | L38: ='Pers. Bil.'!F31 -> 0 | M38: ='Pers. Bil.'!H31 -> 0 | U38: =Bodro!#REF!-V38 ->  | V38: =Bodro!#REF!+Bodro!#REF! ->  | W38: 1310.4
A39: 29 | B39: =IF('Pers. Bil.'!D32="Ücretli Öğret.","13","05") -> 05 | E39: =IF('Pers. Bil.'!W32="",0,'Pers. Bil.'!W32) -> 0 | F39: =IF(E39<0,0,LEFT(SUBSTITUTE('Pers. Bil.'!C32," ","*",LEN('Pers. Bil.'!C32)-LEN(SUBSTITUTE('Pers. Bil.'!C32," ",""))),FIND("*",SUBSTITUTE('Pers. Bil.'!C32," ","*",LEN('Pers. Bil.'!C32)-LEN(SUBSTITUTE('Pers. Bil.'!C32," ",""))),1)-1)) ->  | G39: =IF(E39<0,0,MID('Pers. Bil.'!C32,LEN('XML Hes.'!F39)+2,LEN('Pers. Bil.'!C32)-LEN('XML Hes.'!F39))) ->  | I39: =IF('Pers. Bil.'!W32="",0,'Pers. Bil.'!AD32) -> 0 | K39: =IF('Pers. Bil.'!Z32+'Pers. Bil.'!AA32+'Pers. Bil.'!AB32>0,'Pers. Bil.'!Z32+'Pers. Bil.'!AA32+'Pers. Bil.'!AB32/7.5) -> FALSE | L39: ='Pers. Bil.'!F32 -> 0 | M39: ='Pers. Bil.'!H32 -> 0 | U39: =Bodro!#REF!-V39 ->  | V39: =Bodro!#REF!+Bodro!#REF! ->  | W39: 1310.4
A40: 30 | B40: =IF('Pers. Bil.'!D33="Ücretli Öğret.","13","05") -> 05 | E40: =IF('Pers. Bil.'!W33="",0,'Pers. Bil.'!W33) -> 0 | F40: =IF(E40<0,0,LEFT(SUBSTITUTE('Pers. Bil.'!C33," ","*",LEN('Pers. Bil.'!C33)-LEN(SUBSTITUTE('Pers. Bil.'!C33," ",""))),FIND("*",SUBSTITUTE('Pers. Bil.'!C33," ","*",LEN('Pers. Bil.'!C33)-LEN(SUBSTITUTE('Pers. Bil.'!C33," ",""))),1)-1)) ->  | G40: =IF(E40<0,0,MID('Pers. Bil.'!C33,LEN('XML Hes.'!F40)+2,LEN('Pers. Bil.'!C33)-LEN('XML Hes.'!F40))) ->  | I40: =IF('Pers. Bil.'!W33="",0,'Pers. Bil.'!AD33) -> 0 | K40: =IF('Pers. Bil.'!Z33+'Pers. Bil.'!AA33+'Pers. Bil.'!AB33>0,'Pers. Bil.'!Z33+'Pers. Bil.'!AA33+'Pers. Bil.'!AB33/7.5) -> FALSE | L40: ='Pers. Bil.'!F33 -> 0 | M40: ='Pers. Bil.'!H33 -> 0 | U40: =Bodro!#REF!-V40 ->  | V40: =Bodro!#REF!+Bodro!#REF! ->  | W40: 1202.24
A41: 31 | B41: =IF('Pers. Bil.'!D34="Ücretli Öğret.","13","05") -> 05 | E41: =IF('Pers. Bil.'!W34="",0,'Pers. Bil.'!W34) -> 0 | F41: =IF(E41<0,0,LEFT(SUBSTITUTE('Pers. Bil.'!C34," ","*",LEN('Pers. Bil.'!C34)-LEN(SUBSTITUTE('Pers. Bil.'!C34," ",""))),FIND("*",SUBSTITUTE('Pers. Bil.'!C34," ","*",LEN('Pers. Bil.'!C34)-LEN(SUBSTITUTE('Pers. Bil.'!C34," ",""))),1)-1)) ->  | G41: =IF(E41<0,0,MID('Pers. Bil.'!C34,LEN('XML Hes.'!F41)+2,LEN('Pers. Bil.'!C34)-LEN('XML Hes.'!F41))) ->  | I41: =IF('Pers. Bil.'!W34="",0,'Pers. Bil.'!AD34) -> 0 | K41: =IF('Pers. Bil.'!Z34+'Pers. Bil.'!AA34+'Pers. Bil.'!AB34>0,'Pers. Bil.'!Z34+'Pers. Bil.'!AA34+'Pers. Bil.'!AB34/7.5) -> FALSE | L41: ='Pers. Bil.'!F34 -> 0 | M41: ='Pers. Bil.'!H34 -> 0 | U41: =Bodro!#REF!-V41 ->  | V41: =Bodro!#REF!+Bodro!#REF! ->  | W41: 1091.35
A42: 32 | B42: =IF('Pers. Bil.'!D35="Ücretli Öğret.","13","05") -> 05 | E42: =IF('Pers. Bil.'!W35="",0,'Pers. Bil.'!W35) -> 0 | F42: =IF(E42<0,0,LEFT(SUBSTITUTE('Pers. Bil.'!C35," ","*",LEN('Pers. Bil.'!C35)-LEN(SUBSTITUTE('Pers. Bil.'!C35," ",""))),FIND("*",SUBSTITUTE('Pers. Bil.'!C35," ","*",LEN('Pers. Bil.'!C35)-LEN(SUBSTITUTE('Pers. Bil.'!C35," ",""))),1)-1)) ->  | G42: =IF(E42<0,0,MID('Pers. Bil.'!C35,LEN('XML Hes.'!F42)+2,LEN('Pers. Bil.'!C35)-LEN('XML Hes.'!F42))) ->  | I42: =IF('Pers. Bil.'!W35="",0,'Pers. Bil.'!AD35) -> 0 | K42: =IF('Pers. Bil.'!Z35+'Pers. Bil.'!AA35+'Pers. Bil.'!AB35>0,'Pers. Bil.'!Z35+'Pers. Bil.'!AA35+'Pers. Bil.'!AB35/7.5) -> FALSE | L42: ='Pers. Bil.'!F35 -> 0 | M42: ='Pers. Bil.'!H35 -> 0 | U42: =Bodro!#REF!-V42 ->  | V42: =Bodro!#REF!+Bodro!#REF! ->  | W42: 819
A43: 33 | B43: =IF('Pers. Bil.'!D36="Ücretli Öğret.","13","05") -> 05 | E43: =IF('Pers. Bil.'!W36="",0,'Pers. Bil.'!W36) -> 0 | F43: =IF(E43<0,0,LEFT(SUBSTITUTE('Pers. Bil.'!C36," ","*",LEN('Pers. Bil.'!C36)-LEN(SUBSTITUTE('Pers. Bil.'!C36," ",""))),FIND("*",SUBSTITUTE('Pers. Bil.'!C36," ","*",LEN('Pers. Bil.'!C36)-LEN(SUBSTITUTE('Pers. Bil.'!C36," ",""))),1)-1)) ->  | G43: =IF(E43<0,0,MID('Pers. Bil.'!C36,LEN('XML Hes.'!F43)+2,LEN('Pers. Bil.'!C36)-LEN('XML Hes.'!F43))) ->  | I43: =IF('Pers. Bil.'!W36="",0,'Pers. Bil.'!AD36) -> 0 | K43: =IF('Pers. Bil.'!Z36+'Pers. Bil.'!AA36+'Pers. Bil.'!AB36>0,'Pers. Bil.'!Z36+'Pers. Bil.'!AA36+'Pers. Bil.'!AB36/7.5) -> FALSE | L43: ='Pers. Bil.'!F36 -> 0 | M43: ='Pers. Bil.'!H36 -> 0 | U43: =Bodro!#REF!-V43 ->  | V43: =Bodro!#REF!+Bodro!#REF! ->  | W43: 819
A44: 34 | B44: =IF('Pers. Bil.'!D37="Ücretli Öğret.","13","05") -> 05 | E44: =IF('Pers. Bil.'!W37="",0,'Pers. Bil.'!W37) -> 0 | F44: =IF(E44<0,0,LEFT(SUBSTITUTE('Pers. Bil.'!C37," ","*",LEN('Pers. Bil.'!C37)-LEN(SUBSTITUTE('Pers. Bil.'!C37," ",""))),FIND("*",SUBSTITUTE('Pers. Bil.'!C37," ","*",LEN('Pers. Bil.'!C37)-LEN(SUBSTITUTE('Pers. Bil.'!C37," ",""))),1)-1)) ->  | G44: =IF(E44<0,0,MID('Pers. Bil.'!C37,LEN('XML Hes.'!F44)+2,LEN('Pers. Bil.'!C37)-LEN('XML Hes.'!F44))) ->  | I44: =IF('Pers. Bil.'!W37="",0,'Pers. Bil.'!AD37) -> 0 | K44: =IF('Pers. Bil.'!Z37+'Pers. Bil.'!AA37+'Pers. Bil.'!AB37>0,'Pers. Bil.'!Z37+'Pers. Bil.'!AA37+'Pers. Bil.'!AB37/7.5) -> FALSE | L44: ='Pers. Bil.'!F37 -> 0 | M44: ='Pers. Bil.'!H37 -> 0 | U44: =Bodro!#REF!-V44 ->  | V44: =Bodro!#REF!+Bodro!#REF! ->  | W44: 819
A45: 35 | B45: =IF('Pers. Bil.'!D38="Ücretli Öğret.","13","05") -> 05 | E45: =IF('Pers. Bil.'!W38="",0,'Pers. Bil.'!W38) -> 0 | F45: =IF(E45<0,0,LEFT(SUBSTITUTE('Pers. Bil.'!C38," ","*",LEN('Pers. Bil.'!C38)-LEN(SUBSTITUTE('Pers. Bil.'!C38," ",""))),FIND("*",SUBSTITUTE('Pers. Bil.'!C38," ","*",LEN('Pers. Bil.'!C38)-LEN(SUBSTITUTE('Pers. Bil.'!C38," ",""))),1)-1)) ->  | G45: =IF(E45<0,0,MID('Pers. Bil.'!C38,LEN('XML Hes.'!F45)+2,LEN('Pers. Bil.'!C38)-LEN('XML Hes.'!F45))) ->  | I45: =IF('Pers. Bil.'!W38="",0,'Pers. Bil.'!AD38) -> 0 | K45: =IF('Pers. Bil.'!Z38+'Pers. Bil.'!AA38+'Pers. Bil.'!AB38>0,'Pers. Bil.'!Z38+'Pers. Bil.'!AA38+'Pers. Bil.'!AB38/7.5) -> FALSE | L45: ='Pers. Bil.'!F38 -> 0 | M45: ='Pers. Bil.'!H38 -> 0 | U45: =Bodro!#REF!-V45 ->  | V45: =Bodro!#REF!+Bodro!#REF! ->  | W45: 1089.4
A46: 36 | B46: =IF('Pers. Bil.'!D39="Ücretli Öğret.","13","05") -> 05 | E46: =IF('Pers. Bil.'!W39="",0,'Pers. Bil.'!W39) -> 0 | F46: =IF(E46<0,0,LEFT(SUBSTITUTE('Pers. Bil.'!C39," ","*",LEN('Pers. Bil.'!C39)-LEN(SUBSTITUTE('Pers. Bil.'!C39," ",""))),FIND("*",SUBSTITUTE('Pers. Bil.'!C39," ","*",LEN('Pers. Bil.'!C39)-LEN(SUBSTITUTE('Pers. Bil.'!C39," ",""))),1)-1)) ->  | G46: =IF(E46<0,0,MID('Pers. Bil.'!C39,LEN('XML Hes.'!F46)+2,LEN('Pers. Bil.'!C39)-LEN('XML Hes.'!F46))) ->  | I46: =IF('Pers. Bil.'!W39="",0,'Pers. Bil.'!AD39) -> 0 | K46: =IF('Pers. Bil.'!Z39+'Pers. Bil.'!AA39+'Pers. Bil.'!AB39>0,'Pers. Bil.'!Z39+'Pers. Bil.'!AA39+'Pers. Bil.'!AB39/7.5) -> FALSE | L46: ='Pers. Bil.'!F39 -> 0 | M46: ='Pers. Bil.'!H39 -> 0 | U46: =Bodro!#REF!-V46 ->  | V46: =Bodro!#REF!+Bodro!#REF! ->  | W46: 1153.75
A47: 37 | B47: =IF('Pers. Bil.'!D40="Ücretli Öğret.","13","05") -> 05 | E47: =IF('Pers. Bil.'!W40="",0,'Pers. Bil.'!W40) -> 0 | F47: =IF(E47<0,0,LEFT(SUBSTITUTE('Pers. Bil.'!C40," ","*",LEN('Pers. Bil.'!C40)-LEN(SUBSTITUTE('Pers. Bil.'!C40," ",""))),FIND("*",SUBSTITUTE('Pers. Bil.'!C40," ","*",LEN('Pers. Bil.'!C40)-LEN(SUBSTITUTE('Pers. Bil.'!C40," ",""))),1)-1)) ->  | G47: =IF(E47<0,0,MID('Pers. Bil.'!C40,LEN('XML Hes.'!F47)+2,LEN('Pers. Bil.'!C40)-LEN('XML Hes.'!F47))) ->  | I47: =IF('Pers. Bil.'!W40="",0,'Pers. Bil.'!AD40) -> 0 | K47: =IF('Pers. Bil.'!Z40+'Pers. Bil.'!AA40+'Pers. Bil.'!AB40>0,'Pers. Bil.'!Z40+'Pers. Bil.'!AA40+'Pers. Bil.'!AB40/7.5) -> FALSE | L47: ='Pers. Bil.'!F40 -> 0 | M47: ='Pers. Bil.'!H40 -> 0 | U47: =Bodro!#REF!-V47 ->  | V47: =Bodro!#REF!+Bodro!#REF! ->  | W47: 954.98
A48: 38 | B48: =IF('Pers. Bil.'!D41="Ücretli Öğret.","13","05") -> 05 | E48: =IF('Pers. Bil.'!W41="",0,'Pers. Bil.'!W41) -> 0 | F48: =IF(E48<0,0,LEFT(SUBSTITUTE('Pers. Bil.'!C41," ","*",LEN('Pers. Bil.'!C41)-LEN(SUBSTITUTE('Pers. Bil.'!C41," ",""))),FIND("*",SUBSTITUTE('Pers. Bil.'!C41," ","*",LEN('Pers. Bil.'!C41)-LEN(SUBSTITUTE('Pers. Bil.'!C41," ",""))),1)-1)) ->  | G48: =IF(E48<0,0,MID('Pers. Bil.'!C41,LEN('XML Hes.'!F48)+2,LEN('Pers. Bil.'!C41)-LEN('XML Hes.'!F48))) ->  | I48: =IF('Pers. Bil.'!W41="",0,'Pers. Bil.'!AD41) -> 0 | K48: =IF('Pers. Bil.'!Z41+'Pers. Bil.'!AA41+'Pers. Bil.'!AB41>0,'Pers. Bil.'!Z41+'Pers. Bil.'!AA41+'Pers. Bil.'!AB41/7.5) -> FALSE | L48: ='Pers. Bil.'!F41 -> 0 | M48: ='Pers. Bil.'!H41 -> 0 | U48: =Bodro!#REF!-V48 ->  | V48: =Bodro!#REF!+Bodro!#REF! ->  | W48: 858
A49: 39 | B49: =IF('Pers. Bil.'!D42="Ücretli Öğret.","13","05") -> 05 | E49: =IF('Pers. Bil.'!W42="",0,'Pers. Bil.'!W42) -> 0 | F49: =IF(E49<0,0,LEFT(SUBSTITUTE('Pers. Bil.'!C42," ","*",LEN('Pers. Bil.'!C42)-LEN(SUBSTITUTE('Pers. Bil.'!C42," ",""))),FIND("*",SUBSTITUTE('Pers. Bil.'!C42," ","*",LEN('Pers. Bil.'!C42)-LEN(SUBSTITUTE('Pers. Bil.'!C42," ",""))),1)-1)) ->  | G49: =IF(E49<0,0,MID('Pers. Bil.'!C42,LEN('XML Hes.'!F49)+2,LEN('Pers. Bil.'!C42)-LEN('XML Hes.'!F49))) ->  | I49: =IF('Pers. Bil.'!W42="",0,'Pers. Bil.'!AD42) -> 0 | K49: =IF('Pers. Bil.'!Z42+'Pers. Bil.'!AA42+'Pers. Bil.'!AB42>0,'Pers. Bil.'!Z42+'Pers. Bil.'!AA42+'Pers. Bil.'!AB42/7.5) -> FALSE | L49: ='Pers. Bil.'!F42 -> 0 | M49: ='Pers. Bil.'!H42 -> 0 | U49: =Bodro!#REF!-V49 ->  | V49: =Bodro!#REF!+Bodro!#REF! ->  | W49: 819
A50: 40 | B50: =IF('Pers. Bil.'!D43="Ücretli Öğret.","13","05") -> 05 | E50: =IF('Pers. Bil.'!W43="",0,'Pers. Bil.'!W43) -> 0 | F50: =IF(E50<0,0,LEFT(SUBSTITUTE('Pers. Bil.'!C43," ","*",LEN('Pers. Bil.'!C43)-LEN(SUBSTITUTE('Pers. Bil.'!C43," ",""))),FIND("*",SUBSTITUTE('Pers. Bil.'!C43," ","*",LEN('Pers. Bil.'!C43)-LEN(SUBSTITUTE('Pers. Bil.'!C43," ",""))),1)-1)) ->  | G50: =IF(E50<0,0,MID('Pers. Bil.'!C43,LEN('XML Hes.'!F50)+2,LEN('Pers. Bil.'!C43)-LEN('XML Hes.'!F50))) ->  | I50: =IF('Pers. Bil.'!W43="",0,'Pers. Bil.'!AD43) -> 0 | K50: =IF('Pers. Bil.'!Z43+'Pers. Bil.'!AA43+'Pers. Bil.'!AB43>0,'Pers. Bil.'!Z43+'Pers. Bil.'!AA43+'Pers. Bil.'!AB43/7.5) -> FALSE | L50: ='Pers. Bil.'!F43 -> 0 | M50: ='Pers. Bil.'!H43 -> 0 | U50: =Bodro!#REF!-V50 ->  | V50: =Bodro!#REF!+Bodro!#REF! ->  | W50: 1021.02
U51: =SUM(U11:U50) ->  | X51: =SUM(X11:X50) -> 
U53: =U51+X51 -> 
K54: =SUM(K11:K53) -> 

Sheet Bildirge
B1: İŞYERİ | H1: Sürüm:5.1 | I1: 20130411_1646
B2: Sicil No........................ | E2: 185310101118965100108 | G2: Kontrol No........... | H2: 13 | J2: Hazırlanacak XML dosya adını aşağıdaki alana giriniz
B3: Aracı No....................... | E3: 22 | J3: d:\e-Bildirge-03.2016.XML
B4: Ünvan........................... | E4: İl Milli Eğitim Müdürlüğü | J4: Yüklenecek TEXT dosya adını aşağıdaki alana giriniz
B5: Adres........................... | E5: Hacı Saki Mh. Osman Kavuncu Blv. No:40/B KAYSERİ | J5: C:\YYY.TXT
B6: Vergi No....................... | E6: 6210037069
B7: BORDRO
B8: Yıl (yyyy)...................... | E8: 2016 | I8: DİKKAT: | J8: Aşağıdaki Sigorta Bilgileri Belge Türü ve Kanun Bazında Gruplu Girilmelidir.
B9: Ay (aa)......................... | E9: 09 | J9: Sigortalı Bilgileri Arasında Boş Satır Bırakılmamalıdır.
B10: Mahiyet....................... | E10: A | F10: (Asıl için A, Ek için E, Toplu İş Sözleşmesi için T Giriniz) | J10: Bilgisayarınızın Varsayılan Bölgesel Ayarı Türkçe Olmalıdır.
L11: Prim | M11: işe | N11: işten | O11: eksik | P11: eksik | Q11: işten | S11: İstirahat
B12: Sıra | C12: Belge | D12: Kanun | E12: Sigortalı | F12: SGNO (TC Kimlik) | G12: Sigortalı Adı | H12: Sigortalı Soyadı | I12: Sigortalı | J12: ÜCRET | K12: İKRAMİYE | L12: Öd. | M12: giriş g. | N12: çıkış g. | O12: gün | P12: gün | Q12: çıkış | R12: Meslek | S12: Sürelerinde
B13: No | C13: Türü | D13: No(5hane) | E13: Sicil Numarası | F13: Numarası (11hane) | I13: İlkSoyadı | J13: TL | K13: TL | L13: Günü | M13: GGAA | N13: GGAA | O13: sayısı | P13: nedeni | Q13: nedeni | R13: Kod | S13: Çalışmamıştır
B14: 1 | C14: 13 | D14: 00000 | F14: 10963368444 | G14: FARUK | H14: AVCI | J14: 287.24 | L14: 2.933333333 | M14: 0 | N14: 0
B15: 2 | C15: 13 | D15: 00000 | F15: 18601114484 | G15: ESRA | H15: BÜYÜK | J15: 313.35 | L15: 3.2 | M15: 0 | N15: 0
B16: 3 | C16: 13 | D16: 00000 | F16: 20413057248 | G16: GÖNÜL İNAN | H16: KARA(ÇİFTÇİ) | J16: 195.84 | L16: 2 | M16: 0 | N16: 0
B17: 4 | C17: 13 | D17: 00000 | F17: 16214480590 | G17: ZEYNEP | H17: ÇAMLI | J17: 221.96 | L17: 2.266666667 | M17: 0 | N17: 0
B18: 5
B19: 6
B20: 7
B21: 8
B22: 9
B23: 10
B24: 11
B25: 12
B26: 13
B27: 14
B28: 15
B29: 16
B30: 17
B31: 18
B32: 19
B33: 20
B34: 21
B35: 22
B36: 23
B37: 24
B38: 25
B39: 26
B40: 27
B41: 28
B42: 29
B43: 30
B44: 31
B45: 32
B46: 33
B47: 34
B48: 35
B49: 36
B50: 37
B51: 38
B52: 39
B53: 40
C54: Uyarı: Sayfa 500 sigortalı ile sınırlı değildir, 65000 sigortalı girişi yapılabilir.

Sheet AGİ
L1: ASGARİ GEÇİM İNDİRİMİNE AİT BORDRO
A2: Kurum Adı: | C2: Fatih Anadolu Lisesi
A3: Dönemi Ay/Yıl: | C3: =Bodro!U6 -> Dönemi (Ay): EKİM | V3: Sayfa : | W3: 1
W4: EK:2
A5: Personelin | G5: Asgarî Ücret Brüt Tutar : | H5: =Kur.Bil.!AL9 -> 2029.5 | Q5: Yararlanılan Asgari Geçimi İndirimi Tutarı (*****)
A6: Sıra No | B6: T.C. Kimlik No | C6: Adı Soyadı | D6: Ünvanı | E6: Medeni Hali | F6: Çocuk Sayısı | G6: AGİ Çal. ve Eş %'siİ | H6: AGİ Çocuk %'si | I6: Asgari Geçim İndirimi Oranı (%) (**) | J6: As. Geç. İnd. Esas Tutar (***) | K6: Aylık As. Geç. İnd. Tutarı [(3.sütun) X % 15] 12 (****) | L6: 1 | M6: 2 | N6: 3 | O6: 4 | P6: 5 | Q6: 6 | R6: 7 | S6: 8 | T6: 9 | U6: 10 | V6: 11 | W6: 12 | Y6: Bodro AGİ Tutarı
A7: 1 | B7: =Bodro!B10 -> 29867025728 | C7: =Bodro!C10 -> AHMET TOLGA ÇOBAN | D7: =Bodro!D10 -> Ücretli Öğret. | E7: ='Pers. Bil.'!O5 -> Bekar | F7: ='Pers. Bil.'!P5 -> 0 | G7: ='Pers. Bil.'!O5 -> Bekar | H7: ='Pers. Bil.'!P5 -> 0 | I7: ='Pers. Bil.'!AZ5 -> 50 | J7: ='Pers. Bil.'!BA5 -> 12177 | K7: =Bodro!AF10 -> 0 | L7: =Bodro!U10 -> 0 | Y7: =Bodro!#REF! -> 
A8: 2 | B8: =Bodro!B11 -> 28778061818 | C8: =Bodro!C11 -> FATMA NUR CİĞER | D8: =Bodro!D11 -> Ücretli Öğret. | E8: ='Pers. Bil.'!O6 -> Bekar | F8: ='Pers. Bil.'!P6 -> 0 | G8: ='Pers. Bil.'!O6 -> Bekar | H8: ='Pers. Bil.'!P6 -> 0 | I8: ='Pers. Bil.'!AZ6 -> 50 | J8: ='Pers. Bil.'!BA6 -> 12177 | K8: =Bodro!AF11 -> 0 | L8: =Bodro!U11 -> 0 | Y8: =Bodro!#REF! -> 
A9: 3 | B9: =Bodro!B12 -> 28481071876 | C9: =Bodro!C12 -> ZELİHA OKUMUŞ | D9: =Bodro!D12 -> Ücretli Öğret. | E9: ='Pers. Bil.'!O7 -> Bekar | F9: ='Pers. Bil.'!P7 -> 0 | G9: ='Pers. Bil.'!O7 -> Bekar | H9: ='Pers. Bil.'!P7 -> 0 | I9: ='Pers. Bil.'!AZ7 -> 50 | J9: ='Pers. Bil.'!BA7 -> 12177 | K9: =Bodro!AF12 -> 0 | L9: =Bodro!U12 -> 0 | Y9: =Bodro!#REF! -> 
A10: 4 | B10: =Bodro!#REF! ->  | C10: =Bodro!#REF! ->  | D10: =Bodro!#REF! ->  | E10: ='Pers. Bil.'!#REF! ->  | F10: ='Pers. Bil.'!#REF! ->  | G10: ='Pers. Bil.'!#REF! ->  | H10: ='Pers. Bil.'!#REF! ->  | I10: ='Pers. Bil.'!#REF! ->  | J10: ='Pers. Bil.'!#REF! ->  | K10: =Bodro!#REF! ->  | L10: =Bodro!#REF! ->  | Y10: =Bodro!#REF! -> 
A11: 5 | B11: =Bodro!B13 -> 49891358388 | C11: =Bodro!C13 -> MUKADDES TABAK | Y11: =Bodro!#REF! -> 
A12: 6 | B12: =Bodro!B14 -> 49462372478 | Y12: =Bodro!#REF! -> 
A13: 7 | B13: =Bodro!B15 -> 0 | Y13: =Bodro!V10 -> 0
A14: 8 | B14: =Bodro!B16 -> 0 | Y14: =Bodro!V11 -> 0
A15: 9 | B15: =Bodro!B20 -> 0 | C15: =Bodro!C20 -> 0 | Y15: =Bodro!V20 -> 0
A16: 10 | B16: =Bodro!B21 -> 0 | C16: =Bodro!C21 -> 0 | Y16: =Bodro!V21 -> 0
A17: 11 | B17: =Bodro!B22 -> 0 | C17: =Bodro!C22 -> 0 | Y17: =Bodro!V22 -> 0
A18: 12 | B18: =Bodro!B23 -> 0 | C18: =Bodro!C23 -> 0 | Y18: =Bodro!V23 -> 0
A19: 13 | B19: =Bodro!B24 -> 0 | C19: =Bodro!C24 -> 0 | Y19: =Bodro!V24 -> 0
A20: 14 | B20: =Bodro!B25 -> 0 | C20: =Bodro!C25 -> 0 | D20: =Bodro!D25 -> 0 | E20: =Bodro!X25 -> 0 | F20: =Bodro!Y25 -> 0 | G20: =Bodro!Z25 -> 0 | H20: =Bodro!AA25 -> 0 | I20: =Bodro!AB25 -> 0 | J20: =Bodro!AC25 -> 0 | K20: =Bodro!AD25 -> 0 | Y20: =Bodro!V25 -> 0
A21: 15 | B21: =Bodro!B26 -> 0 | C21: =Bodro!C26 -> 0 | D21: =Bodro!D26 -> 0 | E21: =Bodro!X26 -> 0 | F21: =Bodro!Y26 -> 0 | G21: =Bodro!Z26 -> 0 | H21: =Bodro!AA26 -> 0 | I21: =Bodro!AB26 -> 0 | J21: =Bodro!AC26 -> 0 | K21: =Bodro!AD26 -> 0 | Y21: =Bodro!V26 -> 0
A22: 16 | B22: =Bodro!B27 -> 0 | C22: =Bodro!C27 -> 0 | D22: =Bodro!D27 -> 0 | E22: =Bodro!X27 -> 0 | F22: =Bodro!Y27 -> 0 | G22: =Bodro!Z27 -> 0 | H22: =Bodro!AA27 -> 0 | I22: =Bodro!AB27 -> 0 | J22: =Bodro!AC27 -> 0 | K22: =Bodro!AD27 -> 0 | Y22: =Bodro!V27 -> 0
A23: 17 | B23: =Bodro!B28 -> 0 | C23: =Bodro!C28 -> 0 | D23: =Bodro!D28 -> 0 | E23: =Bodro!X28 -> 0 | F23: =Bodro!Y28 -> 0 | G23: =Bodro!Z28 -> 0 | H23: =Bodro!AA28 -> 0 | I23: =Bodro!AB28 -> 0 | J23: =Bodro!AC28 -> 0 | K23: =Bodro!AD28 -> 0 | Y23: =Bodro!V28 -> 0
A24: 61 | Y24: =Bodro!#REF! -> 
A25: 62 | B25: =Bodro!B35 -> Adı Soyadı : | C25: =Bodro!C35 -> Yasin CEPECİ | D25: =Bodro!D35 -> 0 | E25: =Bodro!X35 -> 0 | F25: =Bodro!Y35 -> 0 | G25: =Bodro!Z35 -> 0 | H25: =Bodro!AA35 -> 0 | I25: =Bodro!AB35 -> 0 | J25: =Bodro!AC35 -> 0 | K25: =Bodro!AD35 -> 0 | Y25: =Bodro!#REF! -> 
A26: 63 | B26: =Bodro!B36 -> Ünvanı : | C26: =Bodro!C36 -> Müdür Yrd. | D26: =Bodro!D36 -> 0 | E26: =Bodro!X36 -> 0 | F26: =Bodro!Y36 -> 0 | G26: =Bodro!Z36 -> 0 | H26: =Bodro!AA36 -> 0 | I26: =Bodro!AB36 -> 0 | J26: =Bodro!AC36 -> 0 | K26: =Bodro!AD36 -> 0 | Y26: =Bodro!#REF! -> 
A27: 64 | B27: =Bodro!B37 -> İmza : | C27: =Bodro!C37 -> …………………………………… | D27: =Bodro!D37 -> 0 | E27: =Bodro!X37 -> 0 | F27: =Bodro!Y37 -> 0 | G27: =Bodro!Z37 -> 0 | H27: =Bodro!AA37 -> 0 | I27: =Bodro!AB37 -> 0 | J27: =Bodro!AC37 -> 0 | K27: =Bodro!AD37 -> 0 | Y27: =Bodro!#REF! -> 
A28: 65 | B28: =Bodro!B38 -> 0 | C28: =Bodro!C38 -> 0 | D28: =Bodro!D38 -> 0 | E28: =Bodro!X38 -> 0 | F28: =Bodro!Y38 -> 0 | G28: =Bodro!Z38 -> 0 | H28: =Bodro!AA38 -> 0 | I28: =Bodro!AB38 -> 0 | J28: =Bodro!AC38 -> 0 | K28: =Bodro!AD38 -> 0 | Y28: =Bodro!#REF! -> 
A29: 66 | B29: =Bodro!B39 -> 0 | C29: =Bodro!C39 -> 0 | D29: =Bodro!D39 -> 0 | E29: =Bodro!X39 -> 0 | F29: =Bodro!Y39 -> 0 | G29: =Bodro!Z39 -> 0 | H29: =Bodro!AA39 -> 0 | I29: =Bodro!AB39 -> 0 | J29: =Bodro!AC39 -> 0 | K29: =Bodro!AD39 -> 0
A30: 67 | B30: =Bodro!B40 -> 0 | C30: =Bodro!C40 -> 0 | D30: =Bodro!D40 -> 0 | E30: =Bodro!X40 -> 0 | F30: =Bodro!Y40 -> 0 | G30: =Bodro!Z40 -> 0 | H30: =Bodro!AA40 -> 0 | I30: =Bodro!AB40 -> 0 | J30: =Bodro!AC40 -> 0 | K30: =Bodro!AD40 -> 0
A31: 68 | B31: =Bodro!B41 -> 0 | C31: =Bodro!C41 -> 0 | D31: =Bodro!D41 -> 0 | E31: =Bodro!X41 -> 0 | F31: =Bodro!Y41 -> 0 | G31: =Bodro!Z41 -> 0 | H31: =Bodro!AA41 -> 0 | I31: =Bodro!AB41 -> 0 | J31: =Bodro!AC41 -> 0 | K31: =Bodro!AD41 -> 0
A32: 69 | B32: =Bodro!#REF! ->  | C32: =Bodro!#REF! ->  | D32: =Bodro!#REF! ->  | E32: =Bodro!#REF! ->  | F32: =Bodro!#REF! ->  | G32: =Bodro!#REF! ->  | H32: =Bodro!#REF! ->  | I32: =Bodro!#REF! ->  | J32: =Bodro!#REF! ->  | K32: =Bodro!#REF! -> 
A33: 70 | B33: =Bodro!#REF! ->  | C33: =Bodro!#REF! ->  | D33: =Bodro!#REF! ->  | E33: =Bodro!#REF! ->  | F33: =Bodro!#REF! ->  | G33: =Bodro!#REF! ->  | H33: =Bodro!#REF! ->  | I33: =Bodro!#REF! ->  | J33: =Bodro!#REF! ->  | K33: =Bodro!#REF! -> 
A34: 71 | B34: =Bodro!#REF! ->  | C34: =Bodro!#REF! ->  | D34: =Bodro!#REF! ->  | E34: =Bodro!#REF! ->  | F34: =Bodro!#REF! ->  | G34: =Bodro!#REF! ->  | H34: =Bodro!#REF! ->  | I34: =Bodro!#REF! ->  | J34: =Bodro!#REF! ->  | K34: =Bodro!#REF! -> 
A35: 72 | B35: =Bodro!#REF! ->  | C35: =Bodro!#REF! ->  | D35: =Bodro!#REF! ->  | E35: =Bodro!#REF! ->  | F35: =Bodro!#REF! ->  | G35: =Bodro!#REF! ->  | H35: =Bodro!#REF! ->  | I35: =Bodro!#REF! ->  | J35: =Bodro!#REF! ->  | K35: =Bodro!#REF! -> 
A36: 73 | B36: =Bodro!#REF! ->  | C36: =Bodro!#REF! ->  | D36: =Bodro!#REF! ->  | E36: =Bodro!#REF! ->  | F36: =Bodro!#REF! ->  | G36: =Bodro!#REF! ->  | H36: =Bodro!#REF! ->  | I36: =Bodro!#REF! ->  | J36: =Bodro!#REF! ->  | K36: =Bodro!#REF! -> 
A37: 74 | B37: =Bodro!#REF! ->  | C37: =Bodro!#REF! ->  | D37: =Bodro!#REF! ->  | E37: =Bodro!#REF! ->  | F37: =Bodro!#REF! ->  | G37: =Bodro!#REF! ->  | H37: =Bodro!#REF! ->  | I37: =Bodro!#REF! ->  | J37: =Bodro!#REF! ->  | K37: =Bodro!#REF! -> 
A38: 75 | B38: =Bodro!#REF! ->  | C38: =Bodro!#REF! ->  | D38: =Bodro!#REF! ->  | E38: =Bodro!#REF! ->  | F38: =Bodro!#REF! ->  | G38: =Bodro!#REF! ->  | H38: =Bodro!#REF! ->  | I38: =Bodro!#REF! ->  | J38: =Bodro!#REF! ->  | K38: =Bodro!#REF! -> 
A39: 76 | B39: =Bodro!#REF! ->  | C39: =Bodro!#REF! ->  | D39: =Bodro!#REF! ->  | E39: =Bodro!#REF! ->  | F39: =Bodro!#REF! ->  | G39: =Bodro!#REF! ->  | H39: =Bodro!#REF! ->  | I39: =Bodro!#REF! ->  | J39: =Bodro!#REF! ->  | K39: =Bodro!#REF! -> 
A40: 77 | B40: =Bodro!#REF! ->  | C40: =Bodro!#REF! ->  | D40: =Bodro!#REF! ->  | E40: =Bodro!#REF! ->  | F40: =Bodro!#REF! ->  | G40: =Bodro!#REF! ->  | H40: =Bodro!#REF! ->  | I40: =Bodro!#REF! ->  | J40: =Bodro!#REF! ->  | K40: =Bodro!#REF! -> 
A41: 78 | B41: =Bodro!#REF! ->  | C41: =Bodro!#REF! ->  | D41: =Bodro!#REF! ->  | E41: =Bodro!#REF! ->  | F41: =Bodro!#REF! ->  | G41: =Bodro!#REF! ->  | H41: =Bodro!#REF! ->  | I41: =Bodro!#REF! ->  | J41: =Bodro!#REF! ->  | K41: =Bodro!#REF! -> 
A42: 79 | B42: =Bodro!B42 -> 0 | C42: =Bodro!C42 -> 0 | D42: =Bodro!D42 -> 0 | E42: =Bodro!X42 -> 0 | F42: =Bodro!Y42 -> 0 | G42: =Bodro!Z42 -> 0 | H42: =Bodro!AA42 -> 0 | I42: =Bodro!AB42 -> 0 | J42: =Bodro!AC42 -> 0 | K42: =Bodro!AD42 -> 0
A43: 80 | B43: =Bodro!B43 -> 0 | C43: =Bodro!C43 -> 0 | D43: =Bodro!D43 -> 0 | E43: =Bodro!X43 -> 0 | F43: =Bodro!Y43 -> 0 | G43: =Bodro!Z43 -> 0 | H43: =Bodro!AA43 -> 0 | I43: =Bodro!AB43 -> 0 | J43: =Bodro!AC43 -> 0 | K43: =Bodro!AD43 -> 0
A44: 36 | B44: =Bodro!#REF! ->  | C44: =Bodro!#REF! ->  | D44: =Bodro!#REF! ->  | E44: =Bodro!#REF! ->  | F44: =Bodro!#REF! ->  | G44: =Bodro!#REF! ->  | H44: =Bodro!#REF! ->  | I44: =Bodro!#REF! ->  | J44: =Bodro!#REF! ->  | K44: =Bodro!#REF! -> 
A45: 37 | B45: =Bodro!#REF! ->  | C45: =Bodro!#REF! ->  | D45: =Bodro!#REF! ->  | E45: =Bodro!#REF! ->  | F45: =Bodro!#REF! ->  | G45: =Bodro!#REF! ->  | H45: =Bodro!#REF! ->  | I45: =Bodro!#REF! ->  | J45: =Bodro!#REF! ->  | K45: =Bodro!#REF! -> 
A46: 38 | B46: =Bodro!#REF! ->  | C46: =Bodro!#REF! ->  | D46: =Bodro!#REF! ->  | E46: =Bodro!#REF! ->  | F46: =Bodro!#REF! ->  | G46: =Bodro!#REF! ->  | H46: =Bodro!#REF! ->  | I46: =Bodro!#REF! ->  | J46: =Bodro!#REF! ->  | K46: =Bodro!#REF! -> 
A47: 39 | B47: =Bodro!#REF! ->  | C47: =Bodro!#REF! ->  | D47: =Bodro!#REF! ->  | E47: =Bodro!#REF! ->  | F47: =Bodro!#REF! ->  | G47: =Bodro!#REF! ->  | H47: =Bodro!#REF! ->  | I47: =Bodro!#REF! ->  | J47: =Bodro!#REF! ->  | K47: =Bodro!#REF! -> 
A48: 40 | B48: =Bodro!#REF! ->  | C48: =Bodro!#REF! ->  | D48: =Bodro!#REF! ->  | E48: =Bodro!#REF! ->  | F48: =Bodro!#REF! ->  | G48: =Bodro!#REF! ->  | H48: =Bodro!#REF! ->  | I48: =Bodro!#REF! ->  | J48: =Bodro!#REF! ->  | K48: =Bodro!#REF! -> 
C49: SAYFA TOPLAMI | K49: =SUM(K7:K48) ->  | L49: =SUM(L7:L48) ->  | M49: 0 | N49: 0 | O49: 0 | P49: 0 | Q49: 0 | R49: 0 | S49: 0 | T49: 0 | U49: 0 | V49: 0 | W49: 0 | Y49: =SUM(Y7:Y48) -> 
B50: İl Milli Eğitim Müdürlüğünde görevli daimi kadrolu işçilere ait asgari geçim indirimi tutarı olarak
B51: =tl_yaz(K49) ->  | D51: tahakkuk ettirilmiştir.
C54: Düzenleyen | R54: Gerçekleştirme Görevlisi
C56: =TODAY() -> 2018-10-09 | S56: =TODAY() -> 2018-10-09
B58: Adı Soyadı : | C58: =Kur.Bil.!$AE$12 -> YASİN CEPECİ | R58: Adı Soyadı : | S58: =Kur.Bil.!$AF$21 -> MUSTAFA YILMAZ
B59: Ünvanı : | C59: =Kur.Bil.!$AE$13 -> MÜDÜR YARD. | R59: Ünvanı : | S59: =Kur.Bil.!$AF$22 -> OKUL MÜDÜRÜ
B60: İmza : | C60: ……………………………………………. | R60: İmza : | S60: …………………………………………….

Sheet Banka List.
E1: BANKA LİSTESİ
I2: EK-1
B3: Muhasebe Biriminin Adı | D3: Yahyalı Mal Müdürlüğü | G3: Muhasebe Biriminin Kodu | H3: 109
B4: Harcama Biriminin Adı | D4: Yahyalı Çok Programlı Anadolu Lisesi | G4: Harcama Biriminin Kodu | H4: 13.1.33.62.631
B5: Banka Adı | D5: T.C. Vakıflar Bankası | G5: Banka Şube Adı | H5: Yahyalı Şubesi
B6: Aylığın Ait Olduğu Yıl | D6: =Kur.Bil.!R9 -> 2018 | G6: Aylığın Ait Olduğu Ay | I6: =Kur.Bil.!R8 -> EKİM
E8: ALACAKLILARIN
B9: Sıra No | C9: T.C. Kimlik No | D9: Adı - Soyadı | E9: Unvanı | F9: Banka Şube Kodu | G9: Banka Hesap No | H9: Banka Hesap IBAN No | I9: Ödenecek Net Aylık Tutar
B10: 1 | C10: ='Pers. Bil.'!B5 -> 29867025728 | D10: ='Pers. Bil.'!C5 -> AHMET TOLGA ÇOBAN | E10: ='Pers. Bil.'!D5 -> Ücretli Öğret. | F10: ='Pers. Bil.'!J5 -> 158 | G10: ='Pers. Bil.'!K5 -> 0 | H10: TR26 0001 5001 5800 7304 3656 42 | I10: 168.9
B11: 2 | C11: ='Pers. Bil.'!B6 -> 28778061818 | D11: ='Pers. Bil.'!C6 -> FATMA NUR CİĞER | E11: ='Pers. Bil.'!D6 -> Ücretli Öğret. | F11: ='Pers. Bil.'!J6 -> 158 | G11: ='Pers. Bil.'!K6 -> 0 | H11: TR67 0001 5001 5800 7307 8944 43 | I11: 619.29
B12: 3 | C12: ='Pers. Bil.'!B7 -> 28481071876 | D12: ='Pers. Bil.'!C7 -> ZELİHA OKUMUŞ | E12: ='Pers. Bil.'!D7 -> Ücretli Öğret. | F12: ='Pers. Bil.'!J7 -> 158 | G12: ='Pers. Bil.'!K7 -> 0 | H12: TR32 0001 5001 5800 7307 9020 57 | I12: 760.03
B13: 5 | C13: ='Pers. Bil.'!B8 -> 49891358388 | D13: ='Pers. Bil.'!C8 -> MUKADDES TABAK | E13: ='Pers. Bil.'!D8 -> Ücretli Öğret. | F13: ='Pers. Bil.'!J8 -> 158 | G13: ='Pers. Bil.'!K8 -> 0 | H13: TR96 0001 5001 5800 7303 9304 04 | I13: 197.05
B14: 6 | C14: ='Pers. Bil.'!B9 -> 49462372478 | D14: ='Pers. Bil.'!C9 -> VİLDAN GEYİK | E14: ='Pers. Bil.'!D9 -> Ücretli Öğret. | F14: 158 | G14: ='Pers. Bil.'!K9 -> 0 | H14: TR28 0001 5001 5800 7307 8927 20 | I14: 140.75
B15: 7 | C15: ='Pers. Bil.'!B10 -> 0 | D15: ='Pers. Bil.'!C10 -> 0 | E15: ='Pers. Bil.'!D10 -> 0 | F15: ='Pers. Bil.'!J10 -> 0 | G15: ='Pers. Bil.'!K10 -> 0 | H15: ='Pers. Bil.'!L10 -> 0 | I15: ='Pers. Bil.'!AQ10 -> 0
B16: 8 | C16: ='Pers. Bil.'!B11 -> 0 | D16: ='Pers. Bil.'!C11 -> 0 | E16: ='Pers. Bil.'!D11 -> 0 | F16: ='Pers. Bil.'!J11 -> 0 | G16: ='Pers. Bil.'!K11 -> 0 | H16: ='Pers. Bil.'!L11 -> 0 | I16: ='Pers. Bil.'!AQ11 -> 0
B17: 9 | C17: ='Pers. Bil.'!B12 -> 0 | D17: ='Pers. Bil.'!C12 -> 0 | E17: ='Pers. Bil.'!D12 -> 0 | F17: ='Pers. Bil.'!J12 -> 0 | G17: ='Pers. Bil.'!K12 -> 0 | H17: ='Pers. Bil.'!L12 -> 0 | I17: ='Pers. Bil.'!AQ12 -> 0
B18: 10 | C18: ='Pers. Bil.'!B13 -> 0 | D18: ='Pers. Bil.'!C13 -> 0 | E18: ='Pers. Bil.'!D13 -> 0 | F18: ='Pers. Bil.'!J13 -> 0 | G18: ='Pers. Bil.'!K13 -> 0 | H18: ='Pers. Bil.'!L13 -> 0 | I18: ='Pers. Bil.'!AQ13 -> 0
B19: 11 | C19: ='Pers. Bil.'!B14 -> 0 | D19: ='Pers. Bil.'!C14 -> 0 | E19: ='Pers. Bil.'!D14 -> 0 | F19: ='Pers. Bil.'!J14 -> 0 | G19: ='Pers. Bil.'!K14 -> 0 | H19: ='Pers. Bil.'!L14 -> 0 | I19: ='Pers. Bil.'!AQ14 -> 0
B20: 12 | C20: ='Pers. Bil.'!B15 -> 0 | D20: ='Pers. Bil.'!C15 -> 0 | E20: ='Pers. Bil.'!D15 -> 0 | F20: ='Pers. Bil.'!J15 -> 0 | G20: ='Pers. Bil.'!K15 -> 0 | H20: ='Pers. Bil.'!L15 -> 0 | I20: ='Pers. Bil.'!AQ15 -> 0
B21: 13 | C21: ='Pers. Bil.'!B16 -> 0 | D21: ='Pers. Bil.'!C16 -> 0 | E21: ='Pers. Bil.'!D16 -> 0 | F21: ='Pers. Bil.'!J16 -> 0 | G21: ='Pers. Bil.'!K16 -> 0 | H21: ='Pers. Bil.'!L16 -> 0 | I21: ='Pers. Bil.'!AQ16 -> 0
B22: 14 | C22: ='Pers. Bil.'!B17 -> 0 | D22: ='Pers. Bil.'!C17 -> 0 | E22: ='Pers. Bil.'!D17 -> 0 | F22: ='Pers. Bil.'!J17 -> 0 | G22: ='Pers. Bil.'!K17 -> 0 | H22: ='Pers. Bil.'!L17 -> 0 | I22: ='Pers. Bil.'!AQ17 -> 0
B23: 15 | C23: ='Pers. Bil.'!B18 -> 0 | D23: ='Pers. Bil.'!C18 -> 0 | E23: ='Pers. Bil.'!D18 -> 0 | F23: ='Pers. Bil.'!J18 -> 0 | G23: ='Pers. Bil.'!K18 -> 0 | H23: ='Pers. Bil.'!L18 -> 0 | I23: ='Pers. Bil.'!AQ18 -> 0
B24: 16 | C24: ='Pers. Bil.'!B19 -> 0 | D24: ='Pers. Bil.'!C19 -> 0 | E24: ='Pers. Bil.'!D19 -> 0 | F24: ='Pers. Bil.'!J19 -> 0 | G24: ='Pers. Bil.'!K19 -> 0 | H24: ='Pers. Bil.'!L19 -> 0 | I24: ='Pers. Bil.'!AQ19 -> 0
B25: 17 | C25: ='Pers. Bil.'!B20 -> 0 | D25: ='Pers. Bil.'!C20 -> 0 | E25: ='Pers. Bil.'!D20 -> 0 | F25: ='Pers. Bil.'!J20 -> 0 | G25: ='Pers. Bil.'!K20 -> 0 | H25: ='Pers. Bil.'!L20 -> 0 | I25: ='Pers. Bil.'!AQ20 -> 0
B26: 18 | C26: ='Pers. Bil.'!B21 -> 0 | D26: ='Pers. Bil.'!C21 -> 0 | E26: ='Pers. Bil.'!D21 -> 0 | F26: ='Pers. Bil.'!J21 -> 0 | G26: ='Pers. Bil.'!K21 -> 0 | H26: ='Pers. Bil.'!L21 -> 0 | I26: ='Pers. Bil.'!AQ21 -> 0
B27: 19 | C27: ='Pers. Bil.'!B22 -> 0 | D27: ='Pers. Bil.'!C22 -> 0 | E27: ='Pers. Bil.'!D22 -> 0 | F27: ='Pers. Bil.'!J22 -> 0 | G27: ='Pers. Bil.'!K22 -> 0 | H27: ='Pers. Bil.'!L22 -> 0 | I27: ='Pers. Bil.'!AQ22 -> 0
B28: 20 | C28: ='Pers. Bil.'!B23 -> 0 | D28: ='Pers. Bil.'!C23 -> 0 | E28: ='Pers. Bil.'!D23 -> 0 | F28: ='Pers. Bil.'!J23 -> 0 | G28: ='Pers. Bil.'!K23 -> 0 | H28: ='Pers. Bil.'!L23 -> 0 | I28: ='Pers. Bil.'!AQ23 -> 0
G29: T O P L A M | I29: =SUM(I10:I28) -> 1886.02
C31: Bordro Kayıtlarına Uygundur. | E31: Bordro Kayıtlarına Uygundur. | I31: Kontrol edilmiştir.
C32: Gerçekleştirme Görevlisi | E32: Harcama Yetkilisi | I32: Muhasebe Yetkilisi
C33: =TODAY() -> 2018-10-09 | E33: .10.2018 | I33: =E33 -> .10.2018
C34: Yasin CEPECİ
C35: Müd.yrd.
C37: İmza | I37: İmza

Sheet Öd. Emri
U1: ÖDEME EMRİ BELGESİ | AO1: EKDERS BORDROSU
A2: Muhasebe Birimi Kodu | AO2: TAHAKKUK BÖLÜMÜ
A3: Muhasebe Birimi Adı | N3: Bütçe Yılı | R3: =TODAY() -> 2018-10-09 | W3: İlgilinin | Z3: Adı, Soyadı | AO3: Ekders Saat Toplamı (%140 Göst.) | AP3: ='Pers. Bil.'!Z24 -> 20
A4: Kurum-Birim Kodu | E4: 1 | F4: 2 | G4: 3 | H4: 4 | I4: 5 | J4: Yevmiyenin | N4: Tarihi | R4: =TODAY() -> 2018-10-09 | Z4: T.C./Vergi Kimlik No | AO4: Ekders Saat Toplamı (%150 Göst.) | AP4: ='Pers. Bil.'!AA24 -> 0
N5: No.su | Z5: Banka Şube Adı | AO5: Ekders Saat Toplamı (%140 Göst.x%25 Fazlası) | AP5: ='Pers. Bil.'!AB24 -> 0
A6: Kurum Adı | Z6: Banka Hesap No | AO6: TAHAKKUK TOPLAMI | AP6: ='Pers. Bil.'!AC24 -> 330.23
A7: Birim Adı | Z7: İban Kodu. | AO7: SGK MATRAH TOPLAMI | AP7: ='Pers. Bil.'!AD24 -> 330.23
A8: Hesap No | E8: Kurumsal Kod | J8: Forksiyonel Kod | N8: Finans Kodu | P8: Ekonomik/Y.Hesap Kodu | T8: T u t a r | AF8: Hesap/Ayrıntı Adı | AO8: SGK İşveren Payı (%20,5) | AP8: ='Pers. Bil.'!AE24 -> 67.7
T9: B o r ç | Z9: A l a c a k | AO9: BRÜT TOPLAM | AP9: ='Pers. Bil.'!AF24 -> 397.93
E11: 1 | F11: 2 | G11: 3 | H11: 4 | I11: 5 | J11: 1 | K11: 2 | L11: 3 | M11: 4 | N11: 1 | P11: 1 | Q11: 2 | R11: 3 | S11: 4 | X11: TL | Y11: Kr | Z11: TL | AD11: TL | AE11: Kr | AO11: Süregelen Yıllık Gelir Vergisi Toplamı | AP11: ='Pers. Bil.'!AG24 -> 0
A12: 630 | E12: 13 | F12: 1 | G12: 32 | H12: 62 | I12: 285 | J12: 9 | K12: 2 | L12: 1 | M12: 0 | N12: 1 | P12: 01 | Q12: 4 | R12: 01 | S12: 4 | T12: =AP6 -> 330.23 | AF12: Ücretli Öğretmen Ekders Ücretleri | AO12: Aylık Gelir Vergisi Matrah Toplamı | AP12: ='Pers. Bil.'!AH24 -> 284
A13: 630 | E13: 13 | F13: 1 | G13: 32 | H13: 62 | I13: 285 | J13: 9 | K13: 2 | L13: 1 | M13: 0 | N13: 1 | P13: 02 | Q13: 03 | R13: 06 | S13: 01 | T13: =AP8 -> 67.7 | AF13: Sosyal Güvenlik Primi Ödemeleri | AO13: Gelir Vergisi Tutarı | AP13: ='Pers. Bil.'!AI24 -> 42.6
A14: 630 | E14: 13 | F14: 1 | G14: 32 | H14: 62 | I14: 285 | J14: 9 | K14: 2 | L14: 1 | M14: 0 | N14: 1 | P14: 12 | Q14: 01 | R14: 01 | S14: 09 | T14: =AP20 -> 42.6 | AF14: Ücretlerde Vergi İndirimi | AO14: Damga Vergisi Tutarı | AP14: ='Pers. Bil.'!AJ24 -> 2.51
AO15: SGK İşveren Payı (%20,5-%22,5) | AP15: ='Pers. Bil.'!AK24 -> 67.7
A16: 600 | P16: 01 | Q16: 01 | R16: 01 | S16: 03 | Z16: =AP13 -> 42.6 | AF16: Gelir Vergisi Tevkifatı | AO16: SGK İşveren Payı (%14-%7,5) | AP16: ='Pers. Bil.'!AL24 -> 46.23
A17: 600 | P17: 01 | Q17: 05 | R17: 01 | S17: 01 | Z17: =AP14 -> 2.51 | AF17: Damga Vergisi | AO17: İcra Kesinti Tutarı | AP17: ='Pers. Bil.'!AM24 -> 0
A18: 333 | P18: 03 | Q18: 01 | Z18: =AP17 -> 0 | AF18: İcra Kesintisi | AO18: Kesinti Toplamı | AP18: ='Pers. Bil.'!AN24 -> 159.04
A19: 361 | P19: 10 | Q19: 01 | R19: 02 | S19: 01 | Z19: =AP15 -> 67.7 | AF19: SGK Primleri İşveren Payı (Kurum) | AO19: Ödeme Tutarı | AP19: ='Pers. Bil.'!AO24 -> 238.89
A20: 361 | P20: 10 | Q20: 01 | R20: 01 | S20: 01 | Z20: =AP16 -> 46.23 | AF20: SGK Primleri İştirakçi Payları (Kişi) | AO20: As. Gec. İnd. Tutarı | AP20: ='Pers. Bil.'!AP24 -> 42.6
AO21: Ele Geçen Tutarı | AP21: ='Pers. Bil.'!AQ24 -> 281.49
A22: 325 | E22: 13 | F22: 1 | G22: 0 | H22: 62 | P22: 01 | Q22: 12 | R22: 01 | S22: 00 | Z22: =(E44+J44)-N44 -> 281.49 | AF22: 15. Ödenecek Persınel Gideri
A24: 830 | E24: =E12 -> 13 | F24: =F12 -> 1 | G24: 32 | H24: 62 | I24: 290 | J24: 9 | K24: 2 | L24: 1 | M24: 0 | N24: =N12 -> 1 | P24: =P12 -> 01 | Q24: =Q12 -> 4 | R24: =R12 -> 01 | S24: =S12 -> 4 | T24: =T12 -> 330.23 | AF24: =AF12 -> Ücretli Öğretmen Ekders Ücretleri
A25: 830 | E25: =E13 -> 13 | F25: =F13 -> 1 | G25: =G13 -> 32 | H25: =H13 -> 62 | I25: 290 | J25: =J13 -> 9 | K25: =K13 -> 2 | L25: =L13 -> 1 | M25: =M13 -> 0 | N25: =N13 -> 1 | P25: =P13 -> 02 | Q25: 03 | R25: 06 | S25: 01 | T25: =T13 -> 67.7 | AF25: =AF13 -> Sosyal Güvenlik Primi Ödemeleri
A27: 835 | P27: 00 | Q27: 00 | R27: 00 | S27: 00 | Z27: =T24+T25 -> 397.93 | AF27: GİDER YANSITMA HESABI
A29: 800 | P29: =P16 -> 01 | Q29: 01 | R29: 01 | S29: 03 | Z29: =Z16 -> 42.6 | AF29: Gelir Vergisi
A30: 800 | P30: 01 | Q30: 05 | R30: 01 | S30: 01 | Z30: =Z17 -> 2.51 | AF30: Damga Vergisi
A31: 805 | P31: 00 | Q31: 00 | R31: 00 | S31: 00 | T31: =Z16+Z17 -> 45.11 | AF31: GELİR YANSITMA HESABI
A32: 805 | P32: 00 | Q32: 00 | R32: 00 | S32: 00 | Z32: =T14 -> 42.6 | AF32: GELİR YANSITMA HESABI
A34: 810 | E34: =E14 -> 13 | F34: =F14 -> 1 | G34: =G14 -> 32 | H34: =H14 -> 62 | J34: =J14 -> 9 | K34: =K14 -> 2 | L34: =L14 -> 1 | M34: =M14 -> 0 | P34: =P14 -> 12 | Q34: =Q14 -> 01 | R34: =R14 -> 01 | S34: =S14 -> 09 | T34: =T14 -> 42.6 | AF34: =AF14 -> Ücretlerde Vergi İndirimi
A36: Toplam | T36: =SUM(T12:Y34) -> 926.17 | Z36: =SUM(Z12:Z34) -> 926.17
A37: Bütçe Giderleri Tahakkuk Toplamı | T37: =SUM(T12:Y14) -> 440.53 | Z37: =SUM(Z16:AE22) -> 440.53
A39: ="Yukarıda Yazılı : "&tl_yaz(T37) -> Yukarıda Yazılı : DörtYüzKırk TürkLirası ElliÜç Kuruş | T39: Bütçe gideri tahakkuk ettirilmiştir. Ödenmesi / Mahsubu gerekir.
AF41: Kontrol Edilmiştir ve Uygun Görülmüştür.
A42: Ödeme Emri Belgesi No. | E42: Bütçe Gideri Tahakkuk Toplamı | J42: Özel Gider İndirimi Toplamı | N42: Kesinti Toplamı | R42: Ödenmesi Gereken | V42: Çek/Gönderme Emri No | AC42: =TODAY() -> 2018-10-09
AF43: Gerçekleştirme Görevlisi
E44: =ROUND(T12+T13,2) -> 397.93 | J44: =T14 -> 42.6 | N44: =SUM(Z16:AE20) -> 159.04 | R44: =(E44-N44)+J44 -> 281.49 | AB44: Osman BAYER
AB45: Müdür Yardımcısı
A46: Tetkik Eden
A47: Memur | F47: Şef | M47: Muhasebe Yetkilisi Yrd. | T47: Açıklama ve Ekler
T48: ="Fatih Anadolu Lisesi Müdürlüğü ücretli öğretmenlerine ait "&Kur.Bil.!R8&" dönemi ekders ücret ödeme evrakları." -> Fatih Anadolu Lisesi Müdürlüğü ücretli öğretmenlerine ait EKİM dönemi ekders ücret ödeme evrakları.
A50: Ödemeye Esas Belgenin | T50: 1 | U50: Bodro | AE50: 1 | AF50: Personel Bildirimi
A51: Türü | E51: Tarihi | J51: No.su | O51: Tutarı | T51: 1 | U51: Devam Takip Çizelgesi | AE51: 2 | AF51: Banka Ödeme Listesi
T52: 1 | U52: AGİ Bodro ve ekleri | AE52: 1 | AF52: E-Bildirge Tahakkuk Çıktısı
T55: Uygundur | AG55: Ödeyiniz/Mahsup Ediniz
R56: =TODAY() -> 2018-10-09 | AF56: =R56 -> 2018-10-09
T57: Harcama Yetkilisi | AG57: Muhasebe Yetkilisi
P58: Ahmet OSMANCA
Q59: Okul Müdürü
A62: ="Yalnız : "&tl_yaz(R44) -> Yalnız : İkiYüzSeksenBir TürkLirası KırkDokuz Kuruş | T62: ilgili banka hesabına.

Sheet Açıklamalar 1
B1: SGK (SSK) VE VERGİ KESİNTİLERİ TABLOSU
B3: Sigorta Primlerinin Hesabına Esas Tutulacak Kazançların Aylık Tutarının Tespitinde Nazara Alınmayacak Olan Yemek Parası ile Çocuk ve Aile Zamlarının Günlük ve Aylık Tutarlarının Tespitine İlişkin Tebliğ
B5: Sigorta Primine Esas Olan ve Olmayan Kazançlar (Açıklamalı)
B7: ÖDEMENİN TÜRÜ | C7: SSK | D7: GELİR VERGİSİ | E7: DAMGA VERGİSİ
B8: Aile Yardımı | C8: Tıklayınız | D8: Var | E8: Yok
B9: Asıl Ücret | C9: Ssk Tavanı Var | D9: Var | E9: Var
B10: Askerlik Yardımı | C10: Var | D10: Var | E10: Var
B11: Avanslar (ücret) | C11: Yok | D11: Kesilmiyor | E11: Yok
B12: Bayram Harçlığı | C12: Var | D12: Var | E12: Var
B13: Bayram Yardımı | C13: Var | D13: Var | E13: Var
B14: Çıraklık Ücreti | C14: Yok | D14: Sınırlı (Gvk 25/5) | E14: Yok (3308 sayılı)
B15: Çocuk Yardımı | C15: Tıklayınız | D15: Sınırlı (Gvk 25/4) | E15: Yok
B16: Doğum Yardımı | C16: Yok | D16: Sınırlı (Gvk 25/5) | E16: Var
B17: Eğitim Öğretim Yardımı | C17: Var | D17: Var | E17: Var
B18: Elbise Bedeli | C18: Yok | D18: Var Gvk 27/2 hrç | E18: Var
B19: Evlenme Yardımı | C19: Yok | D19: Sınırlı (Gvk 25/5) | E19: Yok
B20: Fazla Mesai | C20: Var | D20: Var | E20: Var
B21: Gece Zammı | C21: Var | D21: Var | E21: Var
B22: Giyecek Yardımı (Ayni) | C22: Yok | D22: Var | E22: Yok
B23: Giyecek Yardımı (Nakdi) | C23: Var (4958/36) | D23: Var | E23: Var
B24: Huzur Hakkı | C24: Yok | D24: Var | E24: Var
B25: İhbar Tazminatı | C25: Yok | D25: Var | E25: Var
B26: İkramiye | C26: Var | D26: Var | E26: Var
B27: İstirahat Yardımı | C27: Yok | D27: Var | E27: Var
B28: İş Riski Zammı | C28: Var | D28: Var | E28: Var
B29: İzin Harçlığı | C29: Var | D29: Var | E29: Var
B30: Jübile İkramiyesi | C30: Yok | D30: Var | E30: Var
B31: Kârdan hisse ücret | C31: Var | D31: Var | E31: Var
B32: Kasa Tazminatı | C32: Yok | D32: Var | E32: Var
B33: Kıdem Tazminatı | C33: Yok | D33: Sınırlı (Gvk 25/7) | E33: Var
B34: Konut (Nakdi) | C34: Var | D34: Var | E34: Var
B35: Konut Lojman | C35: Yok | D35: Sınırlı (Gvk 23/9) | E35: Yok
B36: Makam Tazminatı | C36: Yok | D36: Var | E36: Var
B37: Ölüm Yardımı | C37: Yok | D37: Yok | E37: Var
B38: Primler | C38: Var | D38: Var | E38: Var
B39: Sağlık Yardımı (ayni) | C39: Yok | D39: Yok | E39: Yok
B40: Sahıs Sigorta Primi | C40: Yok | D40: Sınırlı (Gvk 89) | E40: Var
B41: Satış Primi | C41: Var | D41: Var | E41: Var
B42: Tabii Afet Yardımı | C42: Yok | D42: Var | E42: Var
B43: Taşıt (Nakdi) Yol | C43: Var | D43: Var | E43: Var
B44: Taşıt (Servis) | C44: Yok | D44: Yok | E44: Yok
B45: Personelin evinden işe gelip gitmesi için abonman bileti verilmesi (belgelenmesi Şart) | C45: Yok | D45: Yok | E45: Yok
B46: Temettü İkramiyesi | C46: Var | D46: Var | E46: Var
B47: Temsil Ödeneği | C47: Yok | D47: Var | E47: Var
B48: Teşvik İkramiyesi | C48: Var | D48: Var Gvk 29/1 hrç | E48: Var
B49: Toplu Sözleşme Zam F. | C49: Var | D49: Var | E49: Var
B50: Yakacak (Ayni) | C50: Yok | D50: Var | E50: Var
B51: Yakacak (Nakdi) | C51: Var 4958/36 | D51: Var | E51: Var
B52: Yemek (ayni) | C52: Yok | D52: Yok | E52: Yok
B53: Yemek (Nakdi) | C53: Tıklayınız | D53: Var | E53: Var
B54: Yılbaşı İkramiyesi | C54: Var | D54: Var | E54: Var
B55: Yıllık İzin Ücreti | C55: Var | D55: Var | E55: Var
B56: Yolluk | C56: Yok | D56: Sınırlı (Gvk 24/2) | E56: Var

Sheet Tah. Tes.
M1: EK-1
A2: ÖDEME BELGESİ VE EKİ BELGELER TESLİM/TESELLÜM TUTANAĞI
A3: Harcama Biriminin Kurumsal Kodu: | D3: 13 | E3: 1 | F3: 32 | G3: 62 | H3: 812 | J3: Muhasebe Birimi: | K3: KOZAN MAL MÜDÜRLÜĞÜ
A4: Dairesi: | D4: FATİH ANADOLU LİSESİ | J4: Düzenleme Tarihi: | K4: =TODAY() -> 2018-10-09
A5: Form Sıra No: | J5: Torba Numarası***:
A7: Sıra No | B7: Ödeme Belgesi | F7: Eki Belge | L7: Alacaklı | N7: Bütçe Gideri Tutarı
B8: Tahakkuk İşlem No | C8: Yevmiye Tarihi** | D8: Yevmiye No** | F8: Türü* | K8: Sayfa | L8: Adı-Soyadı | M8: TCK/VNK
A9: 1
A10: 2
A11: 3
A12: 4
A13: 5
A14: 6
A15: 7
A16: 8
A17: 9
A18: 10
A19: 11
A20: 12
A21: 13
A22: 14
A23: 15
A24: Yukarıda alacaklıları ile alacak tutarları gösterilen toplam | G24: 2 (İKİ ) | H24: adet tahakkuk evrakı ve ekleri teslim alınmıştır. | L24: =NOW() -> 2018-10-09T16:48:55.170
B28: TESLİM EDEN | L28: TESLİM ALAN
A34: *Merkezi Yönetim Harcama Belgeleri Yönetmeliğindeki belgenin adı yazılacaktır.
A35: ** Bu bölümler muhasebe birimi tarafından muhasebeleştirme işlemi tamamlandıktan sonra doldurulacaktır.
A36: *** Bu bölüme muhasebeleştirme işlemi tamamlandıktan sonra evrakın konulduğu torba numarası yazılacaktır.
